Body Name,Body,Service Label,Service Code,Service Division ,Service Division Code,Organisational Unit,Expenditure Category - SeRCOP,Expenditure Code - SeRCOP,Expenditure Category - ProClass,Expenditure Code - ProClass,SeRCOP Detailed Expenditure Type,SeRCOP Detailed Expenditure Code,Date,Transaction Number,Amount,Capital and Revenue,Supplier Name,Supplier ID
Fareham Borough Council,http://statistics.data.gov.uk/id/local-authority/24UE,HIGHWAYS ROADS AND TRANSPORT,BV12,PARKING SERVICES,BV12D,DEPT STREETSCENE,SUPPLIES & SERVICES,4,Street & Traffic Management,35,RECOV.COSTS OF STANDARD CHARGE,4440,21/10/2016,564168,323.25 ,Revenue,PATROL,
Fareham Borough Council,http://statistics.data.gov.uk/id/local-authority/24UE,HIGHWAYS ROADS AND TRANSPORT,BV12,PARKING SERVICES,BV12D,DEPT STREETSCENE,SUPPLIES & SERVICES,4,Street & Traffic Management,35,RECOV.COSTS OF STANDARD CHARGE,4440,21/10/2016,564168,323.25 ,Revenue,PATROL,
Fareham Borough Council,http://statistics.data.gov.uk/id/local-authority/24UE,HIGHWAYS ROADS AND TRANSPORT,BV12,PARKING SERVICES,BV12D,DEPT STREETSCENE,SUPPLIES & SERVICES,4,Street & Traffic Management,35,RECOV.COSTS OF STANDARD CHARGE,4440,21/10/2016,564482,-354.20 ,Revenue,PATROL,
Fareham Borough Council,http://statistics.data.gov.uk/id/local-authority/24UE,HIGHWAYS ROADS AND TRANSPORT,BV12,PARKING SERVICES,BV12D,DEPT STREETSCENE,SUPPLIES & SERVICES,4,Street & Traffic Management,35,RECOV.COSTS OF STANDARD CHARGE,4440,21/10/2016,564482,-354.20 ,Revenue,PATROL,
Fareham Borough Council,http://statistics.data.gov.uk/id/local-authority/24UE,OTHER REVENUE ACCOUNTS,RV,NON WORK GROUP HOLDING ACCOUNT,RV18,DEPT STREETSCENE,TRANSPORT RELATED EXPENDITURE,3,Vehicle Management,38,VEHICLE TRACKER CHARGES,3021,21/10/2016,565727,260.44 ,Revenue,TRACKYOU LTD,04203244
Fareham Borough Council,http://statistics.data.gov.uk/id/local-authority/24UE,OTHER REVENUE ACCOUNTS,RV,NON WORK GROUP HOLDING ACCOUNT,RV18,DEPT STREETSCENE,TRANSPORT RELATED EXPENDITURE,3,Vehicle Management,38,VEHICLE TRACKER CHARGES,3021,21/10/2016,565727,1363.48 ,Revenue,TRACKYOU LTD,04203244
Fareham Borough Council,http://statistics.data.gov.uk/id/local-authority/24UE,ENVIRONMENT AND REGULATORY SER,BV03,FLOOD DEFENCE & LAND DRAINAGE,BV03D,DEPT of STRATEGIC PLANNING and ENVIRONMENT,SUPPLIES & SERVICES,4,Consultancy,15,CONSULTANTS FEES,4401,07/10/2016,566025,2660.00 ,Revenue,HALCROW GROUP LTD (A CH2MHILL COMPANY),3415971
Fareham Borough Council,http://statistics.data.gov.uk/id/local-authority/24UE,ENVIRONMENT AND REGULATORY SER,BV03,STREET CLEANSING,BV03F,DEPT STREETSCENE,SUPPLIES & SERVICES,4,Cleaning & Janitorial,13,MATERIALS (OPERATIONAL),4007,07/10/2016,566044,871.53 ,Revenue,POLYSTAR PLASTICS LTD,2690339
Fareham Borough Council,http://statistics.data.gov.uk/id/local-authority/24UE,ENVIRONMENT AND REGULATORY SER,BV03,STREET CLEANSING,BV03F,DEPT STREETSCENE,SUPPLIES & SERVICES,4,Cleaning & Janitorial,13,MATERIALS (OPERATIONAL),4007,07/10/2016,566044,817.88 ,Revenue,POLYSTAR PLASTICS LTD,2690339
Fareham Borough Council,http://statistics.data.gov.uk/id/local-authority/24UE,OTHER REVENUE ACCOUNTS,RV,CONTRACT SERVICES D.S.O.,RV14,DEPT STREETSCENE,EMPLOYEES RELATED EXPENDITURE,1,Human Resources,26,AGENCY WORKERS,1050,07/10/2016,566197,3384.00 ,Revenue,BUZZ PEOPLE RECRUITMENT LTD,07908887
Fareham Borough Council,http://statistics.data.gov.uk/id/local-authority/24UE,ENVIRONMENT AND REGULATORY SER,BV03,WASTE COLLECTION,BV03G,DEPT STREETSCENE,SUPPLIES & SERVICES,4,Environmental Services,18,FURNITURE & EQUIPT. PURCHASES,4000,07/10/2016,566610,9700.00 ,Revenue,LBK PACKAGING,04522213
Fareham Borough Council,http://statistics.data.gov.uk/id/local-authority/24UE,CENTRAL SERVICES,BV07,CENTRAL SERVICES TO THE PUBLIC,BV07B,DEPT of COMMUNITY and STREETSCENE,EMPLOYEES RELATED EXPENDITURE,1,Human Resources,26,AGENCY WORKERS,1050,07/10/2016,566658,38.77 ,Revenue,EDEN BROWN SYNERGY,3643845
Fareham Borough Council,http://statistics.data.gov.uk/id/local-authority/24UE,CENTRAL SERVICES,BV07,CENTRAL SERVICES TO THE PUBLIC,BV07B,DEPT of COMMUNITY and STREETSCENE,EMPLOYEES RELATED EXPENDITURE,1,Human Resources,26,AGENCY WORKERS,1050,07/10/2016,566658,736.73 ,Revenue,EDEN BROWN SYNERGY,3643845
Fareham Borough Council,http://statistics.data.gov.uk/id/local-authority/24UE,GENERAL FUND HOUSING,BV05,HOUSING BENEFIT ADMINISTRATION,BV05H,DEPT of COMMUNITY and STREETSCENE,EMPLOYEES RELATED EXPENDITURE,1,Human Resources,26,AGENCY WORKERS,1050,07/10/2016,566659,497.64 ,Revenue,EDEN BROWN SYNERGY,3643845
Fareham Borough Council,http://statistics.data.gov.uk/id/local-authority/24UE,CENTRAL SERVICES,BV07,CENTRAL SERVICES TO THE PUBLIC,BV07B,DEPT of COMMUNITY and STREETSCENE,EMPLOYEES RELATED EXPENDITURE,1,Human Resources,26,AGENCY WORKERS,1050,07/10/2016,566659,267.96 ,Revenue,EDEN BROWN SYNERGY,3643845
Fareham Borough Council,http://statistics.data.gov.uk/id/local-authority/24UE,GENERAL FUND HOUSING,BV05,HOUSING BENEFIT ADMINISTRATION,BV05H,DEPT of COMMUNITY and STREETSCENE,EMPLOYEES RELATED EXPENDITURE,1,Human Resources,26,AGENCY WORKERS,1050,07/10/2016,566660,551.62 ,Revenue,EDEN BROWN SYNERGY,3643845
Fareham Borough Council,http://statistics.data.gov.uk/id/local-authority/24UE,CENTRAL SERVICES,BV07,CENTRAL SERVICES TO THE PUBLIC,BV07B,DEPT of COMMUNITY and STREETSCENE,EMPLOYEES RELATED EXPENDITURE,1,Human Resources,26,AGENCY WORKERS,1050,07/10/2016,566660,297.02 ,Revenue,EDEN BROWN SYNERGY,3643845
Fareham Borough Council,http://statistics.data.gov.uk/id/local-authority/24UE,OTHER REVENUE ACCOUNTS,RV,NON WORK GROUP HOLDING ACCOUNT,RV18,DEPT of FINANCE and RESOURCES,SUPPLIES & SERVICES,4,Building Construction Materials,10,FURNITURE & EQUIPT. MAINT.,4030,07/10/2016,566794,749.00 ,Revenue,CPC LIMITED,SC330044
Fareham Borough Council,http://statistics.data.gov.uk/id/local-authority/24UE,ENVIRONMENT AND REGULATORY SER,BV03,WASTE COLLECTION,BV03G,DEPT STREETSCENE,TRANSPORT RELATED EXPENDITURE,3,Vehicle Management,38,ROUTINE REPAIRS VEHICLES/PLANT,3010,07/10/2016,566799,183.91 ,Revenue,DENNIS EAGLE LIMITED,03794455
Fareham Borough Council,http://statistics.data.gov.uk/id/local-authority/24UE,ENVIRONMENT AND REGULATORY SER,BV03,WASTE COLLECTION,BV03G,DEPT STREETSCENE,TRANSPORT RELATED EXPENDITURE,3,Vehicle Management,38,ROUTINE REPAIRS VEHICLES/PLANT,3010,07/10/2016,566799,81.00 ,Revenue,DENNIS EAGLE LIMITED,03794455
Fareham Borough Council,http://statistics.data.gov.uk/id/local-authority/24UE,ENVIRONMENT AND REGULATORY SER,BV03,WASTE COLLECTION,BV03G,DEPT STREETSCENE,TRANSPORT RELATED EXPENDITURE,3,Vehicle Management,38,ROUTINE REPAIRS VEHICLES/PLANT,3010,07/10/2016,566799,245.33 ,Revenue,DENNIS EAGLE LIMITED,03794455
Fareham Borough Council,http://statistics.data.gov.uk/id/local-authority/24UE,OTHER REVENUE ACCOUNTS,RV,NON WORK GROUP HOLDING ACCOUNT,RV18,DEPT of FINANCE and RESOURCES,SUPPLIES & SERVICES,4,Information Communication Technology,27,FURNITURE & EQUIPT. MAINT.,4030,07/10/2016,566813,2341.90 ,Revenue,ANNODATA LTD,2246366
Fareham Borough Council,http://statistics.data.gov.uk/id/local-authority/24UE,BALANCE SHEET,BS,BAL. SHEET - D.S.O.,BS1,BAL. SHEET - D.S.O.,TOTAL ASSETS LESS LIABILITIES,BS100,Vehicle Management,38,MATERIALS SUSPENSE ACCOUNT (VE,A016,07/10/2016,566837,14288.00 ,Balance Sheet,WESSEX PETROLEUM LTD,01024472
Fareham Borough Council,http://statistics.data.gov.uk/id/local-authority/24UE,OTHER REVENUE ACCOUNTS,RV,NON WORK GROUP HOLDING ACCOUNT,RV18,DEPT of FINANCE and RESOURCES,SUPPLIES & SERVICES,4,Mail Services?,30,POSTAGES,4500,07/10/2016,566839,5000.00 ,Revenue,ROYAL MAIL,04138203
Fareham Borough Council,http://statistics.data.gov.uk/id/local-authority/24UE,GENERAL FUND HOUSING,BV05,HOUSING BENEFIT ADMINISTRATION,BV05H,DEPT of COMMUNITY and STREETSCENE,EMPLOYEES RELATED EXPENDITURE,1,Human Resources,26,TRAINING COURSES EMPLOYEES,1909,07/10/2016,567104,52.63 ,Revenue,MILTON KEYNES COUNCIL,
Fareham Borough Council,http://statistics.data.gov.uk/id/local-authority/24UE,OTHER REVENUE ACCOUNTS,RV,NON WORK GROUP HOLDING ACCOUNT,RV18,DEPT of FINANCE and RESOURCES,EMPLOYEES RELATED EXPENDITURE,1,Human Resources,26,TRAINING COURSES EMPLOYEES,1909,07/10/2016,567104,447.37 ,Revenue,MILTON KEYNES COUNCIL,
Fareham Borough Council,http://statistics.data.gov.uk/id/local-authority/24UE,CULTURAL AND RELATED SERVICES,BV09,CULTURE AND HERITAGE,BV09A,DEPT of COMMUNITY and STREETSCENE,SUPPLIES & SERVICES,4,Catering,11,BAR PROVISIONS,4106,07/10/2016,567151,1138.25 ,Revenue,MOLSON COORS BREWING COMPANY (UK) LTD,26018
Fareham Borough Council,http://statistics.data.gov.uk/id/local-authority/24UE,HIGHWAYS ROADS AND TRANSPORT,BV12,PARKING SERVICES,BV12D,DEPT STREETSCENE,SUPPLIES & SERVICES,4,Street & Traffic Management,35,TICKET MACHINE - MAINTENANCE,4037,07/10/2016,567250,29229.93 ,Revenue,DESIGNA UK LTD,03464488
Fareham Borough Council,http://statistics.data.gov.uk/id/local-authority/24UE,HIGHWAYS ROADS AND TRANSPORT,BV12,PARKING SERVICES,BV12D,DEPT STREETSCENE,SUPPLIES & SERVICES,4,Street & Traffic Management,35,TICKET MACHINE - MAINTENANCE,4037,07/10/2016,567250,40.00 ,Revenue,DESIGNA UK LTD,03464488
Fareham Borough Council,http://statistics.data.gov.uk/id/local-authority/24UE,ENVIRONMENT AND REGULATORY SER,BV03,WASTE COLLECTION,BV03G,DEPT STREETSCENE,TRANSPORT RELATED EXPENDITURE,3,Vehicle Management,38,ROUTINE REPAIRS VEHICLES/PLANT,3010,07/10/2016,567255,4500.00 ,Revenue,TERBERG MATEC UK LTD,03404297
Fareham Borough Council,http://statistics.data.gov.uk/id/local-authority/24UE,OTHER REVENUE ACCOUNTS,RV,NON WORK GROUP HOLDING ACCOUNT,RV18,DEPT of FINANCE and RESOURCES,SUPPLIES & SERVICES,4,Information Communication Technology,27,SOFTWARE LICENCES,4530,07/10/2016,567261,1401.36 ,Revenue,NORTHGATE PUBLIC SERVICES (UK) LTD,968498
Fareham Borough Council,http://statistics.data.gov.uk/id/local-authority/24UE,CAPITAL PROGRAMME - HOUSING SERVICES,CP,HOUSE RENOVATION GRANTS,CP11,CAPITAL - HOUSE RENOVATION GRANTS,SUPPLIES & SERVICES,4,Social Community Care Supplies & Services,32,GRANTS AND SUBSCRIPTIONS,4700,07/10/2016,567548,8585.00 ,Capital,LIFTECH SYSTEMS (SE) LTD,04834054
Fareham Borough Council,http://statistics.data.gov.uk/id/local-authority/24UE,CAPITAL PROGRAMME - HOUSING SERVICES,CP,NEW HOUSE BUILDING,CP10,CAPITAL - NEW HOUSE BUILDING,SUPPLIES & SERVICES,4,Consultancy,15,CONSULTANTS FEES,4401,28/10/2016,567568,5000.00 ,Capital,ATKINS LTD,1885586
Fareham Borough Council,http://statistics.data.gov.uk/id/local-authority/24UE,OTHER REVENUE ACCOUNTS,RV,NON WORK GROUP HOLDING ACCOUNT,RV18,DEPT of FINANCE and RESOURCES,SUPPLIES & SERVICES,4,Stationery,34,STATIONERY,4320,07/10/2016,567569,5408.00 ,Revenue,WESTCOUNTRY PAPER,04314613
Fareham Borough Council,http://statistics.data.gov.uk/id/local-authority/24UE,HIGHWAYS ROADS AND TRANSPORT,BV12,PARKING SERVICES,BV12D,DEPT STREETSCENE,SUPPLIES & SERVICES,4,Clothing,14,PROTECTIVE CLOTHING & UNIFORMS,4200,14/10/2016,567570,49.95 ,Revenue,KELTIC CLOTHING LIMITED,05055453
Fareham Borough Council,http://statistics.data.gov.uk/id/local-authority/24UE,HIGHWAYS ROADS AND TRANSPORT,BV12,PARKING SERVICES,BV12D,DEPT STREETSCENE,SUPPLIES & SERVICES,4,Clothing,14,PROTECTIVE CLOTHING & UNIFORMS,4200,14/10/2016,567570,3.95 ,Revenue,KELTIC CLOTHING LIMITED,05055453
Fareham Borough Council,http://statistics.data.gov.uk/id/local-authority/24UE,HIGHWAYS ROADS AND TRANSPORT,BV12,PARKING SERVICES,BV12D,DEPT STREETSCENE,SUPPLIES & SERVICES,4,Clothing,14,PROTECTIVE CLOTHING & UNIFORMS,4200,14/10/2016,567570,18.95 ,Revenue,KELTIC CLOTHING LIMITED,05055453
Fareham Borough Council,http://statistics.data.gov.uk/id/local-authority/24UE,HIGHWAYS ROADS AND TRANSPORT,BV12,PARKING SERVICES,BV12D,DEPT STREETSCENE,SUPPLIES & SERVICES,4,Clothing,14,PROTECTIVE CLOTHING & UNIFORMS,4200,14/10/2016,567570,35.90 ,Revenue,KELTIC CLOTHING LIMITED,05055453
Fareham Borough Council,http://statistics.data.gov.uk/id/local-authority/24UE,HIGHWAYS ROADS AND TRANSPORT,BV12,PARKING SERVICES,BV12D,DEPT STREETSCENE,SUPPLIES & SERVICES,4,Clothing,14,PROTECTIVE CLOTHING & UNIFORMS,4200,14/10/2016,567570,15.95 ,Revenue,KELTIC CLOTHING LIMITED,05055453
Fareham Borough Council,http://statistics.data.gov.uk/id/local-authority/24UE,HIGHWAYS ROADS AND TRANSPORT,BV12,PARKING SERVICES,BV12D,DEPT STREETSCENE,SUPPLIES & SERVICES,4,Clothing,14,PROTECTIVE CLOTHING & UNIFORMS,4200,14/10/2016,567570,96.95 ,Revenue,KELTIC CLOTHING LIMITED,05055453
Fareham Borough Council,http://statistics.data.gov.uk/id/local-authority/24UE,HIGHWAYS ROADS AND TRANSPORT,BV12,PARKING SERVICES,BV12D,DEPT STREETSCENE,SUPPLIES & SERVICES,4,Clothing,14,PROTECTIVE CLOTHING & UNIFORMS,4200,14/10/2016,567570,89.75 ,Revenue,KELTIC CLOTHING LIMITED,05055453
Fareham Borough Council,http://statistics.data.gov.uk/id/local-authority/24UE,HIGHWAYS ROADS AND TRANSPORT,BV12,PARKING SERVICES,BV12D,DEPT STREETSCENE,SUPPLIES & SERVICES,4,Clothing,14,PROTECTIVE CLOTHING & UNIFORMS,4200,14/10/2016,567570,125.65 ,Revenue,KELTIC CLOTHING LIMITED,05055453
Fareham Borough Council,http://statistics.data.gov.uk/id/local-authority/24UE,HIGHWAYS ROADS AND TRANSPORT,BV12,PARKING SERVICES,BV12D,DEPT STREETSCENE,SUPPLIES & SERVICES,4,Clothing,14,PROTECTIVE CLOTHING & UNIFORMS,4200,14/10/2016,567570,107.70 ,Revenue,KELTIC CLOTHING LIMITED,05055453
Fareham Borough Council,http://statistics.data.gov.uk/id/local-authority/24UE,HIGHWAYS ROADS AND TRANSPORT,BV12,PARKING SERVICES,BV12D,DEPT STREETSCENE,SUPPLIES & SERVICES,4,Clothing,14,PROTECTIVE CLOTHING & UNIFORMS,4200,14/10/2016,567570,53.85 ,Revenue,KELTIC CLOTHING LIMITED,05055453
Fareham Borough Council,http://statistics.data.gov.uk/id/local-authority/24UE,HIGHWAYS ROADS AND TRANSPORT,BV12,PARKING SERVICES,BV12D,DEPT STREETSCENE,SUPPLIES & SERVICES,4,Clothing,14,PROTECTIVE CLOTHING & UNIFORMS,4200,14/10/2016,567570,107.70 ,Revenue,KELTIC CLOTHING LIMITED,05055453
Fareham Borough Council,http://statistics.data.gov.uk/id/local-authority/24UE,HIGHWAYS ROADS AND TRANSPORT,BV12,PARKING SERVICES,BV12D,DEPT STREETSCENE,SUPPLIES & SERVICES,4,Clothing,14,PROTECTIVE CLOTHING & UNIFORMS,4200,14/10/2016,567570,53.85 ,Revenue,KELTIC CLOTHING LIMITED,05055453
Fareham Borough Council,http://statistics.data.gov.uk/id/local-authority/24UE,HIGHWAYS ROADS AND TRANSPORT,BV12,PARKING SERVICES,BV12D,DEPT STREETSCENE,SUPPLIES & SERVICES,4,Clothing,14,PROTECTIVE CLOTHING & UNIFORMS,4200,14/10/2016,567570,17.95 ,Revenue,KELTIC CLOTHING LIMITED,05055453
Fareham Borough Council,http://statistics.data.gov.uk/id/local-authority/24UE,HIGHWAYS ROADS AND TRANSPORT,BV12,PARKING SERVICES,BV12D,DEPT STREETSCENE,SUPPLIES & SERVICES,4,Clothing,14,PROTECTIVE CLOTHING & UNIFORMS,4200,14/10/2016,567570,17.95 ,Revenue,KELTIC CLOTHING LIMITED,05055453
Fareham Borough Council,http://statistics.data.gov.uk/id/local-authority/24UE,HIGHWAYS ROADS AND TRANSPORT,BV12,PARKING SERVICES,BV12D,DEPT STREETSCENE,SUPPLIES & SERVICES,4,Clothing,14,PROTECTIVE CLOTHING & UNIFORMS,4200,14/10/2016,567570,53.85 ,Revenue,KELTIC CLOTHING LIMITED,05055453
Fareham Borough Council,http://statistics.data.gov.uk/id/local-authority/24UE,HIGHWAYS ROADS AND TRANSPORT,BV12,PARKING SERVICES,BV12D,DEPT STREETSCENE,SUPPLIES & SERVICES,4,Clothing,14,PROTECTIVE CLOTHING & UNIFORMS,4200,14/10/2016,567570,53.85 ,Revenue,KELTIC CLOTHING LIMITED,05055453
Fareham Borough Council,http://statistics.data.gov.uk/id/local-authority/24UE,HIGHWAYS ROADS AND TRANSPORT,BV12,PARKING SERVICES,BV12D,DEPT STREETSCENE,SUPPLIES & SERVICES,4,Clothing,14,PROTECTIVE CLOTHING & UNIFORMS,4200,14/10/2016,567570,35.90 ,Revenue,KELTIC CLOTHING LIMITED,05055453
Fareham Borough Council,http://statistics.data.gov.uk/id/local-authority/24UE,HIGHWAYS ROADS AND TRANSPORT,BV12,PARKING SERVICES,BV12D,DEPT STREETSCENE,SUPPLIES & SERVICES,4,Clothing,14,PROTECTIVE CLOTHING & UNIFORMS,4200,14/10/2016,567570,71.80 ,Revenue,KELTIC CLOTHING LIMITED,05055453
Fareham Borough Council,http://statistics.data.gov.uk/id/local-authority/24UE,HIGHWAYS ROADS AND TRANSPORT,BV12,PARKING SERVICES,BV12D,DEPT STREETSCENE,SUPPLIES & SERVICES,4,Clothing,14,PROTECTIVE CLOTHING & UNIFORMS,4200,14/10/2016,567570,17.95 ,Revenue,KELTIC CLOTHING LIMITED,05055453
Fareham Borough Council,http://statistics.data.gov.uk/id/local-authority/24UE,HIGHWAYS ROADS AND TRANSPORT,BV12,PARKING SERVICES,BV12D,DEPT STREETSCENE,SUPPLIES & SERVICES,4,Clothing,14,PROTECTIVE CLOTHING & UNIFORMS,4200,14/10/2016,567570,89.75 ,Revenue,KELTIC CLOTHING LIMITED,05055453
Fareham Borough Council,http://statistics.data.gov.uk/id/local-authority/24UE,HIGHWAYS ROADS AND TRANSPORT,BV12,PARKING SERVICES,BV12D,DEPT STREETSCENE,SUPPLIES & SERVICES,4,Clothing,14,PROTECTIVE CLOTHING & UNIFORMS,4200,14/10/2016,567570,247.50 ,Revenue,KELTIC CLOTHING LIMITED,05055453
Fareham Borough Council,http://statistics.data.gov.uk/id/local-authority/24UE,HIGHWAYS ROADS AND TRANSPORT,BV12,PARKING SERVICES,BV12D,DEPT STREETSCENE,SUPPLIES & SERVICES,4,Clothing,14,PROTECTIVE CLOTHING & UNIFORMS,4200,14/10/2016,567570,268.65 ,Revenue,KELTIC CLOTHING LIMITED,05055453
Fareham Borough Council,http://statistics.data.gov.uk/id/local-authority/24UE,HIGHWAYS ROADS AND TRANSPORT,BV12,PARKING SERVICES,BV12D,DEPT STREETSCENE,SUPPLIES & SERVICES,4,Clothing,14,PROTECTIVE CLOTHING & UNIFORMS,4200,14/10/2016,567570,197.50 ,Revenue,KELTIC CLOTHING LIMITED,05055453
Fareham Borough Council,http://statistics.data.gov.uk/id/local-authority/24UE,HIGHWAYS ROADS AND TRANSPORT,BV12,PARKING SERVICES,BV12D,DEPT STREETSCENE,SUPPLIES & SERVICES,4,Clothing,14,PROTECTIVE CLOTHING & UNIFORMS,4200,14/10/2016,567570,3.95 ,Revenue,KELTIC CLOTHING LIMITED,05055453
Fareham Borough Council,http://statistics.data.gov.uk/id/local-authority/24UE,BALANCE SHEET,BS,BAL. SHEET - D.S.O.,BS1,BAL. SHEET - D.S.O.,TOTAL ASSETS LESS LIABILITIES,BS100,Vehicle Management,38,MATERIALS SUSPENSE ACCOUNT (VE,A016,07/10/2016,567575,2143.00 ,Balance Sheet,WESSEX PETROLEUM LTD,01024472
Fareham Borough Council,http://statistics.data.gov.uk/id/local-authority/24UE,ENVIRONMENT AND REGULATORY SER,BV03,ENVIRONMENTAL HEALTH,BV03C,DEPT of COMMUNITY and STREETSCENE,SUPPLIES & SERVICES,4,Unclassified,32,CRIME & COMMUNITY INITIATIVES,4978,07/10/2016,567590,750.00 ,Revenue,MOTIV8 SOUTH,3512607
Fareham Borough Council,http://statistics.data.gov.uk/id/local-authority/24UE,CORPORATE & DEMOCRATIC CORE,BV07A,CORPORATE MANAGEMENT,BV07AB,DEPT of FINANCE and RESOURCES,SUPPLIES & SERVICES,4,Facilities & Management Services,19,GRANTS AND SUBSCRIPTIONS,4700,14/10/2016,567608,665.00 ,Revenue,NLA MEDIA ACCESS LIMITED,3003569
Fareham Borough Council,http://statistics.data.gov.uk/id/local-authority/24UE,CENTRAL SERVICES,BV07,CENTRAL SERVICES TO THE PUBLIC,BV07B,DEPT of COMMUNITY and STREETSCENE,SUPPLIES & SERVICES,4,Mail Services?,30,POSTAGES,4500,14/10/2016,567614,15.08 ,Revenue,ROYAL MAIL,04138203
Fareham Borough Council,http://statistics.data.gov.uk/id/local-authority/24UE,CENTRAL SERVICES,BV07,CENTRAL SERVICES TO THE PUBLIC,BV07B,DEPT of COMMUNITY and STREETSCENE,SUPPLIES & SERVICES,4,Mail Services?,30,POSTAGES,4500,14/10/2016,567614,137.28 ,Revenue,ROYAL MAIL,04138203
Fareham Borough Council,http://statistics.data.gov.uk/id/local-authority/24UE,OTHER REVENUE ACCOUNTS,RV,NON WORK GROUP HOLDING ACCOUNT,RV18,DEPT of FINANCE and RESOURCES,SUPPLIES & SERVICES,4,Mail Services?,30,POSTAGES,4500,14/10/2016,567614,3897.25 ,Revenue,ROYAL MAIL,04138203
Fareham Borough Council,http://statistics.data.gov.uk/id/local-authority/24UE,CULTURAL AND RELATED SERVICES,BV09,CULTURE AND HERITAGE,BV09A,DEPT of COMMUNITY and STREETSCENE,SUPPLIES & SERVICES,4,Art & Leisure Services,29,PROMOTER,4916,07/10/2016,567626,10500.00 ,Revenue,DEREK BLOCK CONCERTS,06232763
Fareham Borough Council,http://statistics.data.gov.uk/id/local-authority/24UE,CAPITAL PROGRAMME - HOUSING SERVICES,CP,RENOVATION OF L.A. DWELLINGS,CP10,CAPITAL - IMPROVEMENTS WORK/MODERNIS'N,PREMISES RELATED EXPENDITURE,2,"Works - Construction, Repair & Maintenance",39,VOID COSTS - NOT RECHARGEABLE,2011,07/10/2016,567627,22920.20 ,Capital,JPC PROPERTY SERVICES LTD,4704385
Fareham Borough Council,http://statistics.data.gov.uk/id/local-authority/24UE,CAPITAL PROGRAMME - HOUSING SERVICES,CP,RENOVATION OF L.A. DWELLINGS,CP10,CAPITAL - IMPROVEMENTS WORK/MODERNIS'N,PREMISES RELATED EXPENDITURE,2,"Works - Construction, Repair & Maintenance",39,VOID COSTS - NOT RECHARGEABLE,2011,07/10/2016,567627,1631.50 ,Capital,JPC PROPERTY SERVICES LTD,4704385
Fareham Borough Council,http://statistics.data.gov.uk/id/local-authority/24UE,HOUSING REVENUE ACCOUNT,BV06,RESPONSIVE & VOID MAINTENANCE,5901,DEPT STREETSCENE,PREMISES RELATED EXPENDITURE,2,"Works - Construction, Repair & Maintenance",39,VOID COSTS - NOT RECHARGEABLE,2011,07/10/2016,567627,37618.80 ,Revenue,JPC PROPERTY SERVICES LTD,4704385
Fareham Borough Council,http://statistics.data.gov.uk/id/local-authority/24UE,CAPITAL PROGRAMME - HOUSING SERVICES,CP,RENOVATION OF L.A. DWELLINGS,CP10,CAPITAL - IMPROVEMENTS WORK/MODERNIS'N,PREMISES RELATED EXPENDITURE,2,"Works - Construction, Repair & Maintenance",39,MODIFICATIONS,2023,07/10/2016,567629,5972.50 ,Capital,JPC PROPERTY SERVICES LTD,4704385
Fareham Borough Council,http://statistics.data.gov.uk/id/local-authority/24UE,CAPITAL PROGRAMME - HOUSING SERVICES,CP,RENOVATION OF L.A. DWELLINGS,CP10,CAPITAL - IMPROVEMENTS WORK/MODERNIS'N,PREMISES RELATED EXPENDITURE,2,"Works - Construction, Repair & Maintenance",39,MODIFICATIONS,2023,07/10/2016,567629,8795.90 ,Capital,JPC PROPERTY SERVICES LTD,4704385
Fareham Borough Council,http://statistics.data.gov.uk/id/local-authority/24UE,HOUSING REVENUE ACCOUNT,BV06,RESPONSIVE & VOID MAINTENANCE,5901,DEPT STREETSCENE,PREMISES RELATED EXPENDITURE,2,"Works - Construction, Repair & Maintenance",39,GENERAL REPAIRS,2018,07/10/2016,567629,637.60 ,Revenue,JPC PROPERTY SERVICES LTD,4704385
Fareham Borough Council,http://statistics.data.gov.uk/id/local-authority/24UE,CULTURAL AND RELATED SERVICES,BV09,CULTURE AND HERITAGE,BV09A,DEPT of COMMUNITY and STREETSCENE,SUPPLIES & SERVICES,4,Art & Leisure Services,29,PROMOTER,4916,07/10/2016,567633,6107.76 ,Revenue,INDIVIDUAL ENTERTAINMENT LTD,08379914
Fareham Borough Council,http://statistics.data.gov.uk/id/local-authority/24UE,CAPITAL PROGRAMME - HOUSING SERVICES,CP,RENOVATION OF L.A. DWELLINGS,CP10,CAPITAL - ENERGY CONSERVATION,PREMISES RELATED EXPENDITURE,2,Consultancy,15,R & M OF BUILDINGS,2000,14/10/2016,567634,38.00 ,Capital,GAS CONTRACT SERVICES LIMITED,3400365
Fareham Borough Council,http://statistics.data.gov.uk/id/local-authority/24UE,HOUSING REVENUE ACCOUNT,BV06,RESPONSIVE & VOID MAINTENANCE,5901,DEPT STREETSCENE,PREMISES RELATED EXPENDITURE,2,Consultancy,15,GAS SERVICING & ASSOC REPAIRS,2029,14/10/2016,567634,38.00 ,Revenue,GAS CONTRACT SERVICES LIMITED,3400365
Fareham Borough Council,http://statistics.data.gov.uk/id/local-authority/24UE,HOUSING REVENUE ACCOUNT,BV06,RESPONSIVE & VOID MAINTENANCE,5901,DEPT STREETSCENE,PREMISES RELATED EXPENDITURE,2,Consultancy,15,GAS SERVICING & ASSOC REPAIRS,2029,14/10/2016,567634,38.00 ,Revenue,GAS CONTRACT SERVICES LIMITED,3400365
Fareham Borough Council,http://statistics.data.gov.uk/id/local-authority/24UE,HOUSING REVENUE ACCOUNT,BV06,RESPONSIVE & VOID MAINTENANCE,5901,DEPT STREETSCENE,PREMISES RELATED EXPENDITURE,2,Consultancy,15,GAS SERVICING & ASSOC REPAIRS,2029,14/10/2016,567634,38.00 ,Revenue,GAS CONTRACT SERVICES LIMITED,3400365
Fareham Borough Council,http://statistics.data.gov.uk/id/local-authority/24UE,HOUSING REVENUE ACCOUNT,BV06,RESPONSIVE & VOID MAINTENANCE,5901,DEPT STREETSCENE,PREMISES RELATED EXPENDITURE,2,Consultancy,15,GAS SERVICING & ASSOC REPAIRS,2029,14/10/2016,567634,38.00 ,Revenue,GAS CONTRACT SERVICES LIMITED,3400365
Fareham Borough Council,http://statistics.data.gov.uk/id/local-authority/24UE,HOUSING REVENUE ACCOUNT,BV06,RESPONSIVE & VOID MAINTENANCE,5901,DEPT STREETSCENE,PREMISES RELATED EXPENDITURE,2,Consultancy,15,GAS SERVICING & ASSOC REPAIRS,2029,14/10/2016,567634,38.00 ,Revenue,GAS CONTRACT SERVICES LIMITED,3400365
Fareham Borough Council,http://statistics.data.gov.uk/id/local-authority/24UE,HOUSING REVENUE ACCOUNT,BV06,RESPONSIVE & VOID MAINTENANCE,5901,DEPT STREETSCENE,PREMISES RELATED EXPENDITURE,2,Consultancy,15,GAS SERVICING & ASSOC REPAIRS,2029,14/10/2016,567634,38.00 ,Revenue,GAS CONTRACT SERVICES LIMITED,3400365
Fareham Borough Council,http://statistics.data.gov.uk/id/local-authority/24UE,HOUSING REVENUE ACCOUNT,BV06,RESPONSIVE & VOID MAINTENANCE,5901,DEPT STREETSCENE,PREMISES RELATED EXPENDITURE,2,Consultancy,15,GAS SERVICING & ASSOC REPAIRS,2029,14/10/2016,567634,38.00 ,Revenue,GAS CONTRACT SERVICES LIMITED,3400365
Fareham Borough Council,http://statistics.data.gov.uk/id/local-authority/24UE,HOUSING REVENUE ACCOUNT,BV06,RESPONSIVE & VOID MAINTENANCE,5901,DEPT STREETSCENE,PREMISES RELATED EXPENDITURE,2,Consultancy,15,GAS SERVICING & ASSOC REPAIRS,2029,14/10/2016,567634,38.00 ,Revenue,GAS CONTRACT SERVICES LIMITED,3400365
Fareham Borough Council,http://statistics.data.gov.uk/id/local-authority/24UE,HOUSING REVENUE ACCOUNT,BV06,RESPONSIVE & VOID MAINTENANCE,5901,DEPT STREETSCENE,PREMISES RELATED EXPENDITURE,2,Consultancy,15,GAS SERVICING & ASSOC REPAIRS,2029,14/10/2016,567634,38.00 ,Revenue,GAS CONTRACT SERVICES LIMITED,3400365
Fareham Borough Council,http://statistics.data.gov.uk/id/local-authority/24UE,HOUSING REVENUE ACCOUNT,BV06,RESPONSIVE & VOID MAINTENANCE,5901,DEPT STREETSCENE,PREMISES RELATED EXPENDITURE,2,Consultancy,15,GAS SERVICING & ASSOC REPAIRS,2029,14/10/2016,567634,38.00 ,Revenue,GAS CONTRACT SERVICES LIMITED,3400365
Fareham Borough Council,http://statistics.data.gov.uk/id/local-authority/24UE,HOUSING REVENUE ACCOUNT,BV06,RESPONSIVE & VOID MAINTENANCE,5901,DEPT STREETSCENE,PREMISES RELATED EXPENDITURE,2,Consultancy,15,GAS SERVICING & ASSOC REPAIRS,2029,14/10/2016,567634,38.00 ,Revenue,GAS CONTRACT SERVICES LIMITED,3400365
Fareham Borough Council,http://statistics.data.gov.uk/id/local-authority/24UE,HOUSING REVENUE ACCOUNT,BV06,RESPONSIVE & VOID MAINTENANCE,5901,DEPT STREETSCENE,PREMISES RELATED EXPENDITURE,2,Consultancy,15,GAS SERVICING & ASSOC REPAIRS,2029,14/10/2016,567634,38.00 ,Revenue,GAS CONTRACT SERVICES LIMITED,3400365
Fareham Borough Council,http://statistics.data.gov.uk/id/local-authority/24UE,HOUSING REVENUE ACCOUNT,BV06,RESPONSIVE & VOID MAINTENANCE,5901,DEPT STREETSCENE,PREMISES RELATED EXPENDITURE,2,Consultancy,15,GAS SERVICING & ASSOC REPAIRS,2029,14/10/2016,567634,38.00 ,Revenue,GAS CONTRACT SERVICES LIMITED,3400365
Fareham Borough Council,http://statistics.data.gov.uk/id/local-authority/24UE,HOUSING REVENUE ACCOUNT,BV06,RESPONSIVE & VOID MAINTENANCE,5901,DEPT STREETSCENE,PREMISES RELATED EXPENDITURE,2,Consultancy,15,GAS SERVICING & ASSOC REPAIRS,2029,14/10/2016,567634,38.00 ,Revenue,GAS CONTRACT SERVICES LIMITED,3400365
Fareham Borough Council,http://statistics.data.gov.uk/id/local-authority/24UE,CAPITAL PROGRAMME - HOUSING SERVICES,CP,RENOVATION OF L.A. DWELLINGS,CP10,CAPITAL - ENERGY CONSERVATION,PREMISES RELATED EXPENDITURE,2,Consultancy,15,R & M OF BUILDINGS,2000,07/10/2016,567635,70.00 ,Capital,GAS CONTRACT SERVICES LIMITED,3400365
Fareham Borough Council,http://statistics.data.gov.uk/id/local-authority/24UE,CAPITAL PROGRAMME - HOUSING SERVICES,CP,RENOVATION OF L.A. DWELLINGS,CP10,CAPITAL - ENERGY CONSERVATION,PREMISES RELATED EXPENDITURE,2,Consultancy,15,R & M OF BUILDINGS,2000,07/10/2016,567635,70.00 ,Capital,GAS CONTRACT SERVICES LIMITED,3400365
Fareham Borough Council,http://statistics.data.gov.uk/id/local-authority/24UE,CAPITAL PROGRAMME - HOUSING SERVICES,CP,RENOVATION OF L.A. DWELLINGS,CP10,CAPITAL - ENERGY CONSERVATION,PREMISES RELATED EXPENDITURE,2,Consultancy,15,R & M OF BUILDINGS,2000,07/10/2016,567635,70.00 ,Capital,GAS CONTRACT SERVICES LIMITED,3400365
Fareham Borough Council,http://statistics.data.gov.uk/id/local-authority/24UE,CAPITAL PROGRAMME - HOUSING SERVICES,CP,RENOVATION OF L.A. DWELLINGS,CP10,CAPITAL - ENERGY CONSERVATION,PREMISES RELATED EXPENDITURE,2,Consultancy,15,R & M OF BUILDINGS,2000,07/10/2016,567635,70.00 ,Capital,GAS CONTRACT SERVICES LIMITED,3400365
Fareham Borough Council,http://statistics.data.gov.uk/id/local-authority/24UE,CAPITAL PROGRAMME - HOUSING SERVICES,CP,RENOVATION OF L.A. DWELLINGS,CP10,CAPITAL - ENERGY CONSERVATION,PREMISES RELATED EXPENDITURE,2,Consultancy,15,R & M OF BUILDINGS,2000,07/10/2016,567635,70.00 ,Capital,GAS CONTRACT SERVICES LIMITED,3400365
Fareham Borough Council,http://statistics.data.gov.uk/id/local-authority/24UE,CAPITAL PROGRAMME - HOUSING SERVICES,CP,RENOVATION OF L.A. DWELLINGS,CP10,CAPITAL - ENERGY CONSERVATION,PREMISES RELATED EXPENDITURE,2,Consultancy,15,R & M OF BUILDINGS,2000,07/10/2016,567635,70.00 ,Capital,GAS CONTRACT SERVICES LIMITED,3400365
Fareham Borough Council,http://statistics.data.gov.uk/id/local-authority/24UE,CAPITAL PROGRAMME - HOUSING SERVICES,CP,RENOVATION OF L.A. DWELLINGS,CP10,CAPITAL - ENERGY CONSERVATION,PREMISES RELATED EXPENDITURE,2,Consultancy,15,R & M OF BUILDINGS,2000,07/10/2016,567635,70.00 ,Capital,GAS CONTRACT SERVICES LIMITED,3400365
Fareham Borough Council,http://statistics.data.gov.uk/id/local-authority/24UE,CAPITAL PROGRAMME - HOUSING SERVICES,CP,RENOVATION OF L.A. DWELLINGS,CP10,CAPITAL - ENERGY CONSERVATION,PREMISES RELATED EXPENDITURE,2,Consultancy,15,R & M OF BUILDINGS,2000,07/10/2016,567635,70.00 ,Capital,GAS CONTRACT SERVICES LIMITED,3400365
Fareham Borough Council,http://statistics.data.gov.uk/id/local-authority/24UE,CAPITAL PROGRAMME - HOUSING SERVICES,CP,RENOVATION OF L.A. DWELLINGS,CP10,CAPITAL - ENERGY CONSERVATION,PREMISES RELATED EXPENDITURE,2,Consultancy,15,R & M OF BUILDINGS,2000,07/10/2016,567635,70.00 ,Capital,GAS CONTRACT SERVICES LIMITED,3400365
Fareham Borough Council,http://statistics.data.gov.uk/id/local-authority/24UE,CAPITAL PROGRAMME - HOUSING SERVICES,CP,RENOVATION OF L.A. DWELLINGS,CP10,CAPITAL - ENERGY CONSERVATION,PREMISES RELATED EXPENDITURE,2,Consultancy,15,R & M OF BUILDINGS,2000,07/10/2016,567635,70.00 ,Capital,GAS CONTRACT SERVICES LIMITED,3400365
Fareham Borough Council,http://statistics.data.gov.uk/id/local-authority/24UE,CAPITAL PROGRAMME - HOUSING SERVICES,CP,RENOVATION OF L.A. DWELLINGS,CP10,CAPITAL - ENERGY CONSERVATION,PREMISES RELATED EXPENDITURE,2,Consultancy,15,R & M OF BUILDINGS,2000,07/10/2016,567635,70.00 ,Capital,GAS CONTRACT SERVICES LIMITED,3400365
Fareham Borough Council,http://statistics.data.gov.uk/id/local-authority/24UE,CAPITAL PROGRAMME - HOUSING SERVICES,CP,RENOVATION OF L.A. DWELLINGS,CP10,CAPITAL - ENERGY CONSERVATION,PREMISES RELATED EXPENDITURE,2,Consultancy,15,R & M OF BUILDINGS,2000,07/10/2016,567635,70.00 ,Capital,GAS CONTRACT SERVICES LIMITED,3400365
Fareham Borough Council,http://statistics.data.gov.uk/id/local-authority/24UE,CAPITAL PROGRAMME - HOUSING SERVICES,CP,RENOVATION OF L.A. DWELLINGS,CP10,CAPITAL - ENERGY CONSERVATION,PREMISES RELATED EXPENDITURE,2,Consultancy,15,R & M OF BUILDINGS,2000,07/10/2016,567635,70.00 ,Capital,GAS CONTRACT SERVICES LIMITED,3400365
Fareham Borough Council,http://statistics.data.gov.uk/id/local-authority/24UE,ENVIRONMENT AND REGULATORY SER,BV03,WASTE COLLECTION,BV03G,DEPT STREETSCENE,EMPLOYEES RELATED EXPENDITURE,1,Human Resources,26,AGENCY WORKERS,1050,07/10/2016,567857,100.73 ,Revenue,BERRY RECRUITMENT LIMITED,07036111
Fareham Borough Council,http://statistics.data.gov.uk/id/local-authority/24UE,ENVIRONMENT AND REGULATORY SER,BV03,WASTE COLLECTION,BV03G,DEPT STREETSCENE,EMPLOYEES RELATED EXPENDITURE,1,Human Resources,26,AGENCY WORKERS,1050,07/10/2016,567857,107.93 ,Revenue,BERRY RECRUITMENT LIMITED,07036111
Fareham Borough Council,http://statistics.data.gov.uk/id/local-authority/24UE,ENVIRONMENT AND REGULATORY SER,BV03,WASTE COLLECTION,BV03G,DEPT STREETSCENE,EMPLOYEES RELATED EXPENDITURE,1,Human Resources,26,AGENCY WORKERS,1050,07/10/2016,567857,107.92 ,Revenue,BERRY RECRUITMENT LIMITED,07036111
Fareham Borough Council,http://statistics.data.gov.uk/id/local-authority/24UE,ENVIRONMENT AND REGULATORY SER,BV03,WASTE COLLECTION,BV03G,DEPT STREETSCENE,EMPLOYEES RELATED EXPENDITURE,1,Human Resources,26,AGENCY WORKERS,1050,07/10/2016,567857,280.62 ,Revenue,BERRY RECRUITMENT LIMITED,07036111
Fareham Borough Council,http://statistics.data.gov.uk/id/local-authority/24UE,ENVIRONMENT AND REGULATORY SER,BV03,ENVIRONMENTAL HEALTH,BV03C,DEPT STREETSCENE,PREMISES RELATED EXPENDITURE,2,Utilities,37,SEWERAGE & ENV. CHARGES (SWS),2410,07/10/2016,567871,1131.86 ,Revenue,SOUTHERN WATER SERVICES PLC,02366670
Fareham Borough Council,http://statistics.data.gov.uk/id/local-authority/24UE,CAPITAL PROGRAMME - HOUSING SERVICES,CP,NEW HOUSE BUILDING,CP10,CAPITAL - NEW HOUSE BUILDING,PREMISES RELATED EXPENDITURE,2,"Works - Construction, Repair & Maintenance",39,BUILDING CONSTRUCTION,2602,07/10/2016,567872,451758.54 ,Capital,DREW SMITH LTD,02433962
Fareham Borough Council,http://statistics.data.gov.uk/id/local-authority/24UE,HOUSING REVENUE ACCOUNT,BV06,MAINT OF LAWNS VERGES ETC,5030,DEPT of COMMUNITY and STREETSCENE,PREMISES RELATED EXPENDITURE,2,Horticultural,24,R&M OF TREE PRESERVATION,2063,14/10/2016,567875,1669.57 ,Revenue,LOTUS LANDSCAPES LTD,4384134
Fareham Borough Council,http://statistics.data.gov.uk/id/local-authority/24UE,OTHER REVENUE ACCOUNTS,RV,CONTRACT SERVICES D.S.O.,RV14,DEPT of STRATEGIC PLANNING and ENVIRONMENT,SUPPLIES & SERVICES,4,Consultancy,15,STRUCTURAL ENGINEERS FEES,4405,07/10/2016,567880,1715.00 ,Revenue,RUCK CONSULTANCY LIMITED,9335936
Fareham Borough Council,http://statistics.data.gov.uk/id/local-authority/24UE,CAPITAL PROGRAMME - OTHER SERVICES,CP,NEW SCHEMES,CP23,CAPITAL - NEW SCHEMES,SUPPLIES & SERVICES,4,Furniture,21,FURNITURE & EQUIPT. PURCHASES,4000,07/10/2016,567890,299.70 ,Capital,PORTSDOWN OFFICE LIMITED,01779525
Fareham Borough Council,http://statistics.data.gov.uk/id/local-authority/24UE,CAPITAL PROGRAMME - OTHER SERVICES,CP,NEW SCHEMES,CP23,CAPITAL - NEW SCHEMES,SUPPLIES & SERVICES,4,Furniture,21,FURNITURE & EQUIPT. PURCHASES,4000,07/10/2016,567890,4572.54 ,Capital,PORTSDOWN OFFICE LIMITED,01779525
Fareham Borough Council,http://statistics.data.gov.uk/id/local-authority/24UE,CAPITAL PROGRAMME - OTHER SERVICES,CP,NEW SCHEMES,CP23,CAPITAL - NEW SCHEMES,SUPPLIES & SERVICES,4,Furniture,21,FURNITURE & EQUIPT. PURCHASES,4000,07/10/2016,567890,5073.51 ,Capital,PORTSDOWN OFFICE LIMITED,01779525
Fareham Borough Council,http://statistics.data.gov.uk/id/local-authority/24UE,CAPITAL PROGRAMME - OTHER SERVICES,CP,NEW SCHEMES,CP23,CAPITAL - NEW SCHEMES,SUPPLIES & SERVICES,4,Furniture,21,FURNITURE & EQUIPT. PURCHASES,4000,07/10/2016,567890,8548.85 ,Capital,PORTSDOWN OFFICE LIMITED,01779525
Fareham Borough Council,http://statistics.data.gov.uk/id/local-authority/24UE,CAPITAL PROGRAMME - OTHER SERVICES,CP,NEW SCHEMES,CP23,CAPITAL - NEW SCHEMES,SUPPLIES & SERVICES,4,Furniture,21,FURNITURE & EQUIPT. PURCHASES,4000,07/10/2016,567890,2233.80 ,Capital,PORTSDOWN OFFICE LIMITED,01779525
Fareham Borough Council,http://statistics.data.gov.uk/id/local-authority/24UE,CAPITAL PROGRAMME - OTHER SERVICES,CP,NEW SCHEMES,CP23,CAPITAL - NEW SCHEMES,SUPPLIES & SERVICES,4,Furniture,21,FURNITURE & EQUIPT. PURCHASES,4000,07/10/2016,567890,376.11 ,Capital,PORTSDOWN OFFICE LIMITED,01779525
Fareham Borough Council,http://statistics.data.gov.uk/id/local-authority/24UE,CAPITAL PROGRAMME - OTHER SERVICES,CP,NEW SCHEMES,CP23,CAPITAL - NEW SCHEMES,SUPPLIES & SERVICES,4,Furniture,21,FURNITURE & EQUIPT. PURCHASES,4000,07/10/2016,567890,65.64 ,Capital,PORTSDOWN OFFICE LIMITED,01779525
Fareham Borough Council,http://statistics.data.gov.uk/id/local-authority/24UE,CAPITAL PROGRAMME - OTHER SERVICES,CP,NEW SCHEMES,CP23,CAPITAL - NEW SCHEMES,SUPPLIES & SERVICES,4,Furniture,21,FURNITURE & EQUIPT. PURCHASES,4000,07/10/2016,567890,1560.00 ,Capital,PORTSDOWN OFFICE LIMITED,01779525
Fareham Borough Council,http://statistics.data.gov.uk/id/local-authority/24UE,CAPITAL PROGRAMME - OTHER SERVICES,CP,NEW SCHEMES,CP23,CAPITAL - NEW SCHEMES,SUPPLIES & SERVICES,4,Furniture,21,FURNITURE & EQUIPT. PURCHASES,4000,07/10/2016,567890,477.62 ,Capital,PORTSDOWN OFFICE LIMITED,01779525
Fareham Borough Council,http://statistics.data.gov.uk/id/local-authority/24UE,PLANNING SERVICES,BV13,DEVELOPMENT CONTROL,BV13B,DEPT of STRATEGIC PLANNING and ENVIRONMENT,SUPPLIES & SERVICES,4,Facilities & Management Services,19,ADVERTISING,4910,14/10/2016,567894,79.50 ,Revenue,HAMPSHIRE MEDIA LTD,4139403
Fareham Borough Council,http://statistics.data.gov.uk/id/local-authority/24UE,OTHER REVENUE ACCOUNTS,RV,HCC TRANSPORTATION (REVENUE),RV11,DEPT STREETSCENE,THIRD PARTY PAYMENTS,5,Facilities & Management Services,19,PRIVATE CONTRACTORS,5610,14/10/2016,567894,755.00 ,Revenue,HAMPSHIRE MEDIA LTD,4139403
Fareham Borough Council,http://statistics.data.gov.uk/id/local-authority/24UE,CAPITAL PROGRAMME - OTHER SERVICES,CP,APPROVED PROGRAMME,CP24,CAPITAL - APPROVED PROGRAMME,SUPPLIES & SERVICES,4,Building Construction Materials,10,FURNITURE & EQUIPT. PURCHASES,4000,14/10/2016,567925,7469.55 ,Capital,RICHARDSON DECORATING CONTRACTORS LTD,4506973
Fareham Borough Council,http://statistics.data.gov.uk/id/local-authority/24UE,BALANCE SHEET,BS,BAL. SHEET - D.S.O.,BS1,BAL. SHEET - D.S.O.,TOTAL ASSETS LESS LIABILITIES,BS100,Vehicle Management,38,MATERIALS SUSPENSE ACCOUNT (VE,A016,21/10/2016,567926,13513.50 ,Balance Sheet,WESSEX PETROLEUM LTD,01024472
Fareham Borough Council,http://statistics.data.gov.uk/id/local-authority/24UE,HIGHWAYS ROADS AND TRANSPORT,BV12,TRAFFIC MANAGEMENT & RD SAFETY,BV12C,DEPT STREETSCENE,THIRD PARTY PAYMENTS,5,"Works - Construction, Repair & Maintenance",39,PRIVATE CONTRACTORS,5610,07/10/2016,568253,615.60 ,Revenue,COUPE LINE (SOUTHERN),07232512
Fareham Borough Council,http://statistics.data.gov.uk/id/local-authority/24UE,ENVIRONMENT AND REGULATORY SER,BV03,STREET CLEANSING,BV03F,DEPT STREETSCENE,TRANSPORT RELATED EXPENDITURE,3,Vehicle Management,38,ROUTINE REPAIRS VEHICLES/PLANT,3010,14/10/2016,568257,238.26 ,Revenue,JOHNSTON SWEEPERS LIMITED,00199841
Fareham Borough Council,http://statistics.data.gov.uk/id/local-authority/24UE,ENVIRONMENT AND REGULATORY SER,BV03,STREET CLEANSING,BV03F,DEPT STREETSCENE,TRANSPORT RELATED EXPENDITURE,3,Vehicle Management,38,ROUTINE REPAIRS VEHICLES/PLANT,3010,14/10/2016,568257,681.66 ,Revenue,JOHNSTON SWEEPERS LIMITED,00199841
Fareham Borough Council,http://statistics.data.gov.uk/id/local-authority/24UE,ENVIRONMENT AND REGULATORY SER,BV03,STREET CLEANSING,BV03F,DEPT STREETSCENE,TRANSPORT RELATED EXPENDITURE,3,Vehicle Management,38,ROUTINE REPAIRS VEHICLES/PLANT,3010,14/10/2016,568257,65.90 ,Revenue,JOHNSTON SWEEPERS LIMITED,00199841
Fareham Borough Council,http://statistics.data.gov.uk/id/local-authority/24UE,ENVIRONMENT AND REGULATORY SER,BV03,STREET CLEANSING,BV03F,DEPT STREETSCENE,TRANSPORT RELATED EXPENDITURE,3,Vehicle Management,38,ROUTINE REPAIRS VEHICLES/PLANT,3010,14/10/2016,568257,30.53 ,Revenue,JOHNSTON SWEEPERS LIMITED,00199841
Fareham Borough Council,http://statistics.data.gov.uk/id/local-authority/24UE,CULTURAL AND RELATED SERVICES,BV09,RECREATION AND SPORT,BV09B,DEPT of COMMUNITY and STREETSCENE,SUPPLIES & SERVICES,4,Horticultural,24,SUB-CONTRACTORS CHARGES,4432,07/10/2016,568261,960.00 ,Revenue,BRIAN CULL,
Fareham Borough Council,http://statistics.data.gov.uk/id/local-authority/24UE,OTHER REVENUE ACCOUNTS,RV,NON WORK GROUP HOLDING ACCOUNT,RV18,DEPT of FINANCE and RESOURCES,EMPLOYEES RELATED EXPENDITURE,1,Healthcare,31,MEDICAL EXPENSES,1907,07/10/2016,568265,570.00 ,Revenue,OCCUPATIONAL HEALTH 1ST,7836183
Fareham Borough Council,http://statistics.data.gov.uk/id/local-authority/24UE,ENVIRONMENT AND REGULATORY SER,BV03,CEMETERIES CREM & MORTUARY,BV03A,DEPT STREETSCENE,PREMISES RELATED EXPENDITURE,2,Horticultural,24,R&M OF TREE PRESERVATION,2063,07/10/2016,568268,330.00 ,Revenue,CHRISTOPHER HOARE TREE SERVICE LTD,04766544
Fareham Borough Council,http://statistics.data.gov.uk/id/local-authority/24UE,CULTURAL AND RELATED SERVICES,BV09,RECREATION AND SPORT,BV09B,DEPT STREETSCENE,PREMISES RELATED EXPENDITURE,2,Horticultural,24,R&M OF TREE PRESERVATION,2063,07/10/2016,568268,86.00 ,Revenue,CHRISTOPHER HOARE TREE SERVICE LTD,04766544
Fareham Borough Council,http://statistics.data.gov.uk/id/local-authority/24UE,CULTURAL AND RELATED SERVICES,BV09,RECREATION AND SPORT,BV09B,DEPT of COMMUNITY and STREETSCENE,PREMISES RELATED EXPENDITURE,2,Horticultural,24,R&M OF TREE PRESERVATION,2063,07/10/2016,568268,66.00 ,Revenue,CHRISTOPHER HOARE TREE SERVICE LTD,04766544
Fareham Borough Council,http://statistics.data.gov.uk/id/local-authority/24UE,CULTURAL AND RELATED SERVICES,BV09,RECREATION AND SPORT,BV09B,DEPT of COMMUNITY and STREETSCENE,PREMISES RELATED EXPENDITURE,2,Horticultural,24,R&M OF TREE PRESERVATION,2063,07/10/2016,568268,178.00 ,Revenue,CHRISTOPHER HOARE TREE SERVICE LTD,04766544
Fareham Borough Council,http://statistics.data.gov.uk/id/local-authority/24UE,OTHER REVENUE ACCOUNTS,RV,CONTRACT SERVICES D.S.O.,RV14,DEPT of STRATEGIC PLANNING and ENVIRONMENT,EMPLOYEES RELATED EXPENDITURE,1,Local/Central Government,98,PCC - EMPLOYEE COSTS,1044,07/10/2016,568281,9637.47 ,Revenue,PORTSMOUTH CITY COUNCIL,
Fareham Borough Council,http://statistics.data.gov.uk/id/local-authority/24UE,OTHER REVENUE ACCOUNTS,RV,CONTRACT SERVICES D.S.O.,RV14,DEPT of STRATEGIC PLANNING and ENVIRONMENT,EMPLOYEES RELATED EXPENDITURE,1,Local/Central Government,98,AGENCY WORKERS,1050,07/10/2016,568281,-0.11 ,Revenue,PORTSMOUTH CITY COUNCIL,
Fareham Borough Council,http://statistics.data.gov.uk/id/local-authority/24UE,OTHER REVENUE ACCOUNTS,RV,CONTRACT SERVICES D.S.O.,RV14,DEPT of STRATEGIC PLANNING and ENVIRONMENT,TRANSPORT RELATED EXPENDITURE,3,Local/Central Government,98,PCC - CAR ALLOWANCES,3433,07/10/2016,568281,34.95 ,Revenue,PORTSMOUTH CITY COUNCIL,
Fareham Borough Council,http://statistics.data.gov.uk/id/local-authority/24UE,OTHER REVENUE ACCOUNTS,RV,CONTRACT SERVICES D.S.O.,RV14,DEPT of STRATEGIC PLANNING and ENVIRONMENT,SUPPLIES & SERVICES,4,Local/Central Government,98,STATIONERY,4320,07/10/2016,568281,5.84 ,Revenue,PORTSMOUTH CITY COUNCIL,
Fareham Borough Council,http://statistics.data.gov.uk/id/local-authority/24UE,OTHER REVENUE ACCOUNTS,RV,CONTRACT SERVICES D.S.O.,RV14,DEPT of STRATEGIC PLANNING and ENVIRONMENT,SUPPLIES & SERVICES,4,Local/Central Government,98,POSTAGES,4500,07/10/2016,568281,2.00 ,Revenue,PORTSMOUTH CITY COUNCIL,
Fareham Borough Council,http://statistics.data.gov.uk/id/local-authority/24UE,OTHER REVENUE ACCOUNTS,RV,CONTRACT SERVICES D.S.O.,RV14,DEPT of STRATEGIC PLANNING and ENVIRONMENT,SUPPLIES & SERVICES,4,Local/Central Government,98,MOBILE TELEPHONES,4514,07/10/2016,568281,226.00 ,Revenue,PORTSMOUTH CITY COUNCIL,
Fareham Borough Council,http://statistics.data.gov.uk/id/local-authority/24UE,OTHER REVENUE ACCOUNTS,RV,CONTRACT SERVICES D.S.O.,RV14,DEPT of STRATEGIC PLANNING and ENVIRONMENT,THIRD PARTY PAYMENTS,5,Local/Central Government,98,PCC - B C PARTNERSHIP,5170,07/10/2016,568281,4415.42 ,Revenue,PORTSMOUTH CITY COUNCIL,
Fareham Borough Council,http://statistics.data.gov.uk/id/local-authority/24UE,HOUSING REVENUE ACCOUNT,BV06,GENERAL ADMINISTRATION EXPENSE,5021,DEPT of COMMUNITY and STREETSCENE,EMPLOYEES RELATED EXPENDITURE,1,Education,17,TRAINING COURSES EMPLOYEES,1909,07/10/2016,568282,2240.00 ,Revenue,HIGHBURY COLLEGE,
Fareham Borough Council,http://statistics.data.gov.uk/id/local-authority/24UE,OTHER REVENUE ACCOUNTS,RV,CONTRACT SERVICES D.S.O.,RV14,DEPT of STRATEGIC PLANNING and ENVIRONMENT,SUPPLIES & SERVICES,4,Local/Central Government,98,SUB-CONTRACTORS CHARGES,4432,07/10/2016,568294,658.00 ,Revenue,WINCHESTER CITY COUNCIL,
Fareham Borough Council,http://statistics.data.gov.uk/id/local-authority/24UE,CAPITAL PROGRAMME - HOUSING SERVICES,CP,HOUSE RENOVATION GRANTS,CP11,CAPITAL - HOUSE RENOVATION GRANTS,SUPPLIES & SERVICES,4,Unclassified,,GRANTS AND SUBSCRIPTIONS,4700,07/10/2016,568297,1098.00 ,Capital,D & T BATHROOMS,
Fareham Borough Council,http://statistics.data.gov.uk/id/local-authority/24UE,CAPITAL PROGRAMME - HOUSING SERVICES,CP,HOUSE RENOVATION GRANTS,CP11,CAPITAL - HOUSE RENOVATION GRANTS,SUPPLIES & SERVICES,4,Unclassified,,GRANTS AND SUBSCRIPTIONS,4700,07/10/2016,568298,4690.00 ,Capital,J WASSELL BUILDERS LIMITED,04487976
Fareham Borough Council,http://statistics.data.gov.uk/id/local-authority/24UE,OTHER REVENUE ACCOUNTS,RV,NON WORK GROUP HOLDING ACCOUNT,RV18,DEPT of FINANCE and RESOURCES,SUPPLIES & SERVICES,4,Information Communication Technology,27,FURNITURE & EQUIPT. MAINT.,4030,07/10/2016,568322,553.22 ,Revenue,BLUE CHIP DATA SYSTEMS LTD,02708840
Fareham Borough Council,http://statistics.data.gov.uk/id/local-authority/24UE,OTHER REVENUE ACCOUNTS,RV,NON WORK GROUP HOLDING ACCOUNT,RV18,DEPT of FINANCE and RESOURCES,SUPPLIES & SERVICES,4,Information Communication Technology,27,FURNITURE & EQUIPT. MAINT.,4030,07/10/2016,568323,508.00 ,Revenue,BLUE CHIP DATA SYSTEMS LTD,02708840
Fareham Borough Council,http://statistics.data.gov.uk/id/local-authority/24UE,PLANNING SERVICES,BV13,PLANNING POLICY,BV13C,DEPT of STRATEGIC PLANNING and ENVIRONMENT,SUPPLIES & SERVICES,4,Consultancy,15,CONSULTANTS FEES,4401,07/10/2016,568324,2725.00 ,Revenue,WESSEX ECONOMICS LTD,8290604
Fareham Borough Council,http://statistics.data.gov.uk/id/local-authority/24UE,CULTURAL AND RELATED SERVICES,BV09,CULTURE AND HERITAGE,BV09A,DEPT of COMMUNITY and STREETSCENE,SUPPLIES & SERVICES,4,Art & Leisure Services,29,PROMOTER,4916,07/10/2016,568325,4777.49 ,Revenue,MORNINGSIDE MANAGEMENT LTD,05748350
Fareham Borough Council,http://statistics.data.gov.uk/id/local-authority/24UE,CULTURAL AND RELATED SERVICES,BV09,CULTURE AND HERITAGE,BV09A,DEPT of COMMUNITY and STREETSCENE,SUPPLIES & SERVICES,4,Building Construction Materials,10,CONTRACT CATERING,4110,21/10/2016,568328,1950.19 ,Revenue,A C ENTERTAINMENT TECHNOLOGIES LTD,1626564
Fareham Borough Council,http://statistics.data.gov.uk/id/local-authority/24UE,CENTRAL SERVICES,BV07,CENTRAL SERVICES TO THE PUBLIC,BV07B,DEPT of COMMUNITY and STREETSCENE,SUPPLIES & SERVICES,4,Local/Central Government,98,LEGAL FEES,4400,14/10/2016,568329,2931.50 ,Revenue,HAMPSHIRE COUNTY COUNCIL,
Fareham Borough Council,http://statistics.data.gov.uk/id/local-authority/24UE,CENTRAL SERVICES,BV07,CENTRAL SERVICES TO THE PUBLIC,BV07B,DEPT of FINANCE and RESOURCES,SUPPLIES & SERVICES,4,Human Resources,26,SEMINAR/CONFERENCES EMPLOYEES,4612,07/10/2016,568331,1708.28 ,Revenue,ASSOCIATION OF ELECTORAL ADMINISTRATORS LTD,2406897
Fareham Borough Council,http://statistics.data.gov.uk/id/local-authority/24UE,CENTRAL SERVICES,BV07,CENTRAL SERVICES TO THE PUBLIC,BV07B,DEPT of COMMUNITY and STREETSCENE,SUPPLIES & SERVICES,4,Financial Services,20,BANK CHARGES,4954,07/10/2016,568332,1035.63 ,Revenue,ALLPAY LIMITED,02933191
Fareham Borough Council,http://statistics.data.gov.uk/id/local-authority/24UE,CENTRAL SERVICES,BV07,CENTRAL SERVICES TO THE PUBLIC,BV07B,DEPT of COMMUNITY and STREETSCENE,SUPPLIES & SERVICES,4,Financial Services,20,SPECIAL EXPENDITURE,4999,07/10/2016,568332,245.30 ,Revenue,ALLPAY LIMITED,02933191
Fareham Borough Council,http://statistics.data.gov.uk/id/local-authority/24UE,CENTRAL SERVICES,BV07,CENTRAL SERVICES TO THE PUBLIC,BV07B,DEPT of COMMUNITY and STREETSCENE,SUPPLIES & SERVICES,4,Financial Services,20,BANK CHARGES,4954,07/10/2016,568332,47.86 ,Revenue,ALLPAY LIMITED,02933191
Fareham Borough Council,http://statistics.data.gov.uk/id/local-authority/24UE,CENTRAL SERVICES,BV07,CENTRAL SERVICES TO THE PUBLIC,BV07B,DEPT of COMMUNITY and STREETSCENE,SUPPLIES & SERVICES,4,Financial Services,20,SPECIAL EXPENDITURE,4999,07/10/2016,568332,4.30 ,Revenue,ALLPAY LIMITED,02933191
Fareham Borough Council,http://statistics.data.gov.uk/id/local-authority/24UE,GENERAL FUND HOUSING,BV05,HOUSING BENEFIT ADMINISTRATION,BV05H,DEPT of COMMUNITY and STREETSCENE,SUPPLIES & SERVICES,4,Information Communication Technology,27,COMPUTER SOFTWARE,4531,14/10/2016,568336,1690.00 ,Revenue,ENTITLEDTO LTD,05191376
Fareham Borough Council,http://statistics.data.gov.uk/id/local-authority/24UE,CENTRAL SERVICES,BV07,CENTRAL SERVICES TO THE PUBLIC,BV07B,DEPT of COMMUNITY and STREETSCENE,SUPPLIES & SERVICES,4,Information Communication Technology,27,COMPUTER SOFTWARE,4531,14/10/2016,568336,910.00 ,Revenue,ENTITLEDTO LTD,05191376
Fareham Borough Council,http://statistics.data.gov.uk/id/local-authority/24UE,GENERAL FUND HOUSING,BV05,HOUSING BENEFIT ADMINISTRATION,BV05H,DEPT of COMMUNITY and STREETSCENE,EMPLOYEES RELATED EXPENDITURE,1,Human Resources,26,AGENCY WORKERS,1050,07/10/2016,568345,672.28 ,Revenue,EDEN BROWN SYNERGY,3643845
Fareham Borough Council,http://statistics.data.gov.uk/id/local-authority/24UE,CENTRAL SERVICES,BV07,CENTRAL SERVICES TO THE PUBLIC,BV07B,DEPT of COMMUNITY and STREETSCENE,EMPLOYEES RELATED EXPENDITURE,1,Human Resources,26,AGENCY WORKERS,1050,07/10/2016,568345,362.00 ,Revenue,EDEN BROWN SYNERGY,3643845
Fareham Borough Council,http://statistics.data.gov.uk/id/local-authority/24UE,GENERAL FUND HOUSING,BV05,HOUSING BENEFIT ADMINISTRATION,BV05H,DEPT of COMMUNITY and STREETSCENE,EMPLOYEES RELATED EXPENDITURE,1,Human Resources,26,AGENCY WORKERS,1050,07/10/2016,568348,671.81 ,Revenue,EDEN BROWN SYNERGY,3643845
Fareham Borough Council,http://statistics.data.gov.uk/id/local-authority/24UE,CENTRAL SERVICES,BV07,CENTRAL SERVICES TO THE PUBLIC,BV07B,DEPT of COMMUNITY and STREETSCENE,EMPLOYEES RELATED EXPENDITURE,1,Human Resources,26,AGENCY WORKERS,1050,07/10/2016,568348,361.75 ,Revenue,EDEN BROWN SYNERGY,3643845
Fareham Borough Council,http://statistics.data.gov.uk/id/local-authority/24UE,CENTRAL SERVICES,BV07,CENTRAL SERVICES TO THE PUBLIC,BV07B,DEPT of COMMUNITY and STREETSCENE,EMPLOYEES RELATED EXPENDITURE,1,Human Resources,26,AGENCY WORKERS,1050,07/10/2016,568349,38.48 ,Revenue,EDEN BROWN SYNERGY,3643845
Fareham Borough Council,http://statistics.data.gov.uk/id/local-authority/24UE,CENTRAL SERVICES,BV07,CENTRAL SERVICES TO THE PUBLIC,BV07B,DEPT of COMMUNITY and STREETSCENE,EMPLOYEES RELATED EXPENDITURE,1,Human Resources,26,AGENCY WORKERS,1050,07/10/2016,568349,731.15 ,Revenue,EDEN BROWN SYNERGY,3643845
Fareham Borough Council,http://statistics.data.gov.uk/id/local-authority/24UE,GENERAL FUND HOUSING,BV05,HOUSING BENEFIT ADMINISTRATION,BV05H,DEPT of COMMUNITY and STREETSCENE,EMPLOYEES RELATED EXPENDITURE,1,Human Resources,26,AGENCY WORKERS,1050,14/10/2016,568350,745.54 ,Revenue,EDEN BROWN SYNERGY,3643845
Fareham Borough Council,http://statistics.data.gov.uk/id/local-authority/24UE,CENTRAL SERVICES,BV07,CENTRAL SERVICES TO THE PUBLIC,BV07B,DEPT of COMMUNITY and STREETSCENE,EMPLOYEES RELATED EXPENDITURE,1,Human Resources,26,AGENCY WORKERS,1050,14/10/2016,568350,401.45 ,Revenue,EDEN BROWN SYNERGY,3643845
Fareham Borough Council,http://statistics.data.gov.uk/id/local-authority/24UE,GENERAL FUND HOUSING,BV05,HOUSING BENEFIT ADMINISTRATION,BV05H,DEPT of COMMUNITY and STREETSCENE,EMPLOYEES RELATED EXPENDITURE,1,Human Resources,26,AGENCY WORKERS,1050,14/10/2016,568351,547.40 ,Revenue,EDEN BROWN SYNERGY,3643845
Fareham Borough Council,http://statistics.data.gov.uk/id/local-authority/24UE,CENTRAL SERVICES,BV07,CENTRAL SERVICES TO THE PUBLIC,BV07B,DEPT of COMMUNITY and STREETSCENE,EMPLOYEES RELATED EXPENDITURE,1,Human Resources,26,AGENCY WORKERS,1050,14/10/2016,568351,294.76 ,Revenue,EDEN BROWN SYNERGY,3643845
Fareham Borough Council,http://statistics.data.gov.uk/id/local-authority/24UE,CENTRAL SERVICES,BV07,CENTRAL SERVICES TO THE PUBLIC,BV07B,DEPT of COMMUNITY and STREETSCENE,EMPLOYEES RELATED EXPENDITURE,1,Human Resources,26,AGENCY WORKERS,1050,14/10/2016,568352,43.47 ,Revenue,EDEN BROWN SYNERGY,3643845
Fareham Borough Council,http://statistics.data.gov.uk/id/local-authority/24UE,CENTRAL SERVICES,BV07,CENTRAL SERVICES TO THE PUBLIC,BV07B,DEPT of COMMUNITY and STREETSCENE,EMPLOYEES RELATED EXPENDITURE,1,Human Resources,26,AGENCY WORKERS,1050,14/10/2016,568352,826.03 ,Revenue,EDEN BROWN SYNERGY,3643845
Fareham Borough Council,http://statistics.data.gov.uk/id/local-authority/24UE,GENERAL FUND HOUSING,BV05,HOUSING BENEFIT ADMINISTRATION,BV05H,DEPT of COMMUNITY and STREETSCENE,EMPLOYEES RELATED EXPENDITURE,1,Human Resources,26,AGENCY WORKERS,1050,21/10/2016,568354,758.90 ,Revenue,EDEN BROWN SYNERGY,3643845
Fareham Borough Council,http://statistics.data.gov.uk/id/local-authority/24UE,CENTRAL SERVICES,BV07,CENTRAL SERVICES TO THE PUBLIC,BV07B,DEPT of COMMUNITY and STREETSCENE,EMPLOYEES RELATED EXPENDITURE,1,Human Resources,26,AGENCY WORKERS,1050,21/10/2016,568354,408.64 ,Revenue,EDEN BROWN SYNERGY,3643845
Fareham Borough Council,http://statistics.data.gov.uk/id/local-authority/24UE,CENTRAL SERVICES,BV07,CENTRAL SERVICES TO THE PUBLIC,BV07B,DEPT of COMMUNITY and STREETSCENE,EMPLOYEES RELATED EXPENDITURE,1,Human Resources,26,AGENCY WORKERS,1050,21/10/2016,568355,43.47 ,Revenue,EDEN BROWN SYNERGY,3643845
Fareham Borough Council,http://statistics.data.gov.uk/id/local-authority/24UE,CENTRAL SERVICES,BV07,CENTRAL SERVICES TO THE PUBLIC,BV07B,DEPT of COMMUNITY and STREETSCENE,EMPLOYEES RELATED EXPENDITURE,1,Human Resources,26,AGENCY WORKERS,1050,21/10/2016,568355,826.03 ,Revenue,EDEN BROWN SYNERGY,3643845
Fareham Borough Council,http://statistics.data.gov.uk/id/local-authority/24UE,PLANNING SERVICES,BV13,DEVELOPMENT CONTROL,BV13B,DEPT of STRATEGIC PLANNING and ENVIRONMENT,SUPPLIES & SERVICES,4,Consultancy,15,CONSULTANTS FEES,4401,07/10/2016,568356,1354.00 ,Revenue,redacted personal data,
Fareham Borough Council,http://statistics.data.gov.uk/id/local-authority/24UE,OTHER REVENUE ACCOUNTS,RV,NON WORK GROUP HOLDING ACCOUNT,RV18,DEPT of FINANCE and RESOURCES,SUPPLIES & SERVICES,4,Financial Services,20,GRANTS AND SUBSCRIPTIONS,4700,07/10/2016,568357,3204.00 ,Revenue,REED BUSINESS INFORMATION LTD,00151537
Fareham Borough Council,http://statistics.data.gov.uk/id/local-authority/24UE,CULTURAL AND RELATED SERVICES,BV09,RECREATION AND SPORT,BV09B,DEPT of COMMUNITY and STREETSCENE,PREMISES RELATED EXPENDITURE,2,Horticultural,24,R&M OF TREE PRESERVATION,2063,07/10/2016,568359,628.00 ,Revenue,CHRISTOPHER HOARE TREE SERVICE LTD,04766544
Fareham Borough Council,http://statistics.data.gov.uk/id/local-authority/24UE,CULTURAL AND RELATED SERVICES,BV09,RECREATION AND SPORT,BV09B,DEPT of COMMUNITY and STREETSCENE,PREMISES RELATED EXPENDITURE,2,Horticultural,24,R&M OF TREE PRESERVATION,2063,07/10/2016,568359,120.00 ,Revenue,CHRISTOPHER HOARE TREE SERVICE LTD,04766544
Fareham Borough Council,http://statistics.data.gov.uk/id/local-authority/24UE,ENVIRONMENT AND REGULATORY SER,BV03,WASTE COLLECTION,BV03G,DEPT STREETSCENE,TRANSPORT RELATED EXPENDITURE,3,Vehicle Management,38,ROUTINE REPAIRS VEHICLES/PLANT,3010,07/10/2016,568361,850.00 ,Revenue,BOARHUNT GROUP LTD,02884453
Fareham Borough Council,http://statistics.data.gov.uk/id/local-authority/24UE,CULTURAL AND RELATED SERVICES,BV09,RECREATION AND SPORT,BV09B,DEPT STREETSCENE,PREMISES RELATED EXPENDITURE,2,Horticultural,24,R&M OF TREE PRESERVATION,2063,07/10/2016,568363,825.00 ,Revenue,TITCHFIELD TREE SERVICES LTD,
Fareham Borough Council,http://statistics.data.gov.uk/id/local-authority/24UE,CULTURAL AND RELATED SERVICES,BV09,RECREATION AND SPORT,BV09B,DEPT STREETSCENE,PREMISES RELATED EXPENDITURE,2,Horticultural,24,R&M OF TREE PRESERVATION,2063,07/10/2016,568363,110.00 ,Revenue,TITCHFIELD TREE SERVICES LTD,
Fareham Borough Council,http://statistics.data.gov.uk/id/local-authority/24UE,CULTURAL AND RELATED SERVICES,BV09,RECREATION AND SPORT,BV09B,DEPT STREETSCENE,PREMISES RELATED EXPENDITURE,2,Horticultural,24,R&M OF TREE PRESERVATION,2063,07/10/2016,568363,20.00 ,Revenue,TITCHFIELD TREE SERVICES LTD,
Fareham Borough Council,http://statistics.data.gov.uk/id/local-authority/24UE,CULTURAL AND RELATED SERVICES,BV09,RECREATION AND SPORT,BV09B,DEPT STREETSCENE,PREMISES RELATED EXPENDITURE,2,Horticultural,24,R&M OF TREE PRESERVATION,2063,07/10/2016,568363,215.00 ,Revenue,TITCHFIELD TREE SERVICES LTD,
Fareham Borough Council,http://statistics.data.gov.uk/id/local-authority/24UE,CULTURAL AND RELATED SERVICES,BV09,RECREATION AND SPORT,BV09B,DEPT STREETSCENE,PREMISES RELATED EXPENDITURE,2,Horticultural,24,R&M OF TREE PRESERVATION,2063,07/10/2016,568363,240.00 ,Revenue,TITCHFIELD TREE SERVICES LTD,
Fareham Borough Council,http://statistics.data.gov.uk/id/local-authority/24UE,HOUSING REVENUE ACCOUNT,BV06,MAINT OF LAWNS VERGES ETC,5030,DEPT of COMMUNITY and STREETSCENE,PREMISES RELATED EXPENDITURE,2,Horticultural,24,R&M OF TREE PRESERVATION,2063,07/10/2016,568363,325.00 ,Revenue,TITCHFIELD TREE SERVICES LTD,
Fareham Borough Council,http://statistics.data.gov.uk/id/local-authority/24UE,HOUSING REVENUE ACCOUNT,BV06,MAINT OF LAWNS VERGES ETC,5030,DEPT of COMMUNITY and STREETSCENE,PREMISES RELATED EXPENDITURE,2,Horticultural,24,R&M OF TREE PRESERVATION,2063,07/10/2016,568363,290.00 ,Revenue,TITCHFIELD TREE SERVICES LTD,
Fareham Borough Council,http://statistics.data.gov.uk/id/local-authority/24UE,CAPITAL PROGRAMME - OTHER SERVICES,CP,SCHEMES FUNDED FROM BALANCES,CP20,CAPITAL - SCHEMES FUNDED FROM BALANCES,SUPPLIES & SERVICES,4,Consultancy,15,CONSULTANTS FEES,4401,07/10/2016,568364,3790.00 ,Capital,BAQUS GROUP PLC,6013357
Fareham Borough Council,http://statistics.data.gov.uk/id/local-authority/24UE,CAPITAL PROGRAMME - HOUSING SERVICES,CP,ENABLING ROLE - HOUSING ASSOC.,CP11,CAPITAL - ENABLING ROLE - HOUSING ASSOC.,SUPPLIES & SERVICES,4,Consultancy,15,CONSULTANTS FEES,4401,21/10/2016,568368,920.00 ,Capital,WYG ENVIRONMENT PLANNING TRANSPORT LTD,3050297
Fareham Borough Council,http://statistics.data.gov.uk/id/local-authority/24UE,CULTURAL AND RELATED SERVICES,BV09,RECREATION AND SPORT,BV09B,DEPT STREETSCENE,PREMISES RELATED EXPENDITURE,2,Horticultural,24,R&M OF TREE PRESERVATION,2063,07/10/2016,568369,1876.59 ,Revenue,CEDAR TREE SURGEONS,
Fareham Borough Council,http://statistics.data.gov.uk/id/local-authority/24UE,CULTURAL AND RELATED SERVICES,BV09,RECREATION AND SPORT,BV09B,DEPT of COMMUNITY and STREETSCENE,PREMISES RELATED EXPENDITURE,2,Horticultural,24,R&M OF TREE PRESERVATION,2063,07/10/2016,568369,800.31 ,Revenue,CEDAR TREE SURGEONS,
Fareham Borough Council,http://statistics.data.gov.uk/id/local-authority/24UE,HOUSING REVENUE ACCOUNT,BV06,MAINT OF LAWNS VERGES ETC,5030,DEPT of COMMUNITY and STREETSCENE,PREMISES RELATED EXPENDITURE,2,Horticultural,24,R&M OF TREE PRESERVATION,2063,07/10/2016,568369,883.10 ,Revenue,CEDAR TREE SURGEONS,
Fareham Borough Council,http://statistics.data.gov.uk/id/local-authority/24UE,GENERAL FUND HOUSING,BV05,HOUSING ADVICE,BV05C,DEPT of COMMUNITY and STREETSCENE,EMPLOYEES RELATED EXPENDITURE,1,Human Resources,26,AGENCY WORKERS,1050,21/10/2016,568370,4160.83 ,Revenue,VENN GROUP LTD,04015584
Fareham Borough Council,http://statistics.data.gov.uk/id/local-authority/24UE,CENTRAL SERVICES,BV07,CENTRAL SERVICES TO THE PUBLIC,BV07B,DEPT of COMMUNITY and STREETSCENE,SUPPLIES & SERVICES,4,Information Communication Technology,27,SOFTWARE LICENCES,4530,21/10/2016,568374,545.00 ,Revenue,NORTHGATE PUBLIC SERVICES (UK) LTD,968498
Fareham Borough Council,http://statistics.data.gov.uk/id/local-authority/24UE,OTHER REVENUE ACCOUNTS,RV,CONTRACT SERVICES D.S.O.,RV14,DEPT STREETSCENE,SUPPLIES & SERVICES,4,Clothing,14,PROTECTIVE CLOTHING & UNIFORMS,4200,14/10/2016,568375,45.84 ,Revenue,JOHNSONS APPARELMASTER,00464645
Fareham Borough Council,http://statistics.data.gov.uk/id/local-authority/24UE,OTHER REVENUE ACCOUNTS,RV,NON WORK GROUP HOLDING ACCOUNT,RV18,DEPT STREETSCENE,SUPPLIES & SERVICES,4,Clothing,14,PROTECTIVE CLOTHING & UNIFORMS,4200,14/10/2016,568375,501.94 ,Revenue,JOHNSONS APPARELMASTER,00464645
Fareham Borough Council,http://statistics.data.gov.uk/id/local-authority/24UE,OTHER REVENUE ACCOUNTS,RV,NON WORK GROUP HOLDING ACCOUNT,RV18,DEPT STREETSCENE,TRANSPORT RELATED EXPENDITURE,3,Vehicle Management,38,HIRE OF VEHICLES,3210,21/10/2016,568376,961.98 ,Revenue,TOYOTA MATERIAL HANDLING UK,06265172
Fareham Borough Council,http://statistics.data.gov.uk/id/local-authority/24UE,OTHER REVENUE ACCOUNTS,RV,CONTRACT SERVICES D.S.O.,RV14,DEPT STREETSCENE,SUPPLIES & SERVICES,4,Horticultural,24,MATERIALS (OPERATIONAL),4007,07/10/2016,568377,948.00 ,Revenue,RIGBY TAYLOR LTD,00157345
Fareham Borough Council,http://statistics.data.gov.uk/id/local-authority/24UE,CORPORATE & DEMOCRATIC CORE,BV07A,DEMOCRATIC REP.& MANAGEMENT,BV07AA,DEPT of FINANCE and RESOURCES,SUPPLIES & SERVICES,4,Catering,11,SPECIAL EXPENDITURE,4999,07/10/2016,568379,960.00 ,Revenue,WRIGHT CHOICE CATERING,08448051
Fareham Borough Council,http://statistics.data.gov.uk/id/local-authority/24UE,CORPORATE & DEMOCRATIC CORE,BV07A,DEMOCRATIC REP.& MANAGEMENT,BV07AA,DEPT of FINANCE and RESOURCES,SUPPLIES & SERVICES,4,Catering,11,SPECIAL EXPENDITURE,4999,07/10/2016,568380,520.00 ,Revenue,WRIGHT CHOICE CATERING,08448051
Fareham Borough Council,http://statistics.data.gov.uk/id/local-authority/24UE,GENERAL FUND HOUSING,BV05,OTHER COUNCIL PROPERTY,BV05K,DEPT of COMMUNITY and STREETSCENE,PREMISES RELATED EXPENDITURE,2,Cleaning & Janitorial,13,R & M OF LEASED PROPERTIES,2001,07/10/2016,568384,111.00 ,Revenue,HI-SPEC FACILITIES SERVICES PLC,4373379
Fareham Borough Council,http://statistics.data.gov.uk/id/local-authority/24UE,CULTURAL AND RELATED SERVICES,BV09,RECREATION AND SPORT,BV09B,DEPT of COMMUNITY and STREETSCENE,PREMISES RELATED EXPENDITURE,2,Cleaning & Janitorial,13,CONTRACT CLEANING - GENERAL,2700,07/10/2016,568384,1319.64 ,Revenue,HI-SPEC FACILITIES SERVICES PLC,4373379
Fareham Borough Council,http://statistics.data.gov.uk/id/local-authority/24UE,CULTURAL AND RELATED SERVICES,BV09,CULTURE AND HERITAGE,BV09A,DEPT of COMMUNITY and STREETSCENE,PREMISES RELATED EXPENDITURE,2,Cleaning & Janitorial,13,CONTRACT CLEANING - GENERAL,2700,07/10/2016,568384,1371.23 ,Revenue,HI-SPEC FACILITIES SERVICES PLC,4373379
Fareham Borough Council,http://statistics.data.gov.uk/id/local-authority/24UE,HIGHWAYS ROADS AND TRANSPORT,BV12,PARKING SERVICES,BV12D,DEPT STREETSCENE,PREMISES RELATED EXPENDITURE,2,Cleaning & Janitorial,13,CONTRACT CLEANING - GENERAL,2700,07/10/2016,568384,74.00 ,Revenue,HI-SPEC FACILITIES SERVICES PLC,4373379
Fareham Borough Council,http://statistics.data.gov.uk/id/local-authority/24UE,HIGHWAYS ROADS AND TRANSPORT,BV12,PARKING SERVICES,BV12D,DEPT STREETSCENE,PREMISES RELATED EXPENDITURE,2,Cleaning & Janitorial,13,CONTRACT CLEANING - GENERAL,2700,07/10/2016,568384,1151.68 ,Revenue,HI-SPEC FACILITIES SERVICES PLC,4373379
Fareham Borough Council,http://statistics.data.gov.uk/id/local-authority/24UE,ENVIRONMENT AND REGULATORY SER,BV03,ENVIRONMENTAL HEALTH,BV03C,DEPT STREETSCENE,PREMISES RELATED EXPENDITURE,2,Cleaning & Janitorial,13,CONTRACT CLEANING - GENERAL,2700,07/10/2016,568384,9375.70 ,Revenue,HI-SPEC FACILITIES SERVICES PLC,4373379
Fareham Borough Council,http://statistics.data.gov.uk/id/local-authority/24UE,HOUSING REVENUE ACCOUNT,BV06,COMMUNAL CARETAKING & CLEANING,5027,DEPT of COMMUNITY and STREETSCENE,PREMISES RELATED EXPENDITURE,2,Cleaning & Janitorial,13,CONTRACT CLEANING - GENERAL,2700,07/10/2016,568384,9495.25 ,Revenue,HI-SPEC FACILITIES SERVICES PLC,4373379
Fareham Borough Council,http://statistics.data.gov.uk/id/local-authority/24UE,OTHER REVENUE ACCOUNTS,RV,CONTRACT SERVICES D.S.O.,RV14,DEPT STREETSCENE,PREMISES RELATED EXPENDITURE,2,Cleaning & Janitorial,13,CONTRACT CLEANING - GENERAL,2700,07/10/2016,568384,86.65 ,Revenue,HI-SPEC FACILITIES SERVICES PLC,4373379
Fareham Borough Council,http://statistics.data.gov.uk/id/local-authority/24UE,OTHER REVENUE ACCOUNTS,RV,CONTRACT SERVICES D.S.O.,RV14,DEPT of STRATEGIC PLANNING and ENVIRONMENT,PREMISES RELATED EXPENDITURE,2,Cleaning & Janitorial,13,CONTRACT CLEANING - GENERAL,2700,07/10/2016,568384,371.32 ,Revenue,HI-SPEC FACILITIES SERVICES PLC,4373379
Fareham Borough Council,http://statistics.data.gov.uk/id/local-authority/24UE,OTHER REVENUE ACCOUNTS,RV,NON WORK GROUP HOLDING ACCOUNT,RV18,DEPT of FINANCE and RESOURCES,PREMISES RELATED EXPENDITURE,2,Cleaning & Janitorial,13,WINDOW CLEANING,2760,07/10/2016,568384,213.34 ,Revenue,HI-SPEC FACILITIES SERVICES PLC,4373379
Fareham Borough Council,http://statistics.data.gov.uk/id/local-authority/24UE,OTHER REVENUE ACCOUNTS,RV,NON WORK GROUP HOLDING ACCOUNT,RV18,DEPT of FINANCE and RESOURCES,PREMISES RELATED EXPENDITURE,2,Cleaning & Janitorial,13,CONTRACT CLEANING - GENERAL,2700,07/10/2016,568384,689.61 ,Revenue,HI-SPEC FACILITIES SERVICES PLC,4373379
Fareham Borough Council,http://statistics.data.gov.uk/id/local-authority/24UE,CAPITAL PROGRAMME - HOUSING SERVICES,CP,RENOVATION OF L.A. DWELLINGS,CP10,CAPITAL - IMPROVEMENTS WORK/MODERNIS'N,SUPPLIES & SERVICES,4,Building Construction Materials,10,MATERIALS (OPERATIONAL),4007,07/10/2016,568398,747.01 ,Capital,SPECIALIST BUILDING DISTRIBUTION LTD,2599297
Fareham Borough Council,http://statistics.data.gov.uk/id/local-authority/24UE,CAPITAL PROGRAMME - HOUSING SERVICES,CP,RENOVATION OF L.A. DWELLINGS,CP10,CAPITAL - IMPROVEMENTS WORK/MODERNIS'N,SUPPLIES & SERVICES,4,Building Construction Materials,10,MATERIALS (OPERATIONAL),4007,07/10/2016,568400,751.39 ,Capital,SPECIALIST BUILDING DISTRIBUTION LTD,2599297
Fareham Borough Council,http://statistics.data.gov.uk/id/local-authority/24UE,CAPITAL PROGRAMME - HOUSING SERVICES,CP,RENOVATION OF L.A. DWELLINGS,CP10,CAPITAL - IMPROVEMENTS WORK/MODERNIS'N,SUPPLIES & SERVICES,4,Building Construction Materials,10,MATERIALS (OPERATIONAL),4007,07/10/2016,568401,520.20 ,Capital,SPECIALIST BUILDING DISTRIBUTION LTD,2599297
Fareham Borough Council,http://statistics.data.gov.uk/id/local-authority/24UE,CULTURAL AND RELATED SERVICES,BV09,CULTURE AND HERITAGE,BV09A,DEPT of COMMUNITY and STREETSCENE,PREMISES RELATED EXPENDITURE,2,"Works - Construction, Repair & Maintenance",39,R & M OF BUILDINGS,2000,07/10/2016,568410,11310.47 ,Revenue,BEAVEN GROUNDWORKS,08786314
Fareham Borough Council,http://statistics.data.gov.uk/id/local-authority/24UE,CULTURAL AND RELATED SERVICES,BV09,RECREATION AND SPORT,BV09B,DEPT of COMMUNITY and STREETSCENE,PREMISES RELATED EXPENDITURE,2,"Works - Construction, Repair & Maintenance",39,GENERAL REPAIRS,2018,07/10/2016,568410,96.80 ,Revenue,BEAVEN GROUNDWORKS,08786314
Fareham Borough Council,http://statistics.data.gov.uk/id/local-authority/24UE,HOUSING REVENUE ACCOUNT,BV06,RESPONSIVE & VOID MAINTENANCE,5901,DEPT STREETSCENE,PREMISES RELATED EXPENDITURE,2,"Works - Construction, Repair & Maintenance",39,GENERAL REPAIRS,2018,07/10/2016,568410,21715.21 ,Revenue,BEAVEN GROUNDWORKS,08786314
Fareham Borough Council,http://statistics.data.gov.uk/id/local-authority/24UE,HOUSING REVENUE ACCOUNT,BV06,RESPONSIVE & VOID MAINTENANCE,5901,DEPT STREETSCENE,PREMISES RELATED EXPENDITURE,2,"Works - Construction, Repair & Maintenance",39,GENERAL REPAIRS,2018,07/10/2016,568410,-21715.21 ,Revenue,BEAVEN GROUNDWORKS,08786314
Fareham Borough Council,http://statistics.data.gov.uk/id/local-authority/24UE,HOUSING REVENUE ACCOUNT,BV06,RESPONSIVE & VOID MAINTENANCE,5901,DEPT STREETSCENE,PREMISES RELATED EXPENDITURE,2,"Works - Construction, Repair & Maintenance",39,GENERAL REPAIRS,2018,07/10/2016,568410,9868.49 ,Revenue,BEAVEN GROUNDWORKS,08786314
Fareham Borough Council,http://statistics.data.gov.uk/id/local-authority/24UE,HOUSING REVENUE ACCOUNT,BV06,RESPONSIVE & VOID MAINTENANCE,5901,DEPT STREETSCENE,PREMISES RELATED EXPENDITURE,2,"Works - Construction, Repair & Maintenance",39,GENERAL REPAIRS,2018,07/10/2016,568410,11846.72 ,Revenue,BEAVEN GROUNDWORKS,08786314
Fareham Borough Council,http://statistics.data.gov.uk/id/local-authority/24UE,HOUSING REVENUE ACCOUNT,BV06,RESPONSIVE & VOID MAINTENANCE,5901,DEPT STREETSCENE,PREMISES RELATED EXPENDITURE,2,Environmental Services,18,GENERAL REPAIRS,2018,14/10/2016,568412,660.00 ,Revenue,R H INSULATION SERVICES LIMITED,02062526
Fareham Borough Council,http://statistics.data.gov.uk/id/local-authority/24UE,HOUSING REVENUE ACCOUNT,BV06,RESPONSIVE & VOID MAINTENANCE,5901,DEPT STREETSCENE,PREMISES RELATED EXPENDITURE,2,Building Construction Materials,10,GENERAL REPAIRS,2018,07/10/2016,568415,531.18 ,Revenue,CADE ROOFING & BUILDING SERVICES LTD,02795780
Fareham Borough Council,http://statistics.data.gov.uk/id/local-authority/24UE,HOUSING REVENUE ACCOUNT,BV06,RESPONSIVE & VOID MAINTENANCE,5901,DEPT STREETSCENE,PREMISES RELATED EXPENDITURE,2,Building Construction Materials,10,GENERAL REPAIRS,2018,07/10/2016,568416,2208.34 ,Revenue,CADE ROOFING & BUILDING SERVICES LTD,02795780
Fareham Borough Council,http://statistics.data.gov.uk/id/local-authority/24UE,HOUSING REVENUE ACCOUNT,BV06,RESPONSIVE & VOID MAINTENANCE,5901,DEPT STREETSCENE,PREMISES RELATED EXPENDITURE,2,Building Construction Materials,10,GENERAL REPAIRS,2018,07/10/2016,568417,1907.43 ,Revenue,CADE ROOFING & BUILDING SERVICES LTD,02795780
Fareham Borough Council,http://statistics.data.gov.uk/id/local-authority/24UE,HOUSING REVENUE ACCOUNT,BV06,RESPONSIVE & VOID MAINTENANCE,5901,DEPT STREETSCENE,PREMISES RELATED EXPENDITURE,2,Building Construction Materials,10,GENERAL REPAIRS,2018,07/10/2016,568419,725.62 ,Revenue,CADE ROOFING & BUILDING SERVICES LTD,02795780
Fareham Borough Council,http://statistics.data.gov.uk/id/local-authority/24UE,HOUSING REVENUE ACCOUNT,BV06,RESPONSIVE & VOID MAINTENANCE,5901,DEPT STREETSCENE,PREMISES RELATED EXPENDITURE,2,Building Construction Materials,10,GENERAL REPAIRS,2018,07/10/2016,568423,-3893.64 ,Revenue,P R JACOBS FENCING,
Fareham Borough Council,http://statistics.data.gov.uk/id/local-authority/24UE,HOUSING REVENUE ACCOUNT,BV06,RESPONSIVE & VOID MAINTENANCE,5901,DEPT STREETSCENE,PREMISES RELATED EXPENDITURE,2,Building Construction Materials,10,GENERAL REPAIRS,2018,07/10/2016,568423,2337.12 ,Revenue,P R JACOBS FENCING,
Fareham Borough Council,http://statistics.data.gov.uk/id/local-authority/24UE,HOUSING REVENUE ACCOUNT,BV06,RESPONSIVE & VOID MAINTENANCE,5901,DEPT STREETSCENE,PREMISES RELATED EXPENDITURE,2,Building Construction Materials,10,GENERAL REPAIRS,2018,07/10/2016,568423,1556.52 ,Revenue,P R JACOBS FENCING,
Fareham Borough Council,http://statistics.data.gov.uk/id/local-authority/24UE,HOUSING REVENUE ACCOUNT,BV06,RESPONSIVE & VOID MAINTENANCE,5901,DEPT STREETSCENE,PREMISES RELATED EXPENDITURE,2,Building Construction Materials,10,GENERAL REPAIRS,2018,07/10/2016,568423,3893.64 ,Revenue,P R JACOBS FENCING,
Fareham Borough Council,http://statistics.data.gov.uk/id/local-authority/24UE,CULTURAL AND RELATED SERVICES,BV09,RECREATION AND SPORT,BV09B,DEPT of COMMUNITY and STREETSCENE,PREMISES RELATED EXPENDITURE,2,"Works - Construction, Repair & Maintenance",39,R & M OF BUILDINGS,2000,07/10/2016,568428,1272.31 ,Revenue,A PURKISS BUILDING & DECORATING LTD,3561215
Fareham Borough Council,http://statistics.data.gov.uk/id/local-authority/24UE,HOUSING REVENUE ACCOUNT,BV06,RESPONSIVE & VOID MAINTENANCE,5901,DEPT STREETSCENE,PREMISES RELATED EXPENDITURE,2,"Works - Construction, Repair & Maintenance",39,GENERAL REPAIRS,2018,07/10/2016,568428,25306.45 ,Revenue,A PURKISS BUILDING & DECORATING LTD,3561215
Fareham Borough Council,http://statistics.data.gov.uk/id/local-authority/24UE,OTHER REVENUE ACCOUNTS,RV,NON WORK GROUP HOLDING ACCOUNT,RV18,DEPT of FINANCE and RESOURCES,PREMISES RELATED EXPENDITURE,2,"Works - Construction, Repair & Maintenance",39,GENERAL REPAIRS,2018,07/10/2016,568428,834.71 ,Revenue,A PURKISS BUILDING & DECORATING LTD,3561215
Fareham Borough Council,http://statistics.data.gov.uk/id/local-authority/24UE,CENTRAL SERVICES,BV07,CENTRAL SERVICES TO THE PUBLIC,BV07B,DEPT of FINANCE and RESOURCES,SUPPLIES & SERVICES,4,Legal Services,28,POSTAGES,4500,07/10/2016,568429,523.16 ,Revenue,ELECTORAL REFORM SERVICES,02263092
Fareham Borough Council,http://statistics.data.gov.uk/id/local-authority/24UE,CENTRAL SERVICES,BV07,CENTRAL SERVICES TO THE PUBLIC,BV07B,DEPT of FINANCE and RESOURCES,SUPPLIES & SERVICES,4,Facilities & Management Services,19,EXTERNAL PRINTING,4310,07/10/2016,568430,2995.30 ,Revenue,FINANCIAL DATA MANAGEMENT LTD,2827644
Fareham Borough Council,http://statistics.data.gov.uk/id/local-authority/24UE,CENTRAL SERVICES,BV07,CENTRAL SERVICES TO THE PUBLIC,BV07B,DEPT of FINANCE and RESOURCES,SUPPLIES & SERVICES,4,Facilities & Management Services,19,EXTERNAL PRINTING,4310,07/10/2016,568431,5588.72 ,Revenue,FINANCIAL DATA MANAGEMENT LTD,2827644
Fareham Borough Council,http://statistics.data.gov.uk/id/local-authority/24UE,HOUSING REVENUE ACCOUNT,BV06,WARDEN SERVICE,5031,DEPT of COMMUNITY and STREETSCENE,PREMISES RELATED EXPENDITURE,2,Consultancy,15,R & M ALARM SPEECH SYSTEMS,2027,14/10/2016,568432,1759.70 ,Revenue,NORTHERN HOUSING CONSORTIUM LTD,04361009
Fareham Borough Council,http://statistics.data.gov.uk/id/local-authority/24UE,CAPITAL PROGRAMME - HOUSING SERVICES,CP,ENABLING ROLE - HOUSING ASSOC.,CP11,CAPITAL - ENABLING ROLE - HOUSING ASSOC.,SUPPLIES & SERVICES,4,"Works - Construction, Repair & Maintenance",39,CONSULTANTS FEES,4401,07/10/2016,568433,19750.00 ,Capital,MH ARCHITECTS,1994233
Fareham Borough Council,http://statistics.data.gov.uk/id/local-authority/24UE,OTHER REVENUE ACCOUNTS,RV,NON WORK GROUP HOLDING ACCOUNT,RV18,DEPT of FINANCE and RESOURCES,SUPPLIES & SERVICES,4,Information Communication Technology,27,FURNITURE & EQUIPT.-RENTS/LSES,4040,21/10/2016,568437,763.11 ,Revenue,ANNODATA LTD,2246366
Fareham Borough Council,http://statistics.data.gov.uk/id/local-authority/24UE,OTHER REVENUE ACCOUNTS,RV,CONTRACT SERVICES D.S.O.,RV14,DEPT of STRATEGIC PLANNING and ENVIRONMENT,SUPPLIES & SERVICES,4,Information Communication Technology,27,COMPUTER SOFTWARE,4531,21/10/2016,568438,3510.00 ,Revenue,BRIGHTER GRAPHICS LIMITED,4132496
Fareham Borough Council,http://statistics.data.gov.uk/id/local-authority/24UE,CAPITAL PROGRAMME - OTHER SERVICES,CP,COMPUTER APPROVED,CP23,CAPITAL - COMPUTER APPROVED,SUPPLIES & SERVICES,4,Information Communication Technology,27,FURNITURE & EQUIPT. PURCHASES,4000,07/10/2016,568439,1035.00 ,Capital,TENSOR PLC,OC306959
Fareham Borough Council,http://statistics.data.gov.uk/id/local-authority/24UE,CULTURAL AND RELATED SERVICES,BV09,CULTURE AND HERITAGE,BV09A,DEPT of COMMUNITY and STREETSCENE,SUPPLIES & SERVICES,4,Financial Services,20,SECURITY SERVICES,4409,07/10/2016,568441,38.74 ,Revenue,KEYLINE CHARTERED SECURITY LTD,3754578
Fareham Borough Council,http://statistics.data.gov.uk/id/local-authority/24UE,HIGHWAYS ROADS AND TRANSPORT,BV12,PARKING SERVICES,BV12D,DEPT STREETSCENE,SUPPLIES & SERVICES,4,Financial Services,20,SECURITY SERVICES,4409,07/10/2016,568441,4333.55 ,Revenue,KEYLINE CHARTERED SECURITY LTD,3754578
Fareham Borough Council,http://statistics.data.gov.uk/id/local-authority/24UE,OTHER REVENUE ACCOUNTS,RV,NON WORK GROUP HOLDING ACCOUNT,RV18,DEPT of FINANCE and RESOURCES,SUPPLIES & SERVICES,4,Financial Services,20,SECURITY SERVICES,4409,07/10/2016,568441,38.75 ,Revenue,KEYLINE CHARTERED SECURITY LTD,3754578
Fareham Borough Council,http://statistics.data.gov.uk/id/local-authority/24UE,OTHER REVENUE ACCOUNTS,RV,NON WORK GROUP HOLDING ACCOUNT,RV18,DEPT of FINANCE and RESOURCES,SUPPLIES & SERVICES,4,Information Communication Technology,27,SOFTWARE LICENCES,4530,28/10/2016,568444,231.90 ,Revenue,BYTES SOFTWARE SERVICES LTD,1616977
Fareham Borough Council,http://statistics.data.gov.uk/id/local-authority/24UE,OTHER REVENUE ACCOUNTS,RV,NON WORK GROUP HOLDING ACCOUNT,RV18,DEPT of FINANCE and RESOURCES,SUPPLIES & SERVICES,4,Information Communication Technology,27,SOFTWARE LICENCES,4530,28/10/2016,568444,1359.60 ,Revenue,BYTES SOFTWARE SERVICES LTD,1616977
Fareham Borough Council,http://statistics.data.gov.uk/id/local-authority/24UE,OTHER REVENUE ACCOUNTS,RV,NON WORK GROUP HOLDING ACCOUNT,RV18,DEPT of FINANCE and RESOURCES,SUPPLIES & SERVICES,4,Information Communication Technology,27,SOFTWARE LICENCES,4530,28/10/2016,568444,707.00 ,Revenue,BYTES SOFTWARE SERVICES LTD,1616977
Fareham Borough Council,http://statistics.data.gov.uk/id/local-authority/24UE,OTHER REVENUE ACCOUNTS,RV,NON WORK GROUP HOLDING ACCOUNT,RV18,DEPT of FINANCE and RESOURCES,SUPPLIES & SERVICES,4,Information Communication Technology,27,SOFTWARE LICENCES,4530,28/10/2016,568444,3074.75 ,Revenue,BYTES SOFTWARE SERVICES LTD,1616977
Fareham Borough Council,http://statistics.data.gov.uk/id/local-authority/24UE,OTHER REVENUE ACCOUNTS,RV,NON WORK GROUP HOLDING ACCOUNT,RV18,DEPT of FINANCE and RESOURCES,SUPPLIES & SERVICES,4,Information Communication Technology,27,SOFTWARE LICENCES,4530,28/10/2016,568444,8796.96 ,Revenue,BYTES SOFTWARE SERVICES LTD,1616977
Fareham Borough Council,http://statistics.data.gov.uk/id/local-authority/24UE,OTHER REVENUE ACCOUNTS,RV,NON WORK GROUP HOLDING ACCOUNT,RV18,DEPT of FINANCE and RESOURCES,SUPPLIES & SERVICES,4,Information Communication Technology,27,SOFTWARE LICENCES,4530,28/10/2016,568444,9333.60 ,Revenue,BYTES SOFTWARE SERVICES LTD,1616977
Fareham Borough Council,http://statistics.data.gov.uk/id/local-authority/24UE,OTHER REVENUE ACCOUNTS,RV,NON WORK GROUP HOLDING ACCOUNT,RV18,DEPT of FINANCE and RESOURCES,SUPPLIES & SERVICES,4,Information Communication Technology,27,SOFTWARE LICENCES,4530,28/10/2016,568444,3729.60 ,Revenue,BYTES SOFTWARE SERVICES LTD,1616977
Fareham Borough Council,http://statistics.data.gov.uk/id/local-authority/24UE,OTHER REVENUE ACCOUNTS,RV,NON WORK GROUP HOLDING ACCOUNT,RV18,DEPT of FINANCE and RESOURCES,SUPPLIES & SERVICES,4,Information Communication Technology,27,SOFTWARE LICENCES,4530,28/10/2016,568444,847.98 ,Revenue,BYTES SOFTWARE SERVICES LTD,1616977
Fareham Borough Council,http://statistics.data.gov.uk/id/local-authority/24UE,OTHER REVENUE ACCOUNTS,RV,NON WORK GROUP HOLDING ACCOUNT,RV18,DEPT of FINANCE and RESOURCES,SUPPLIES & SERVICES,4,Information Communication Technology,27,SOFTWARE LICENCES,4530,28/10/2016,568444,3247.16 ,Revenue,BYTES SOFTWARE SERVICES LTD,1616977
Fareham Borough Council,http://statistics.data.gov.uk/id/local-authority/24UE,OTHER REVENUE ACCOUNTS,RV,NON WORK GROUP HOLDING ACCOUNT,RV18,DEPT of FINANCE and RESOURCES,SUPPLIES & SERVICES,4,Information Communication Technology,27,SOFTWARE LICENCES,4530,28/10/2016,568444,1495.47 ,Revenue,BYTES SOFTWARE SERVICES LTD,1616977
Fareham Borough Council,http://statistics.data.gov.uk/id/local-authority/24UE,OTHER REVENUE ACCOUNTS,RV,NON WORK GROUP HOLDING ACCOUNT,RV18,DEPT of FINANCE and RESOURCES,SUPPLIES & SERVICES,4,Information Communication Technology,27,SOFTWARE LICENCES,4530,28/10/2016,568444,7707.96 ,Revenue,BYTES SOFTWARE SERVICES LTD,1616977
Fareham Borough Council,http://statistics.data.gov.uk/id/local-authority/24UE,OTHER REVENUE ACCOUNTS,RV,NON WORK GROUP HOLDING ACCOUNT,RV18,DEPT of FINANCE and RESOURCES,SUPPLIES & SERVICES,4,Information Communication Technology,27,SOFTWARE LICENCES,4530,28/10/2016,568444,1075.70 ,Revenue,BYTES SOFTWARE SERVICES LTD,1616977
Fareham Borough Council,http://statistics.data.gov.uk/id/local-authority/24UE,CAPITAL PROGRAMME - HOUSING SERVICES,CP,RENOVATION OF L.A. DWELLINGS,CP10,CAPITAL - IMPROVEMENTS WORK/MODERNIS'N,PREMISES RELATED EXPENDITURE,2,Building Construction Materials,10,R & M OF BUILDINGS,2000,07/10/2016,568453,8440.00 ,Capital,TSG BUILDING SERVICES,03908728
Fareham Borough Council,http://statistics.data.gov.uk/id/local-authority/24UE,CULTURAL AND RELATED SERVICES,BV09,RECREATION AND SPORT,BV09B,DEPT STREETSCENE,PREMISES RELATED EXPENDITURE,2,Building Construction Materials,10,R&M OF GROUNDS,2060,07/10/2016,568454,680.00 ,Revenue,J D C OUTDOOR SERVICES,05941402
Fareham Borough Council,http://statistics.data.gov.uk/id/local-authority/24UE,CULTURAL AND RELATED SERVICES,BV09,RECREATION AND SPORT,BV09B,DEPT STREETSCENE,PREMISES RELATED EXPENDITURE,2,Building Construction Materials,10,R & M OF FENCING,2061,07/10/2016,568454,252.00 ,Revenue,J D C OUTDOOR SERVICES,05941402
Fareham Borough Council,http://statistics.data.gov.uk/id/local-authority/24UE,CULTURAL AND RELATED SERVICES,BV09,RECREATION AND SPORT,BV09B,DEPT STREETSCENE,PREMISES RELATED EXPENDITURE,2,Building Construction Materials,10,R & M OF FENCING,2061,07/10/2016,568454,105.00 ,Revenue,J D C OUTDOOR SERVICES,05941402
Fareham Borough Council,http://statistics.data.gov.uk/id/local-authority/24UE,CULTURAL AND RELATED SERVICES,BV09,RECREATION AND SPORT,BV09B,DEPT STREETSCENE,PREMISES RELATED EXPENDITURE,2,Building Construction Materials,10,R&M OF GROUNDS,2060,07/10/2016,568454,564.00 ,Revenue,J D C OUTDOOR SERVICES,05941402
Fareham Borough Council,http://statistics.data.gov.uk/id/local-authority/24UE,GENERAL FUND HOUSING,BV05,HOMELESSNESS,BV05F,DEPT of COMMUNITY and STREETSCENE,SUPPLIES & SERVICES,4,Unclassified,,LOCAL ASSISTANCE PAYMENT,4727,07/10/2016,568459,4070.00 ,Revenue,redacted personal data,
Fareham Borough Council,http://statistics.data.gov.uk/id/local-authority/24UE,ENVIRONMENT AND REGULATORY SER,BV03,ENVIRONMENTAL HEALTH,BV03C,DEPT STREETSCENE,PREMISES RELATED EXPENDITURE,2,Utilities,37,SEWERAGE & ENV. CHARGES (SWS),2410,07/10/2016,568462,996.89 ,Revenue,SOUTHERN WATER SERVICES PLC,02366670
Fareham Borough Council,http://statistics.data.gov.uk/id/local-authority/24UE,OTHER REVENUE ACCOUNTS,RV,CONTRACT SERVICES D.S.O.,RV14,DEPT of STRATEGIC PLANNING and ENVIRONMENT,SUPPLIES & SERVICES,4,Local/Central Government,98,SUB-CONTRACTORS CHARGES,4432,07/10/2016,568469,633.67 ,Revenue,NEW FOREST DISTRICT COUNCIL,
Fareham Borough Council,http://statistics.data.gov.uk/id/local-authority/24UE,OTHER REVENUE ACCOUNTS,RV,CONTRACT SERVICES D.S.O.,RV14,DEPT of STRATEGIC PLANNING and ENVIRONMENT,SUPPLIES & SERVICES,4,Local/Central Government,98,SUB-CONTRACTORS CHARGES,4432,07/10/2016,568471,547.25 ,Revenue,TEST VALLEY BOROUGH COUNCIL,
Fareham Borough Council,http://statistics.data.gov.uk/id/local-authority/24UE,OTHER REVENUE ACCOUNTS,RV,CONTRACT SERVICES D.S.O.,RV14,DEPT of STRATEGIC PLANNING and ENVIRONMENT,SUPPLIES & SERVICES,4,Local/Central Government,98,SUB-CONTRACTORS CHARGES,4432,07/10/2016,568472,1092.00 ,Revenue,TEST VALLEY BOROUGH COUNCIL,
Fareham Borough Council,http://statistics.data.gov.uk/id/local-authority/24UE,OTHER REVENUE ACCOUNTS,RV,CONTRACT SERVICES D.S.O.,RV14,DEPT of STRATEGIC PLANNING and ENVIRONMENT,SUPPLIES & SERVICES,4,Local/Central Government,,SUB-CONTRACTORS CHARGES,4432,07/10/2016,568475,617.00 ,Revenue,BASINGSTOKE and DEANE BOROUGH COUNCIL,
Fareham Borough Council,http://statistics.data.gov.uk/id/local-authority/24UE,CAPITAL PROGRAMME - OTHER SERVICES,CP,APPROVED PROGRAMME,CP24,CAPITAL - APPROVED PROGRAMME,PREMISES RELATED EXPENDITURE,2,"Works - Construction, Repair & Maintenance",39,BUILDING CONSTRUCTION,2602,07/10/2016,568511,281094.08 ,Capital,BALFOUR BEATTY REGIONAL CONSTRUCTION LTD,01197246
Fareham Borough Council,http://statistics.data.gov.uk/id/local-authority/24UE,OTHER OPERATING EXPENDITURE,BVB01,HOUSING CAPITAL RECEIPTS POOL,BVB050,DEPT of FINANCE and RESOURCES,TRANSFER PAYMENTS,6,Local/Central Government,98,POOLED CAPITAL RECPT TO GOVT,6902,21/10/2016,568514,49345.39 ,Revenue,DCLG (Dept. for Communities & Local Govt.),
Fareham Borough Council,http://statistics.data.gov.uk/id/local-authority/24UE,CAPITAL PROGRAMME - HOUSING SERVICES,CP,RENOVATION OF L.A. DWELLINGS,CP10,CAPITAL - IMPROVEMENTS WORK/MODERNIS'N,PREMISES RELATED EXPENDITURE,2,Building Construction Materials,10,R & M OF BUILDINGS,2000,07/10/2016,568523,10644.46 ,Capital,MITIE PROPERTY SERVICES (UK) LTD,02935593
Fareham Borough Council,http://statistics.data.gov.uk/id/local-authority/24UE,CAPITAL PROGRAMME - HOUSING SERVICES,CP,RENOVATION OF L.A. DWELLINGS,CP10,CAPITAL - IMPROVEMENTS WORK/MODERNIS'N,PREMISES RELATED EXPENDITURE,2,Building Construction Materials,10,R & M OF BUILDINGS,2000,07/10/2016,568523,16524.61 ,Capital,MITIE PROPERTY SERVICES (UK) LTD,02935593
Fareham Borough Council,http://statistics.data.gov.uk/id/local-authority/24UE,CAPITAL PROGRAMME - HOUSING SERVICES,CP,HOUSE RENOVATION GRANTS,CP11,CAPITAL - HOUSE RENOVATION GRANTS,SUPPLIES & SERVICES,4,Social Community Care Supplies & Services,32,GRANTS AND SUBSCRIPTIONS,4700,14/10/2016,568524,935.00 ,Capital,LIFTECH SYSTEMS (SE) LTD,04834054
Fareham Borough Council,http://statistics.data.gov.uk/id/local-authority/24UE,OTHER REVENUE ACCOUNTS,RV,CONTRACT SERVICES D.S.O.,RV14,DEPT of STRATEGIC PLANNING and ENVIRONMENT,SUPPLIES & SERVICES,4,Local/Central Government,,SUB-CONTRACTORS CHARGES,4432,21/10/2016,568528,1089.00 ,Revenue,SOUTHAMPTON CITY COUNCIL,
Fareham Borough Council,http://statistics.data.gov.uk/id/local-authority/24UE,OTHER REVENUE ACCOUNTS,RV,CONTRACT SERVICES D.S.O.,RV14,DEPT of STRATEGIC PLANNING and ENVIRONMENT,SUPPLIES & SERVICES,4,Health & Safety?,22,CONSULTANTS FEES,4401,07/10/2016,568529,1250.00 ,Revenue,3SFIRE LTD,08411305
Fareham Borough Council,http://statistics.data.gov.uk/id/local-authority/24UE,BALANCE SHEET,BS,BAL. SHEET - COLLECTION FUND,BS1,BAL. SHEET - COLLECTION FUND,PERSONAL ACCOUNTS,BS210,Local/Central Government,98,REVENUE SUPPORT GRANT,P138,07/10/2016,568531,-66227.00 ,Balance Sheet,DCLG (Dept. for Communities & Local Govt.),
Fareham Borough Council,http://statistics.data.gov.uk/id/local-authority/24UE,BALANCE SHEET,BS,BAL. SHEET - COLLECTION FUND,BS1,BAL. SHEET - COLLECTION FUND,PERSONAL ACCOUNTS,BS210,Local/Central Government,98,NNDR POOL - PAYMENTS,P140,07/10/2016,568531,1588339.00 ,Balance Sheet,DCLG (Dept. for Communities & Local Govt.),
Fareham Borough Council,http://statistics.data.gov.uk/id/local-authority/24UE,BALANCE SHEET,BS,BAL. SHEET - COLLECTION FUND,BS1,BAL. SHEET - COLLECTION FUND,PERSONAL ACCOUNTS,BS210,Local/Central Government,98,NNDR POOL - RECEIPTS,P139,07/10/2016,568531,-132352.00 ,Balance Sheet,DCLG (Dept. for Communities & Local Govt.),
Fareham Borough Council,http://statistics.data.gov.uk/id/local-authority/24UE,BALANCE SHEET,BS,BAL. SHEET - COLLECTION FUND,BS1,BAL. SHEET - COLLECTION FUND,PERSONAL ACCOUNTS,BS210,Local/Central Government,98,NNDR POOL - RECEIPTS,P139,07/10/2016,568531,-17002.00 ,Balance Sheet,DCLG (Dept. for Communities & Local Govt.),
Fareham Borough Council,http://statistics.data.gov.uk/id/local-authority/24UE,CAPITAL PROGRAMME - HOUSING SERVICES,CP,RENOVATION OF L.A. DWELLINGS,CP10,CAPITAL - HOUSING CAPITAL HOLDING A/C,PREMISES RELATED EXPENDITURE,2,Unclassified,,LAND/BUILDINGS ACQUISITIONS,2601,14/10/2016,568535,123090.55 ,Capital,BPL SOLICITORS LTD,
Fareham Borough Council,http://statistics.data.gov.uk/id/local-authority/24UE,HOUSING REVENUE ACCOUNT,BV06,WARDEN SERVICE,5031,DEPT of COMMUNITY and STREETSCENE,PREMISES RELATED EXPENDITURE,2,Local/Central Government,98,RENTS - CHICHESTER RENTALS,2210,07/10/2016,568536,5237.35 ,Revenue,CHICHESTER DISTRICT COUNCIL,
Fareham Borough Council,http://statistics.data.gov.uk/id/local-authority/24UE,CULTURAL AND RELATED SERVICES,BV09,RECREATION AND SPORT,BV09B,DEPT of COMMUNITY and STREETSCENE,SUPPLIES & SERVICES,4,Building Construction Materials,10,MATERIALS (OPERATIONAL),4007,21/10/2016,568548,30.33 ,Revenue,ELLIOTT BROTHERS LIMITED,02511005
Fareham Borough Council,http://statistics.data.gov.uk/id/local-authority/24UE,CULTURAL AND RELATED SERVICES,BV09,RECREATION AND SPORT,BV09B,DEPT of COMMUNITY and STREETSCENE,SUPPLIES & SERVICES,4,Building Construction Materials,10,MATERIALS (OPERATIONAL),4007,21/10/2016,568548,158.18 ,Revenue,ELLIOTT BROTHERS LIMITED,02511005
Fareham Borough Council,http://statistics.data.gov.uk/id/local-authority/24UE,ENVIRONMENT AND REGULATORY SER,BV03,ENVIRONMENTAL HEALTH,BV03C,DEPT STREETSCENE,SUPPLIES & SERVICES,4,Building Construction Materials,10,MATERIALS (OPERATIONAL),4007,21/10/2016,568548,42.88 ,Revenue,ELLIOTT BROTHERS LIMITED,02511005
Fareham Borough Council,http://statistics.data.gov.uk/id/local-authority/24UE,HOUSING REVENUE ACCOUNT,BV06,RESPONSIVE & VOID MAINTENANCE,5901,DEPT STREETSCENE,SUPPLIES & SERVICES,4,Building Construction Materials,10,MATERIALS (OPERATIONAL),4007,21/10/2016,568548,1450.04 ,Revenue,ELLIOTT BROTHERS LIMITED,02511005
Fareham Borough Council,http://statistics.data.gov.uk/id/local-authority/24UE,OTHER REVENUE ACCOUNTS,RV,CONTRACT SERVICES D.S.O.,RV14,DEPT STREETSCENE,SUPPLIES & SERVICES,4,Building Construction Materials,10,TOOLS & EQUIPMENT,4002,21/10/2016,568548,494.64 ,Revenue,ELLIOTT BROTHERS LIMITED,02511005
Fareham Borough Council,http://statistics.data.gov.uk/id/local-authority/24UE,OTHER REVENUE ACCOUNTS,RV,CONTRACT SERVICES D.S.O.,RV14,DEPT STREETSCENE,SUPPLIES & SERVICES,4,Building Construction Materials,10,MATERIALS (OPERATIONAL),4007,21/10/2016,568548,1149.40 ,Revenue,ELLIOTT BROTHERS LIMITED,02511005
Fareham Borough Council,http://statistics.data.gov.uk/id/local-authority/24UE,OTHER REVENUE ACCOUNTS,RV,NON WORK GROUP HOLDING ACCOUNT,RV18,DEPT of FINANCE and RESOURCES,SUPPLIES & SERVICES,4,Building Construction Materials,10,MATERIALS (OPERATIONAL),4007,21/10/2016,568548,9.21 ,Revenue,ELLIOTT BROTHERS LIMITED,02511005
Fareham Borough Council,http://statistics.data.gov.uk/id/local-authority/24UE,GENERAL FUND HOUSING,BV05,HOMELESSNESS,BV05F,DEPT of COMMUNITY and STREETSCENE,SUPPLIES & SERVICES,4,Building Construction Materials,10,MATERIALS (OPERATIONAL),4007,07/10/2016,568550,30.96 ,Revenue,ELLIOTT BROTHERS LIMITED,02511005
Fareham Borough Council,http://statistics.data.gov.uk/id/local-authority/24UE,ENVIRONMENT AND REGULATORY SER,BV03,ENVIRONMENTAL HEALTH,BV03C,DEPT STREETSCENE,SUPPLIES & SERVICES,4,Building Construction Materials,10,MATERIALS (OPERATIONAL),4007,07/10/2016,568550,18.58 ,Revenue,ELLIOTT BROTHERS LIMITED,02511005
Fareham Borough Council,http://statistics.data.gov.uk/id/local-authority/24UE,HOUSING REVENUE ACCOUNT,BV06,RESPONSIVE & VOID MAINTENANCE,5901,DEPT STREETSCENE,SUPPLIES & SERVICES,4,Building Construction Materials,10,MATERIALS (OPERATIONAL),4007,07/10/2016,568550,1239.67 ,Revenue,ELLIOTT BROTHERS LIMITED,02511005
Fareham Borough Council,http://statistics.data.gov.uk/id/local-authority/24UE,OTHER REVENUE ACCOUNTS,RV,CONTRACT SERVICES D.S.O.,RV14,DEPT STREETSCENE,SUPPLIES & SERVICES,4,Building Construction Materials,10,MATERIALS (OPERATIONAL),4007,07/10/2016,568550,1257.01 ,Revenue,ELLIOTT BROTHERS LIMITED,02511005
Fareham Borough Council,http://statistics.data.gov.uk/id/local-authority/24UE,OTHER REVENUE ACCOUNTS,RV,CONTRACT SERVICES D.S.O.,RV14,DEPT STREETSCENE,SUPPLIES & SERVICES,4,Social Community Care Supplies & Services,32,MATERIALS (OPERATIONAL),4007,07/10/2016,568551,783.75 ,Revenue,AKW MEDI-CARE LTD,02764920
Fareham Borough Council,http://statistics.data.gov.uk/id/local-authority/24UE,HIGHWAYS ROADS AND TRANSPORT,BV12,PARKING SERVICES,BV12D,DEPT STREETSCENE,SUPPLIES & SERVICES,4,Street & Traffic Management,35,FURNITURE & EQUIPT. MAINT.,4030,07/10/2016,568572,706.68 ,Revenue,CALE UK,01863720
Fareham Borough Council,http://statistics.data.gov.uk/id/local-authority/24UE,CAPITAL PROGRAMME - OTHER SERVICES,CP,SCHEMES FUNDED FROM BALANCES,CP20,CAPITAL - SCHEMES FUNDED FROM BALANCES,SUPPLIES & SERVICES,4,Consultancy,15,CONSULTANTS FEES,4401,07/10/2016,568573,2500.00 ,Capital,BOYLE+SUMMERS LTD,9126275
Fareham Borough Council,http://statistics.data.gov.uk/id/local-authority/24UE,CAPITAL PROGRAMME - OTHER SERVICES,CP,SCHEMES FUNDED FROM BALANCES,CP20,CAPITAL - SCHEMES FUNDED FROM BALANCES,SUPPLIES & SERVICES,4,Consultancy,15,CONSULTANTS FEES,4401,07/10/2016,568574,1300.00 ,Capital,BOYLE+SUMMERS LTD,9126275
Fareham Borough Council,http://statistics.data.gov.uk/id/local-authority/24UE,CULTURAL AND RELATED SERVICES,BV09,RECREATION AND SPORT,BV09B,DEPT of COMMUNITY and STREETSCENE,SUPPLIES & SERVICES,4,Unclassified,,PUBLICITY AND PROMOTION,4912,14/10/2016,568834,10000.00 ,Revenue,ADAM PEATY LIMITED,
Fareham Borough Council,http://statistics.data.gov.uk/id/local-authority/24UE,PLANNING SERVICES,BV13,DEVELOPMENT CONTROL,BV13B,DEPT of STRATEGIC PLANNING and ENVIRONMENT,SUPPLIES & SERVICES,4,Legal Services,28,SUBSCRIPTIONS/FEES TO LA ASSOC,4702,21/10/2016,568835,2424.00 ,Revenue,THOMSON REUTERS LTD,
Fareham Borough Council,http://statistics.data.gov.uk/id/local-authority/24UE,CULTURAL AND RELATED SERVICES,BV09,RECREATION AND SPORT,BV09B,DEPT STREETSCENE,PREMISES RELATED EXPENDITURE,2,Horticultural,24,R&M OF TREE PRESERVATION,2063,14/10/2016,568836,300.00 ,Revenue,CHRISTOPHER HOARE TREE SERVICE LTD,04766544
Fareham Borough Council,http://statistics.data.gov.uk/id/local-authority/24UE,CULTURAL AND RELATED SERVICES,BV09,RECREATION AND SPORT,BV09B,DEPT STREETSCENE,PREMISES RELATED EXPENDITURE,2,Horticultural,24,R&M OF TREE PRESERVATION,2063,14/10/2016,568836,782.00 ,Revenue,CHRISTOPHER HOARE TREE SERVICE LTD,04766544
Fareham Borough Council,http://statistics.data.gov.uk/id/local-authority/24UE,CULTURAL AND RELATED SERVICES,BV09,RECREATION AND SPORT,BV09B,DEPT STREETSCENE,PREMISES RELATED EXPENDITURE,2,Horticultural,24,R&M OF TREE PRESERVATION,2063,14/10/2016,568836,435.00 ,Revenue,CHRISTOPHER HOARE TREE SERVICE LTD,04766544
Fareham Borough Council,http://statistics.data.gov.uk/id/local-authority/24UE,CULTURAL AND RELATED SERVICES,BV09,RECREATION AND SPORT,BV09B,DEPT STREETSCENE,PREMISES RELATED EXPENDITURE,2,Horticultural,24,R&M OF TREE PRESERVATION,2063,14/10/2016,568836,564.00 ,Revenue,CHRISTOPHER HOARE TREE SERVICE LTD,04766544
Fareham Borough Council,http://statistics.data.gov.uk/id/local-authority/24UE,CULTURAL AND RELATED SERVICES,BV09,RECREATION AND SPORT,BV09B,DEPT STREETSCENE,PREMISES RELATED EXPENDITURE,2,Horticultural,24,R&M OF TREE PRESERVATION,2063,14/10/2016,568836,389.00 ,Revenue,CHRISTOPHER HOARE TREE SERVICE LTD,04766544
Fareham Borough Council,http://statistics.data.gov.uk/id/local-authority/24UE,CULTURAL AND RELATED SERVICES,BV09,RECREATION AND SPORT,BV09B,DEPT STREETSCENE,PREMISES RELATED EXPENDITURE,2,Horticultural,24,R&M OF TREE PRESERVATION,2063,14/10/2016,568836,1512.00 ,Revenue,CHRISTOPHER HOARE TREE SERVICE LTD,04766544
Fareham Borough Council,http://statistics.data.gov.uk/id/local-authority/24UE,CULTURAL AND RELATED SERVICES,BV09,RECREATION AND SPORT,BV09B,DEPT STREETSCENE,PREMISES RELATED EXPENDITURE,2,Horticultural,24,R&M OF TREE PRESERVATION,2063,14/10/2016,568836,40.00 ,Revenue,CHRISTOPHER HOARE TREE SERVICE LTD,04766544
Fareham Borough Council,http://statistics.data.gov.uk/id/local-authority/24UE,CULTURAL AND RELATED SERVICES,BV09,RECREATION AND SPORT,BV09B,DEPT STREETSCENE,PREMISES RELATED EXPENDITURE,2,Horticultural,24,R&M OF TREE PRESERVATION,2063,14/10/2016,568836,1657.00 ,Revenue,CHRISTOPHER HOARE TREE SERVICE LTD,04766544
Fareham Borough Council,http://statistics.data.gov.uk/id/local-authority/24UE,CULTURAL AND RELATED SERVICES,BV09,RECREATION AND SPORT,BV09B,DEPT STREETSCENE,PREMISES RELATED EXPENDITURE,2,Horticultural,24,R&M OF TREE PRESERVATION,2063,14/10/2016,568836,990.00 ,Revenue,CHRISTOPHER HOARE TREE SERVICE LTD,04766544
Fareham Borough Council,http://statistics.data.gov.uk/id/local-authority/24UE,OTHER REVENUE ACCOUNTS,RV,NON WORK GROUP HOLDING ACCOUNT,RV18,DEPT STREETSCENE,SUPPLIES & SERVICES,4,Building Construction Materials,10,MATERIALS (OPERATIONAL),4007,21/10/2016,568837,318.40 ,Revenue,INNOTEC SUPPLIES (UK) LTD,03454402
Fareham Borough Council,http://statistics.data.gov.uk/id/local-authority/24UE,OTHER REVENUE ACCOUNTS,RV,NON WORK GROUP HOLDING ACCOUNT,RV18,DEPT STREETSCENE,SUPPLIES & SERVICES,4,Building Construction Materials,10,MATERIALS (OPERATIONAL),4007,21/10/2016,568837,159.20 ,Revenue,INNOTEC SUPPLIES (UK) LTD,03454402
Fareham Borough Council,http://statistics.data.gov.uk/id/local-authority/24UE,OTHER REVENUE ACCOUNTS,RV,NON WORK GROUP HOLDING ACCOUNT,RV18,DEPT STREETSCENE,SUPPLIES & SERVICES,4,Building Construction Materials,10,MATERIALS (OPERATIONAL),4007,21/10/2016,568837,44.36 ,Revenue,INNOTEC SUPPLIES (UK) LTD,03454402
Fareham Borough Council,http://statistics.data.gov.uk/id/local-authority/24UE,OTHER REVENUE ACCOUNTS,RV,NON WORK GROUP HOLDING ACCOUNT,RV18,DEPT STREETSCENE,SUPPLIES & SERVICES,4,Building Construction Materials,10,MATERIALS (OPERATIONAL),4007,21/10/2016,568837,56.00 ,Revenue,INNOTEC SUPPLIES (UK) LTD,03454402
Fareham Borough Council,http://statistics.data.gov.uk/id/local-authority/24UE,OTHER REVENUE ACCOUNTS,RV,NON WORK GROUP HOLDING ACCOUNT,RV18,DEPT of FINANCE and RESOURCES,SUPPLIES & SERVICES,4,Information Communication Technology,27,SOFTWARE LICENCES,4530,21/10/2016,568840,10716.00 ,Revenue,THE TECHNOLOGY FORGE,02293004
Fareham Borough Council,http://statistics.data.gov.uk/id/local-authority/24UE,CAPITAL PROGRAMME - OTHER SERVICES,CP,SCHEMES FUNDED FROM BALANCES,CP20,CAPITAL - SCHEMES FUNDED FROM BALANCES,SUPPLIES & SERVICES,4,Consultancy,15,CONSULTANTS FEES,4401,14/10/2016,568842,550.00 ,Capital,BAQUS GROUP PLC,6013357
Fareham Borough Council,http://statistics.data.gov.uk/id/local-authority/24UE,CAPITAL PROGRAMME - OTHER SERVICES,CP,SCHEMES FUNDED FROM BALANCES,CP20,CAPITAL - SCHEMES FUNDED FROM BALANCES,SUPPLIES & SERVICES,4,Consultancy,15,CONSULTANTS FEES,4401,14/10/2016,568842,35425.50 ,Capital,BAQUS GROUP PLC,6013357
Fareham Borough Council,http://statistics.data.gov.uk/id/local-authority/24UE,CAPITAL PROGRAMME - OTHER SERVICES,CP,SCHEMES FUNDED FROM BALANCES,CP20,CAPITAL - SCHEMES FUNDED FROM BALANCES,SUPPLIES & SERVICES,4,Consultancy,15,CONSULTANTS FEES,4401,14/10/2016,568842,8096.00 ,Capital,BAQUS GROUP PLC,6013357
Fareham Borough Council,http://statistics.data.gov.uk/id/local-authority/24UE,CAPITAL PROGRAMME - OTHER SERVICES,CP,SCHEMES FUNDED FROM BALANCES,CP20,CAPITAL - SCHEMES FUNDED FROM BALANCES,SUPPLIES & SERVICES,4,Consultancy,15,CONSULTANTS FEES,4401,14/10/2016,568843,4487.44 ,Capital,BAQUS GROUP PLC,6013357
Fareham Borough Council,http://statistics.data.gov.uk/id/local-authority/24UE,CAPITAL PROGRAMME - OTHER SERVICES,CP,SCHEMES FUNDED FROM BALANCES,CP20,CAPITAL - SCHEMES FUNDED FROM BALANCES,SUPPLIES & SERVICES,4,Consultancy,15,CONSULTANTS FEES,4401,14/10/2016,568844,450.00 ,Capital,COLIN MITCHELL CONSULTING,
Fareham Borough Council,http://statistics.data.gov.uk/id/local-authority/24UE,CAPITAL PROGRAMME - OTHER SERVICES,CP,SCHEMES FUNDED FROM BALANCES,CP20,CAPITAL - SCHEMES FUNDED FROM BALANCES,SUPPLIES & SERVICES,4,Consultancy,15,CONSULTANTS FEES,4401,14/10/2016,568844,525.00 ,Capital,COLIN MITCHELL CONSULTING,
Fareham Borough Council,http://statistics.data.gov.uk/id/local-authority/24UE,CAPITAL PROGRAMME - OTHER SERVICES,CP,SCHEMES FUNDED FROM BALANCES,CP20,CAPITAL - SCHEMES FUNDED FROM BALANCES,SUPPLIES & SERVICES,4,Consultancy,15,CONSULTANTS FEES,4401,14/10/2016,568844,100.00 ,Capital,COLIN MITCHELL CONSULTING,
Fareham Borough Council,http://statistics.data.gov.uk/id/local-authority/24UE,CAPITAL PROGRAMME - OTHER SERVICES,CP,SCHEMES FUNDED FROM BALANCES,CP20,CAPITAL - SCHEMES FUNDED FROM BALANCES,SUPPLIES & SERVICES,4,Consultancy,15,CONSULTANTS FEES,4401,14/10/2016,568844,125.00 ,Capital,COLIN MITCHELL CONSULTING,
Fareham Borough Council,http://statistics.data.gov.uk/id/local-authority/24UE,CAPITAL PROGRAMME - OTHER SERVICES,CP,SCHEMES FUNDED FROM BALANCES,CP20,CAPITAL - SCHEMES FUNDED FROM BALANCES,SUPPLIES & SERVICES,4,Consultancy,15,CONSULTANTS FEES,4401,14/10/2016,568844,1100.00 ,Capital,COLIN MITCHELL CONSULTING,
Fareham Borough Council,http://statistics.data.gov.uk/id/local-authority/24UE,CAPITAL PROGRAMME - OTHER SERVICES,CP,SCHEMES FUNDED FROM BALANCES,CP20,CAPITAL - SCHEMES FUNDED FROM BALANCES,SUPPLIES & SERVICES,4,Consultancy,15,CONSULTANTS FEES,4401,14/10/2016,568844,525.00 ,Capital,COLIN MITCHELL CONSULTING,
Fareham Borough Council,http://statistics.data.gov.uk/id/local-authority/24UE,GENERAL FUND HOUSING,BV05,HOMELESSNESS,BV05F,DEPT of COMMUNITY and STREETSCENE,SUPPLIES & SERVICES,4,Social Community Care Supplies & Services,32,GRANTS AND SUBSCRIPTIONS,4700,14/10/2016,568848,8750.00 ,Revenue,CITIZEN ADVICE BUREAU,7653014
Fareham Borough Council,http://statistics.data.gov.uk/id/local-authority/24UE,CENTRAL SERVICES,BV07,CENTRAL SERVICES TO THE PUBLIC,BV07B,DEPT of COMMUNITY and STREETSCENE,SUPPLIES & SERVICES,4,Social Community Care Supplies & Services,32,CONTRIBUTION TO RUNNING EXPENS,4703,14/10/2016,568848,28750.00 ,Revenue,CITIZEN ADVICE BUREAU,7653014
Fareham Borough Council,http://statistics.data.gov.uk/id/local-authority/24UE,ENVIRONMENT AND REGULATORY SER,BV03,CEMETERIES CREM & MORTUARY,BV03A,DEPT STREETSCENE,PREMISES RELATED EXPENDITURE,2,Utilities,37,ELECTRICITY,2120,14/10/2016,568849,24.57 ,Revenue,BRITISH GAS BUSINESS,03078711
Fareham Borough Council,http://statistics.data.gov.uk/id/local-authority/24UE,FINANCING & INVESTMENT I&E,BVB02,INVESTMENT PROPERTIES,BVB170,DEPT of FINANCE and RESOURCES,PREMISES RELATED EXPENDITURE,2,Utilities,37,ELECTRICITY,2120,14/10/2016,568849,275.33 ,Revenue,BRITISH GAS BUSINESS,03078711
Fareham Borough Council,http://statistics.data.gov.uk/id/local-authority/24UE,CULTURAL AND RELATED SERVICES,BV09,RECREATION AND SPORT,BV09B,DEPT of COMMUNITY and STREETSCENE,PREMISES RELATED EXPENDITURE,2,Utilities,37,ELECTRICITY,2120,14/10/2016,568849,147.32 ,Revenue,BRITISH GAS BUSINESS,03078711
Fareham Borough Council,http://statistics.data.gov.uk/id/local-authority/24UE,CULTURAL AND RELATED SERVICES,BV09,RECREATION AND SPORT,BV09B,DEPT of COMMUNITY and STREETSCENE,PREMISES RELATED EXPENDITURE,2,Utilities,37,ELECTRICITY,2120,14/10/2016,568849,512.89 ,Revenue,BRITISH GAS BUSINESS,03078711
Fareham Borough Council,http://statistics.data.gov.uk/id/local-authority/24UE,HIGHWAYS ROADS AND TRANSPORT,BV12,PARKING SERVICES,BV12D,DEPT STREETSCENE,PREMISES RELATED EXPENDITURE,2,Utilities,37,ELECTRICITY,2120,14/10/2016,568849,5928.88 ,Revenue,BRITISH GAS BUSINESS,03078711
Fareham Borough Council,http://statistics.data.gov.uk/id/local-authority/24UE,ENVIRONMENT AND REGULATORY SER,BV03,ENVIRONMENTAL HEALTH,BV03C,DEPT STREETSCENE,PREMISES RELATED EXPENDITURE,2,Utilities,37,ELECTRICITY,2120,14/10/2016,568849,198.51 ,Revenue,BRITISH GAS BUSINESS,03078711
Fareham Borough Council,http://statistics.data.gov.uk/id/local-authority/24UE,HOUSING REVENUE ACCOUNT,BV06,COMMUNAL HEATING SERVICES,5025,DEPT of COMMUNITY and STREETSCENE,PREMISES RELATED EXPENDITURE,2,Utilities,37,ELECTRICITY,2120,14/10/2016,568849,2262.61 ,Revenue,BRITISH GAS BUSINESS,03078711
Fareham Borough Council,http://statistics.data.gov.uk/id/local-authority/24UE,HOUSING REVENUE ACCOUNT,BV06,COMMUNAL HEATING SERVICES,5025,DEPT of COMMUNITY and STREETSCENE,PREMISES RELATED EXPENDITURE,2,Utilities,37,ELECTRICITY,2120,14/10/2016,568849,114.89 ,Revenue,BRITISH GAS BUSINESS,03078711
Fareham Borough Council,http://statistics.data.gov.uk/id/local-authority/24UE,HOUSING REVENUE ACCOUNT,BV06,COMMUNAL LIGHTING,5026,DEPT of COMMUNITY and STREETSCENE,PREMISES RELATED EXPENDITURE,2,Utilities,37,ELECTRICITY,2120,14/10/2016,568849,119.61 ,Revenue,BRITISH GAS BUSINESS,03078711
Fareham Borough Council,http://statistics.data.gov.uk/id/local-authority/24UE,HOUSING REVENUE ACCOUNT,BV06,COMMUNAL LIGHTING,5026,DEPT of COMMUNITY and STREETSCENE,PREMISES RELATED EXPENDITURE,2,Utilities,37,ELECTRICITY,2120,14/10/2016,568849,525.56 ,Revenue,BRITISH GAS BUSINESS,03078711
Fareham Borough Council,http://statistics.data.gov.uk/id/local-authority/24UE,HOUSING REVENUE ACCOUNT,BV06,OTHER COMMUNAL SERVICES,5034,DEPT of COMMUNITY and STREETSCENE,PREMISES RELATED EXPENDITURE,2,Utilities,37,AERIALS & TV OUTLETS,2540,14/10/2016,568849,22.69 ,Revenue,BRITISH GAS BUSINESS,03078711
Fareham Borough Council,http://statistics.data.gov.uk/id/local-authority/24UE,OTHER REVENUE ACCOUNTS,RV,NON WORK GROUP HOLDING ACCOUNT,RV18,DEPT of FINANCE and RESOURCES,PREMISES RELATED EXPENDITURE,2,Utilities,37,ELECTRICITY,2120,14/10/2016,568849,545.38 ,Revenue,BRITISH GAS BUSINESS,03078711
Fareham Borough Council,http://statistics.data.gov.uk/id/local-authority/24UE,CULTURAL AND RELATED SERVICES,BV09,CULTURE AND HERITAGE,BV09A,DEPT of COMMUNITY and STREETSCENE,SUPPLIES & SERVICES,4,Financial Services,20,CREDIT CARD CHARGES,4957,14/10/2016,568865,93.44 ,Revenue,WORLDPAY,07316500
Fareham Borough Council,http://statistics.data.gov.uk/id/local-authority/24UE,CULTURAL AND RELATED SERVICES,BV09,CULTURE AND HERITAGE,BV09A,DEPT of COMMUNITY and STREETSCENE,SUPPLIES & SERVICES,4,Financial Services,20,CREDIT CARD CHARGES,4957,14/10/2016,568865,656.56 ,Revenue,WORLDPAY,07316500
Fareham Borough Council,http://statistics.data.gov.uk/id/local-authority/24UE,CULTURAL AND RELATED SERVICES,BV09,RECREATION AND SPORT,BV09B,DEPT of COMMUNITY and STREETSCENE,PREMISES RELATED EXPENDITURE,2,Utilities,37,GAS,2130,14/10/2016,568868,37.37 ,Revenue,CORONA ENERGY RETAIL 1 LIMITED,02798334
Fareham Borough Council,http://statistics.data.gov.uk/id/local-authority/24UE,CULTURAL AND RELATED SERVICES,BV09,CULTURE AND HERITAGE,BV09A,DEPT of COMMUNITY and STREETSCENE,PREMISES RELATED EXPENDITURE,2,Utilities,37,GAS,2130,14/10/2016,568868,403.21 ,Revenue,CORONA ENERGY RETAIL 1 LIMITED,02798334
Fareham Borough Council,http://statistics.data.gov.uk/id/local-authority/24UE,HOUSING REVENUE ACCOUNT,BV06,COMMUNAL HEATING SERVICES,5025,DEPT of COMMUNITY and STREETSCENE,PREMISES RELATED EXPENDITURE,2,Utilities,37,GAS,2130,14/10/2016,568868,756.02 ,Revenue,CORONA ENERGY RETAIL 1 LIMITED,02798334
Fareham Borough Council,http://statistics.data.gov.uk/id/local-authority/24UE,HOUSING REVENUE ACCOUNT,BV06,COMMUNAL HEATING SERVICES,5025,DEPT of COMMUNITY and STREETSCENE,PREMISES RELATED EXPENDITURE,2,Utilities,37,GAS,2130,14/10/2016,568868,612.63 ,Revenue,CORONA ENERGY RETAIL 1 LIMITED,02798334
Fareham Borough Council,http://statistics.data.gov.uk/id/local-authority/24UE,OTHER REVENUE ACCOUNTS,RV,NON WORK GROUP HOLDING ACCOUNT,RV18,DEPT of FINANCE and RESOURCES,PREMISES RELATED EXPENDITURE,2,Utilities,37,GAS,2130,14/10/2016,568868,578.33 ,Revenue,CORONA ENERGY RETAIL 1 LIMITED,02798334
Fareham Borough Council,http://statistics.data.gov.uk/id/local-authority/24UE,OTHER REVENUE ACCOUNTS,RV,NON WORK GROUP HOLDING ACCOUNT,RV18,DEPT of FINANCE and RESOURCES,PREMISES RELATED EXPENDITURE,2,Utilities,37,GAS,2130,14/10/2016,568868,170.29 ,Revenue,CORONA ENERGY RETAIL 1 LIMITED,02798334
Fareham Borough Council,http://statistics.data.gov.uk/id/local-authority/24UE,OTHER REVENUE ACCOUNTS,RV,NON WORK GROUP HOLDING ACCOUNT,RV18,DEPT of FINANCE and RESOURCES,PREMISES RELATED EXPENDITURE,2,Utilities,37,GAS,2130,14/10/2016,568868,178.16 ,Revenue,CORONA ENERGY RETAIL 1 LIMITED,02798334
Fareham Borough Council,http://statistics.data.gov.uk/id/local-authority/24UE,OTHER REVENUE ACCOUNTS,RV,NON WORK GROUP HOLDING ACCOUNT,RV18,DEPT of FINANCE and RESOURCES,PREMISES RELATED EXPENDITURE,2,Facilities & Management Services,19,R & M OF FIXED PLANT,2040,21/10/2016,568870,500.00 ,Revenue,A1R SERVICES LTD,5955828
Fareham Borough Council,http://statistics.data.gov.uk/id/local-authority/24UE,OTHER REVENUE ACCOUNTS,RV,NON WORK GROUP HOLDING ACCOUNT,RV18,DEPT of FINANCE and RESOURCES,PREMISES RELATED EXPENDITURE,2,Consultancy,15,R & M OF BUILDINGS,2000,14/10/2016,568881,645.00 ,Revenue,PERRY ANALYTICAL LTD,04353955
Fareham Borough Council,http://statistics.data.gov.uk/id/local-authority/24UE,HOUSING REVENUE ACCOUNT,BV06,RESPONSIVE & VOID MAINTENANCE,5901,DEPT STREETSCENE,PREMISES RELATED EXPENDITURE,2,Health & Safety?,22,SERVICING,2083,14/10/2016,568894,1904.64 ,Revenue,AXIS FIRE & SECURITY SERVICES,03185513
Fareham Borough Council,http://statistics.data.gov.uk/id/local-authority/24UE,CAPITAL PROGRAMME - HOUSING SERVICES,CP,RENOVATION OF L.A. DWELLINGS,CP10,CAPITAL - ENERGY CONSERVATION,PREMISES RELATED EXPENDITURE,2,Consultancy,15,R & M OF BUILDINGS,2000,28/10/2016,568900,70.00 ,Capital,GAS CONTRACT SERVICES LIMITED,3400365
Fareham Borough Council,http://statistics.data.gov.uk/id/local-authority/24UE,CAPITAL PROGRAMME - HOUSING SERVICES,CP,RENOVATION OF L.A. DWELLINGS,CP10,CAPITAL - ENERGY CONSERVATION,PREMISES RELATED EXPENDITURE,2,Consultancy,15,R & M OF BUILDINGS,2000,28/10/2016,568900,70.00 ,Capital,GAS CONTRACT SERVICES LIMITED,3400365
Fareham Borough Council,http://statistics.data.gov.uk/id/local-authority/24UE,CAPITAL PROGRAMME - HOUSING SERVICES,CP,RENOVATION OF L.A. DWELLINGS,CP10,CAPITAL - ENERGY CONSERVATION,PREMISES RELATED EXPENDITURE,2,Consultancy,15,R & M OF BUILDINGS,2000,28/10/2016,568900,70.00 ,Capital,GAS CONTRACT SERVICES LIMITED,3400365
Fareham Borough Council,http://statistics.data.gov.uk/id/local-authority/24UE,CAPITAL PROGRAMME - HOUSING SERVICES,CP,RENOVATION OF L.A. DWELLINGS,CP10,CAPITAL - ENERGY CONSERVATION,PREMISES RELATED EXPENDITURE,2,Consultancy,15,R & M OF BUILDINGS,2000,28/10/2016,568900,70.00 ,Capital,GAS CONTRACT SERVICES LIMITED,3400365
Fareham Borough Council,http://statistics.data.gov.uk/id/local-authority/24UE,CAPITAL PROGRAMME - HOUSING SERVICES,CP,RENOVATION OF L.A. DWELLINGS,CP10,CAPITAL - ENERGY CONSERVATION,PREMISES RELATED EXPENDITURE,2,Consultancy,15,R & M OF BUILDINGS,2000,28/10/2016,568900,70.00 ,Capital,GAS CONTRACT SERVICES LIMITED,3400365
Fareham Borough Council,http://statistics.data.gov.uk/id/local-authority/24UE,CAPITAL PROGRAMME - HOUSING SERVICES,CP,RENOVATION OF L.A. DWELLINGS,CP10,CAPITAL - ENERGY CONSERVATION,PREMISES RELATED EXPENDITURE,2,Consultancy,15,R & M OF BUILDINGS,2000,28/10/2016,568900,70.00 ,Capital,GAS CONTRACT SERVICES LIMITED,3400365
Fareham Borough Council,http://statistics.data.gov.uk/id/local-authority/24UE,CAPITAL PROGRAMME - HOUSING SERVICES,CP,RENOVATION OF L.A. DWELLINGS,CP10,CAPITAL - ENERGY CONSERVATION,PREMISES RELATED EXPENDITURE,2,Consultancy,15,R & M OF BUILDINGS,2000,28/10/2016,568900,70.00 ,Capital,GAS CONTRACT SERVICES LIMITED,3400365
Fareham Borough Council,http://statistics.data.gov.uk/id/local-authority/24UE,CAPITAL PROGRAMME - HOUSING SERVICES,CP,RENOVATION OF L.A. DWELLINGS,CP10,CAPITAL - ENERGY CONSERVATION,PREMISES RELATED EXPENDITURE,2,Consultancy,15,R & M OF BUILDINGS,2000,28/10/2016,568900,70.00 ,Capital,GAS CONTRACT SERVICES LIMITED,3400365
Fareham Borough Council,http://statistics.data.gov.uk/id/local-authority/24UE,CAPITAL PROGRAMME - HOUSING SERVICES,CP,RENOVATION OF L.A. DWELLINGS,CP10,CAPITAL - ENERGY CONSERVATION,PREMISES RELATED EXPENDITURE,2,Consultancy,15,R & M OF BUILDINGS,2000,28/10/2016,568900,70.00 ,Capital,GAS CONTRACT SERVICES LIMITED,3400365
Fareham Borough Council,http://statistics.data.gov.uk/id/local-authority/24UE,CAPITAL PROGRAMME - HOUSING SERVICES,CP,RENOVATION OF L.A. DWELLINGS,CP10,CAPITAL - ENERGY CONSERVATION,PREMISES RELATED EXPENDITURE,2,Consultancy,15,R & M OF BUILDINGS,2000,28/10/2016,568900,70.00 ,Capital,GAS CONTRACT SERVICES LIMITED,3400365
Fareham Borough Council,http://statistics.data.gov.uk/id/local-authority/24UE,HOUSING REVENUE ACCOUNT,BV06,RESPONSIVE & VOID MAINTENANCE,5901,DEPT STREETSCENE,PREMISES RELATED EXPENDITURE,2,Facilities & Management Services,19,GENERAL REPAIRS,2018,14/10/2016,568907,7343.15 ,Revenue,S A C LTD,01566628
Fareham Borough Council,http://statistics.data.gov.uk/id/local-authority/24UE,CULTURAL AND RELATED SERVICES,BV09,CULTURE AND HERITAGE,BV09A,DEPT of COMMUNITY and STREETSCENE,SUPPLIES & SERVICES,4,Art & Leisure Services,29,PROMOTER,4916,14/10/2016,568914,537.33 ,Revenue,DEREK BLOCK CONCERTS,06232763
Fareham Borough Council,http://statistics.data.gov.uk/id/local-authority/24UE,CULTURAL AND RELATED SERVICES,BV09,CULTURE AND HERITAGE,BV09A,DEPT of COMMUNITY and STREETSCENE,SUPPLIES & SERVICES,4,Catering,11,BAR PROVISIONS,4106,21/10/2016,568920,1168.18 ,Revenue,MOLSON COORS BREWING COMPANY (UK) LTD,26018
Fareham Borough Council,http://statistics.data.gov.uk/id/local-authority/24UE,CULTURAL AND RELATED SERVICES,BV09,CULTURE AND HERITAGE,BV09A,DEPT of COMMUNITY and STREETSCENE,SUPPLIES & SERVICES,4,Catering,11,CONTRACT CATERING,4110,14/10/2016,568925,3300.00 ,Revenue,WRIGHT CHOICE CATERING,08448051
Fareham Borough Council,http://statistics.data.gov.uk/id/local-authority/24UE,HOUSING REVENUE ACCOUNT,BV06,OTHER COMMUNAL SERVICES,5034,DEPT of COMMUNITY and STREETSCENE,PREMISES RELATED EXPENDITURE,2,Utilities,37,AERIALS & TV OUTLETS,2540,14/10/2016,568933,813.48 ,Revenue,SOUTHERN ELECTRIC PLC,02366879
Fareham Borough Council,http://statistics.data.gov.uk/id/local-authority/24UE,ENVIRONMENT AND REGULATORY SER,BV03,FLOOD DEFENCE & LAND DRAINAGE,BV03D,DEPT of STRATEGIC PLANNING and ENVIRONMENT,PREMISES RELATED EXPENDITURE,2,"Works - Construction, Repair & Maintenance",39,R&M OF GROUNDS,2060,14/10/2016,568934,149868.82 ,Revenue,J T MACKLEY & CO LTD,258810
Fareham Borough Council,http://statistics.data.gov.uk/id/local-authority/24UE,HOUSING REVENUE ACCOUNT,BV06,OTHER COMMUNAL SERVICES,5034,DEPT of COMMUNITY and STREETSCENE,PREMISES RELATED EXPENDITURE,2,Utilities,37,SEWERAGE & ENV. CHARGES (SWS),2410,14/10/2016,568937,1387.41 ,Revenue,SOUTHERN WATER SERVICES PLC,02366670
Fareham Borough Council,http://statistics.data.gov.uk/id/local-authority/24UE,HOUSING REVENUE ACCOUNT,BV06,OTHER COMMUNAL SERVICES,5034,DEPT of COMMUNITY and STREETSCENE,PREMISES RELATED EXPENDITURE,2,Utilities,37,WATER CHARGES - SUPPLY (PWC),2400,14/10/2016,568938,692.84 ,Revenue,PORTSMOUTH  WATER LTD,02536455
Fareham Borough Council,http://statistics.data.gov.uk/id/local-authority/24UE,OTHER REVENUE ACCOUNTS,RV,NON WORK GROUP HOLDING ACCOUNT,RV18,DEPT of FINANCE and RESOURCES,SUPPLIES & SERVICES,4,Public Transport,36,REMOVAL & STORAGE OF FURNITURE,4090,21/10/2016,568939,2540.00 ,Revenue,LEATHERBARROWS REMOVALS&STORAGE LTD,01493244
Fareham Borough Council,http://statistics.data.gov.uk/id/local-authority/24UE,CAPITAL PROGRAMME - HOUSING SERVICES,CP,HOUSE RENOVATION GRANTS,CP11,CAPITAL - HOUSE RENOVATION GRANTS,SUPPLIES & SERVICES,4,Unclassified,,GRANTS AND SUBSCRIPTIONS,4700,14/10/2016,568943,2853.34 ,Capital,D & T BATHROOMS,
Fareham Borough Council,http://statistics.data.gov.uk/id/local-authority/24UE,CAPITAL PROGRAMME - HOUSING SERVICES,CP,HOUSE RENOVATION GRANTS,CP11,CAPITAL - HOUSE RENOVATION GRANTS,SUPPLIES & SERVICES,4,Social Community Care Supplies & Services,32,GRANTS AND SUBSCRIPTIONS,4700,14/10/2016,568944,1185.00 ,Capital,LIFTECH SYSTEMS (SE) LTD,04834054
Fareham Borough Council,http://statistics.data.gov.uk/id/local-authority/24UE,CAPITAL PROGRAMME - HOUSING SERVICES,CP,HOUSE RENOVATION GRANTS,CP11,CAPITAL - HOUSE RENOVATION GRANTS,SUPPLIES & SERVICES,4,Unclassified,,GRANTS AND SUBSCRIPTIONS,4700,14/10/2016,568945,530.00 ,Capital,AJH ELECTRICIANS,
Fareham Borough Council,http://statistics.data.gov.uk/id/local-authority/24UE,HOUSING REVENUE ACCOUNT,BV06,RESPONSIVE & VOID MAINTENANCE,5901,DEPT STREETSCENE,PREMISES RELATED EXPENDITURE,2,"Works - Construction, Repair & Maintenance",39,GENERAL REPAIRS,2018,14/10/2016,568955,14295.82 ,Revenue,BCG ELECTRICAL SERVICES LIMITED,5097428
Fareham Borough Council,http://statistics.data.gov.uk/id/local-authority/24UE,CULTURAL AND RELATED SERVICES,BV09,RECREATION AND SPORT,BV09B,DEPT of COMMUNITY and STREETSCENE,PREMISES RELATED EXPENDITURE,2,"Works - Construction, Repair & Maintenance",39,R & M OF BUILDINGS,2000,14/10/2016,568956,65.16 ,Revenue,BCG ELECTRICAL SERVICES LIMITED,5097428
Fareham Borough Council,http://statistics.data.gov.uk/id/local-authority/24UE,CULTURAL AND RELATED SERVICES,BV09,RECREATION AND SPORT,BV09B,DEPT of COMMUNITY and STREETSCENE,PREMISES RELATED EXPENDITURE,2,"Works - Construction, Repair & Maintenance",39,R & M OF BUILDINGS,2000,14/10/2016,568956,36.00 ,Revenue,BCG ELECTRICAL SERVICES LIMITED,5097428
Fareham Borough Council,http://statistics.data.gov.uk/id/local-authority/24UE,HIGHWAYS ROADS AND TRANSPORT,BV12,PARKING SERVICES,BV12D,DEPT STREETSCENE,PREMISES RELATED EXPENDITURE,2,"Works - Construction, Repair & Maintenance",39,R & M OF BUILDINGS,2000,14/10/2016,568956,45.00 ,Revenue,BCG ELECTRICAL SERVICES LIMITED,5097428
Fareham Borough Council,http://statistics.data.gov.uk/id/local-authority/24UE,ENVIRONMENT AND REGULATORY SER,BV03,ENVIRONMENTAL HEALTH,BV03C,DEPT STREETSCENE,PREMISES RELATED EXPENDITURE,2,"Works - Construction, Repair & Maintenance",39,R & M OF BUILDINGS,2000,14/10/2016,568956,57.31 ,Revenue,BCG ELECTRICAL SERVICES LIMITED,5097428
Fareham Borough Council,http://statistics.data.gov.uk/id/local-authority/24UE,HOUSING REVENUE ACCOUNT,BV06,RESPONSIVE & VOID MAINTENANCE,5901,DEPT STREETSCENE,PREMISES RELATED EXPENDITURE,2,"Works - Construction, Repair & Maintenance",39,GENERAL REPAIRS,2018,14/10/2016,568956,1940.27 ,Revenue,BCG ELECTRICAL SERVICES LIMITED,5097428
Fareham Borough Council,http://statistics.data.gov.uk/id/local-authority/24UE,OTHER REVENUE ACCOUNTS,RV,NON WORK GROUP HOLDING ACCOUNT,RV18,DEPT of FINANCE and RESOURCES,PREMISES RELATED EXPENDITURE,2,"Works - Construction, Repair & Maintenance",39,R & M OF BUILDINGS,2000,14/10/2016,568956,183.43 ,Revenue,BCG ELECTRICAL SERVICES LIMITED,5097428
Fareham Borough Council,http://statistics.data.gov.uk/id/local-authority/24UE,OTHER REVENUE ACCOUNTS,RV,NON WORK GROUP HOLDING ACCOUNT,RV18,DEPT of FINANCE and RESOURCES,PREMISES RELATED EXPENDITURE,2,"Works - Construction, Repair & Maintenance",39,R & M OF BUILDINGS,2000,14/10/2016,568956,87.74 ,Revenue,BCG ELECTRICAL SERVICES LIMITED,5097428
Fareham Borough Council,http://statistics.data.gov.uk/id/local-authority/24UE,BALANCE SHEET,BS,FMS BAL.SHEET & CONTROL ACCT.,BS1,BAL. SHEET - SUSPENSE ACCOUNT,FMS REJECTION SUSPENSE,BS242,"Works - Construction, Repair & Maintenance",39,FMS CODING SUSPENSE ACCOUNT,S990,14/10/2016,568956,53.99 ,Balance Sheet,BCG ELECTRICAL SERVICES LIMITED,5097428
Fareham Borough Council,http://statistics.data.gov.uk/id/local-authority/24UE,ENVIRONMENT AND REGULATORY SER,BV03,ENVIRONMENTAL HEALTH,BV03C,DEPT STREETSCENE,SUPPLIES & SERVICES,4,Local/Central Government,,FURNITURE & EQUIPT. MAINT.,4030,14/10/2016,568961,14104.01 ,Revenue,GOSPORT BOROUGH COUNCIL,
Fareham Borough Council,http://statistics.data.gov.uk/id/local-authority/24UE,OTHER REVENUE ACCOUNTS,RV,NON WORK GROUP HOLDING ACCOUNT,RV18,DEPT of FINANCE and RESOURCES,SUPPLIES & SERVICES,4,Stationery,34,STATIONERY,4320,14/10/2016,568977,100.00 ,Revenue,TRADE ENVELOPE PRINTING CO LTD,2193067
Fareham Borough Council,http://statistics.data.gov.uk/id/local-authority/24UE,OTHER REVENUE ACCOUNTS,RV,NON WORK GROUP HOLDING ACCOUNT,RV18,DEPT of FINANCE and RESOURCES,SUPPLIES & SERVICES,4,Stationery,34,STATIONERY,4320,14/10/2016,568977,560.00 ,Revenue,TRADE ENVELOPE PRINTING CO LTD,2193067
Fareham Borough Council,http://statistics.data.gov.uk/id/local-authority/24UE,OTHER REVENUE ACCOUNTS,RV,NON WORK GROUP HOLDING ACCOUNT,RV18,DEPT of FINANCE and RESOURCES,SUPPLIES & SERVICES,4,Stationery,34,STATIONERY,4320,14/10/2016,568977,112.50 ,Revenue,TRADE ENVELOPE PRINTING CO LTD,2193067
Fareham Borough Council,http://statistics.data.gov.uk/id/local-authority/24UE,OTHER REVENUE ACCOUNTS,RV,NON WORK GROUP HOLDING ACCOUNT,RV18,DEPT of FINANCE and RESOURCES,SUPPLIES & SERVICES,4,Information Communication Technology,27,FURNITURE & EQUIPT.-RENTS/LSES,4040,21/10/2016,568978,1126.02 ,Revenue,VODAFONE LIMITED,01471587
Fareham Borough Council,http://statistics.data.gov.uk/id/local-authority/24UE,ENVIRONMENT AND REGULATORY SER,BV03,WASTE COLLECTION,BV03G,DEPT STREETSCENE,SUPPLIES & SERVICES,4,Stationery,34,EXTERNAL PRINTING,4310,14/10/2016,568979,1215.00 ,Revenue,EURO LABEL PRINTERS LTD,01175435
Fareham Borough Council,http://statistics.data.gov.uk/id/local-authority/24UE,OTHER REVENUE ACCOUNTS,RV,CONTRACT SERVICES D.S.O.,RV14,DEPT STREETSCENE,EMPLOYEES RELATED EXPENDITURE,1,Human Resources,26,AGENCY WORKERS,1050,14/10/2016,568982,822.24 ,Revenue,BUILDING RECRUITMENT COMPANY LTD,3750125
Fareham Borough Council,http://statistics.data.gov.uk/id/local-authority/24UE,CULTURAL AND RELATED SERVICES,BV09,RECREATION AND SPORT,BV09B,DEPT of COMMUNITY and STREETSCENE,PREMISES RELATED EXPENDITURE,2,"Works - Construction, Repair & Maintenance",39,GENERAL REPAIRS,2018,21/10/2016,568983,40.00 ,Revenue,M & B DRAIN SERVICES,
Fareham Borough Council,http://statistics.data.gov.uk/id/local-authority/24UE,ENVIRONMENT AND REGULATORY SER,BV03,ENVIRONMENTAL HEALTH,BV03C,DEPT STREETSCENE,PREMISES RELATED EXPENDITURE,2,"Works - Construction, Repair & Maintenance",39,GENERAL REPAIRS,2018,21/10/2016,568983,120.00 ,Revenue,M & B DRAIN SERVICES,
Fareham Borough Council,http://statistics.data.gov.uk/id/local-authority/24UE,HOUSING REVENUE ACCOUNT,BV06,RESPONSIVE & VOID MAINTENANCE,5901,DEPT STREETSCENE,PREMISES RELATED EXPENDITURE,2,"Works - Construction, Repair & Maintenance",39,GENERAL REPAIRS,2018,21/10/2016,568983,1100.00 ,Revenue,M & B DRAIN SERVICES,
Fareham Borough Council,http://statistics.data.gov.uk/id/local-authority/24UE,OTHER REVENUE ACCOUNTS,RV,NON WORK GROUP HOLDING ACCOUNT,RV18,DEPT of FINANCE and RESOURCES,PREMISES RELATED EXPENDITURE,2,"Works - Construction, Repair & Maintenance",39,GENERAL REPAIRS,2018,21/10/2016,568983,40.00 ,Revenue,M & B DRAIN SERVICES,
Fareham Borough Council,http://statistics.data.gov.uk/id/local-authority/24UE,OTHER REVENUE ACCOUNTS,RV,NON WORK GROUP HOLDING ACCOUNT,RV18,DEPT of FINANCE and RESOURCES,PREMISES RELATED EXPENDITURE,2,"Works - Construction, Repair & Maintenance",39,GENERAL REPAIRS,2018,21/10/2016,568983,40.00 ,Revenue,M & B DRAIN SERVICES,
Fareham Borough Council,http://statistics.data.gov.uk/id/local-authority/24UE,OTHER REVENUE ACCOUNTS,RV,CONTRACT SERVICES D.S.O.,RV14,DEPT STREETSCENE,TRANSPORT RELATED EXPENDITURE,3,Horticultural,24,ROUTINE REPAIRS VEHICLES/PLANT,3010,28/10/2016,568984,8.94 ,Revenue,T H WHITE,00519868
Fareham Borough Council,http://statistics.data.gov.uk/id/local-authority/24UE,OTHER REVENUE ACCOUNTS,RV,CONTRACT SERVICES D.S.O.,RV14,DEPT STREETSCENE,TRANSPORT RELATED EXPENDITURE,3,Horticultural,24,ROUTINE REPAIRS VEHICLES/PLANT,3010,28/10/2016,568984,17.74 ,Revenue,T H WHITE,00519868
Fareham Borough Council,http://statistics.data.gov.uk/id/local-authority/24UE,OTHER REVENUE ACCOUNTS,RV,CONTRACT SERVICES D.S.O.,RV14,DEPT STREETSCENE,TRANSPORT RELATED EXPENDITURE,3,Horticultural,24,ROUTINE REPAIRS VEHICLES/PLANT,3010,28/10/2016,568984,25.00 ,Revenue,T H WHITE,00519868
Fareham Borough Council,http://statistics.data.gov.uk/id/local-authority/24UE,OTHER REVENUE ACCOUNTS,RV,CONTRACT SERVICES D.S.O.,RV14,DEPT STREETSCENE,TRANSPORT RELATED EXPENDITURE,3,Horticultural,24,ROUTINE REPAIRS VEHICLES/PLANT,3010,28/10/2016,568984,312.50 ,Revenue,T H WHITE,00519868
Fareham Borough Council,http://statistics.data.gov.uk/id/local-authority/24UE,OTHER REVENUE ACCOUNTS,RV,CONTRACT SERVICES D.S.O.,RV14,DEPT STREETSCENE,TRANSPORT RELATED EXPENDITURE,3,Horticultural,24,ROUTINE REPAIRS VEHICLES/PLANT,3010,28/10/2016,568984,140.44 ,Revenue,T H WHITE,00519868
Fareham Borough Council,http://statistics.data.gov.uk/id/local-authority/24UE,OTHER REVENUE ACCOUNTS,RV,CONTRACT SERVICES D.S.O.,RV14,DEPT STREETSCENE,TRANSPORT RELATED EXPENDITURE,3,Horticultural,24,ROUTINE REPAIRS VEHICLES/PLANT,3010,28/10/2016,568984,54.96 ,Revenue,T H WHITE,00519868
Fareham Borough Council,http://statistics.data.gov.uk/id/local-authority/24UE,OTHER REVENUE ACCOUNTS,RV,CONTRACT SERVICES D.S.O.,RV14,DEPT STREETSCENE,TRANSPORT RELATED EXPENDITURE,3,Horticultural,24,ROUTINE REPAIRS VEHICLES/PLANT,3010,28/10/2016,568984,186.12 ,Revenue,T H WHITE,00519868
Fareham Borough Council,http://statistics.data.gov.uk/id/local-authority/24UE,OTHER REVENUE ACCOUNTS,RV,CONTRACT SERVICES D.S.O.,RV14,DEPT STREETSCENE,TRANSPORT RELATED EXPENDITURE,3,Horticultural,24,ROUTINE REPAIRS VEHICLES/PLANT,3010,28/10/2016,568984,206.67 ,Revenue,T H WHITE,00519868
Fareham Borough Council,http://statistics.data.gov.uk/id/local-authority/24UE,OTHER REVENUE ACCOUNTS,RV,CONTRACT SERVICES D.S.O.,RV14,DEPT STREETSCENE,TRANSPORT RELATED EXPENDITURE,3,Horticultural,24,ROUTINE REPAIRS VEHICLES/PLANT,3010,28/10/2016,568984,108.35 ,Revenue,T H WHITE,00519868
Fareham Borough Council,http://statistics.data.gov.uk/id/local-authority/24UE,OTHER REVENUE ACCOUNTS,RV,CONTRACT SERVICES D.S.O.,RV14,DEPT STREETSCENE,TRANSPORT RELATED EXPENDITURE,3,Horticultural,24,ROUTINE REPAIRS VEHICLES/PLANT,3010,28/10/2016,568984,12.74 ,Revenue,T H WHITE,00519868
Fareham Borough Council,http://statistics.data.gov.uk/id/local-authority/24UE,OTHER REVENUE ACCOUNTS,RV,CONTRACT SERVICES D.S.O.,RV14,DEPT STREETSCENE,TRANSPORT RELATED EXPENDITURE,3,Horticultural,24,ROUTINE REPAIRS VEHICLES/PLANT,3010,28/10/2016,568984,7.65 ,Revenue,T H WHITE,00519868
Fareham Borough Council,http://statistics.data.gov.uk/id/local-authority/24UE,OTHER REVENUE ACCOUNTS,RV,CONTRACT SERVICES D.S.O.,RV14,DEPT STREETSCENE,TRANSPORT RELATED EXPENDITURE,3,Horticultural,24,ROUTINE REPAIRS VEHICLES/PLANT,3010,28/10/2016,568984,53.52 ,Revenue,T H WHITE,00519868
Fareham Borough Council,http://statistics.data.gov.uk/id/local-authority/24UE,CULTURAL AND RELATED SERVICES,BV09,RECREATION AND SPORT,BV09B,DEPT of COMMUNITY and STREETSCENE,TRANSPORT RELATED EXPENDITURE,3,Vehicle Management,38,VEHICLE CLEANING,3030,14/10/2016,568989,5.00 ,Revenue,MOBILE STEAM CLEANING SERVICES,04434339
Fareham Borough Council,http://statistics.data.gov.uk/id/local-authority/24UE,ENVIRONMENT AND REGULATORY SER,BV03,STREET CLEANSING,BV03F,DEPT STREETSCENE,TRANSPORT RELATED EXPENDITURE,3,Vehicle Management,38,VEHICLE CLEANING,3030,14/10/2016,568989,45.00 ,Revenue,MOBILE STEAM CLEANING SERVICES,04434339
Fareham Borough Council,http://statistics.data.gov.uk/id/local-authority/24UE,ENVIRONMENT AND REGULATORY SER,BV03,STREET CLEANSING,BV03F,DEPT STREETSCENE,TRANSPORT RELATED EXPENDITURE,3,Vehicle Management,38,VEHICLE CLEANING,3030,14/10/2016,568989,15.00 ,Revenue,MOBILE STEAM CLEANING SERVICES,04434339
Fareham Borough Council,http://statistics.data.gov.uk/id/local-authority/24UE,ENVIRONMENT AND REGULATORY SER,BV03,STREET CLEANSING,BV03F,DEPT STREETSCENE,TRANSPORT RELATED EXPENDITURE,3,Vehicle Management,38,VEHICLE CLEANING,3030,14/10/2016,568989,75.00 ,Revenue,MOBILE STEAM CLEANING SERVICES,04434339
Fareham Borough Council,http://statistics.data.gov.uk/id/local-authority/24UE,ENVIRONMENT AND REGULATORY SER,BV03,STREET CLEANSING,BV03F,DEPT STREETSCENE,TRANSPORT RELATED EXPENDITURE,3,Vehicle Management,38,VEHICLE CLEANING,3030,14/10/2016,568989,5.00 ,Revenue,MOBILE STEAM CLEANING SERVICES,04434339
Fareham Borough Council,http://statistics.data.gov.uk/id/local-authority/24UE,ENVIRONMENT AND REGULATORY SER,BV03,STREET CLEANSING,BV03F,DEPT STREETSCENE,TRANSPORT RELATED EXPENDITURE,3,Vehicle Management,38,VEHICLE CLEANING,3030,14/10/2016,568989,5.00 ,Revenue,MOBILE STEAM CLEANING SERVICES,04434339
Fareham Borough Council,http://statistics.data.gov.uk/id/local-authority/24UE,ENVIRONMENT AND REGULATORY SER,BV03,STREET CLEANSING,BV03F,DEPT STREETSCENE,TRANSPORT RELATED EXPENDITURE,3,Vehicle Management,38,VEHICLE CLEANING,3030,14/10/2016,568989,5.00 ,Revenue,MOBILE STEAM CLEANING SERVICES,04434339
Fareham Borough Council,http://statistics.data.gov.uk/id/local-authority/24UE,ENVIRONMENT AND REGULATORY SER,BV03,STREET CLEANSING,BV03F,DEPT STREETSCENE,TRANSPORT RELATED EXPENDITURE,3,Vehicle Management,38,VEHICLE CLEANING,3030,14/10/2016,568989,5.00 ,Revenue,MOBILE STEAM CLEANING SERVICES,04434339
Fareham Borough Council,http://statistics.data.gov.uk/id/local-authority/24UE,ENVIRONMENT AND REGULATORY SER,BV03,STREET CLEANSING,BV03F,DEPT STREETSCENE,TRANSPORT RELATED EXPENDITURE,3,Vehicle Management,38,VEHICLE CLEANING,3030,14/10/2016,568989,5.00 ,Revenue,MOBILE STEAM CLEANING SERVICES,04434339
Fareham Borough Council,http://statistics.data.gov.uk/id/local-authority/24UE,ENVIRONMENT AND REGULATORY SER,BV03,STREET CLEANSING,BV03F,DEPT STREETSCENE,TRANSPORT RELATED EXPENDITURE,3,Vehicle Management,38,VEHICLE CLEANING,3030,14/10/2016,568989,5.00 ,Revenue,MOBILE STEAM CLEANING SERVICES,04434339
Fareham Borough Council,http://statistics.data.gov.uk/id/local-authority/24UE,ENVIRONMENT AND REGULATORY SER,BV03,WASTE COLLECTION,BV03G,DEPT STREETSCENE,TRANSPORT RELATED EXPENDITURE,3,Vehicle Management,38,VEHICLE CLEANING,3030,14/10/2016,568989,50.00 ,Revenue,MOBILE STEAM CLEANING SERVICES,04434339
Fareham Borough Council,http://statistics.data.gov.uk/id/local-authority/24UE,ENVIRONMENT AND REGULATORY SER,BV03,WASTE COLLECTION,BV03G,DEPT STREETSCENE,TRANSPORT RELATED EXPENDITURE,3,Vehicle Management,38,VEHICLE CLEANING,3030,14/10/2016,568989,50.00 ,Revenue,MOBILE STEAM CLEANING SERVICES,04434339
Fareham Borough Council,http://statistics.data.gov.uk/id/local-authority/24UE,ENVIRONMENT AND REGULATORY SER,BV03,WASTE COLLECTION,BV03G,DEPT STREETSCENE,TRANSPORT RELATED EXPENDITURE,3,Vehicle Management,38,VEHICLE CLEANING,3030,14/10/2016,568989,50.00 ,Revenue,MOBILE STEAM CLEANING SERVICES,04434339
Fareham Borough Council,http://statistics.data.gov.uk/id/local-authority/24UE,ENVIRONMENT AND REGULATORY SER,BV03,WASTE COLLECTION,BV03G,DEPT STREETSCENE,TRANSPORT RELATED EXPENDITURE,3,Vehicle Management,38,VEHICLE CLEANING,3030,14/10/2016,568989,50.00 ,Revenue,MOBILE STEAM CLEANING SERVICES,04434339
Fareham Borough Council,http://statistics.data.gov.uk/id/local-authority/24UE,ENVIRONMENT AND REGULATORY SER,BV03,WASTE COLLECTION,BV03G,DEPT STREETSCENE,TRANSPORT RELATED EXPENDITURE,3,Vehicle Management,38,VEHICLE CLEANING,3030,14/10/2016,568989,50.00 ,Revenue,MOBILE STEAM CLEANING SERVICES,04434339
Fareham Borough Council,http://statistics.data.gov.uk/id/local-authority/24UE,ENVIRONMENT AND REGULATORY SER,BV03,WASTE COLLECTION,BV03G,DEPT STREETSCENE,TRANSPORT RELATED EXPENDITURE,3,Vehicle Management,38,VEHICLE CLEANING,3030,14/10/2016,568989,40.00 ,Revenue,MOBILE STEAM CLEANING SERVICES,04434339
Fareham Borough Council,http://statistics.data.gov.uk/id/local-authority/24UE,ENVIRONMENT AND REGULATORY SER,BV03,WASTE COLLECTION,BV03G,DEPT STREETSCENE,TRANSPORT RELATED EXPENDITURE,3,Vehicle Management,38,VEHICLE CLEANING,3030,14/10/2016,568989,40.00 ,Revenue,MOBILE STEAM CLEANING SERVICES,04434339
Fareham Borough Council,http://statistics.data.gov.uk/id/local-authority/24UE,ENVIRONMENT AND REGULATORY SER,BV03,WASTE COLLECTION,BV03G,DEPT STREETSCENE,TRANSPORT RELATED EXPENDITURE,3,Vehicle Management,38,VEHICLE CLEANING,3030,14/10/2016,568989,5.00 ,Revenue,MOBILE STEAM CLEANING SERVICES,04434339
Fareham Borough Council,http://statistics.data.gov.uk/id/local-authority/24UE,ENVIRONMENT AND REGULATORY SER,BV03,WASTE COLLECTION,BV03G,DEPT STREETSCENE,TRANSPORT RELATED EXPENDITURE,3,Vehicle Management,38,VEHICLE CLEANING,3030,14/10/2016,568989,65.00 ,Revenue,MOBILE STEAM CLEANING SERVICES,04434339
Fareham Borough Council,http://statistics.data.gov.uk/id/local-authority/24UE,ENVIRONMENT AND REGULATORY SER,BV03,WASTE COLLECTION,BV03G,DEPT STREETSCENE,TRANSPORT RELATED EXPENDITURE,3,Vehicle Management,38,VEHICLE CLEANING,3030,14/10/2016,568989,20.00 ,Revenue,MOBILE STEAM CLEANING SERVICES,04434339
Fareham Borough Council,http://statistics.data.gov.uk/id/local-authority/24UE,ENVIRONMENT AND REGULATORY SER,BV03,WASTE COLLECTION,BV03G,DEPT STREETSCENE,TRANSPORT RELATED EXPENDITURE,3,Vehicle Management,38,VEHICLE CLEANING,3030,14/10/2016,568989,20.00 ,Revenue,MOBILE STEAM CLEANING SERVICES,04434339
Fareham Borough Council,http://statistics.data.gov.uk/id/local-authority/24UE,ENVIRONMENT AND REGULATORY SER,BV03,WASTE COLLECTION,BV03G,DEPT STREETSCENE,TRANSPORT RELATED EXPENDITURE,3,Vehicle Management,38,VEHICLE CLEANING,3030,14/10/2016,568989,20.00 ,Revenue,MOBILE STEAM CLEANING SERVICES,04434339
Fareham Borough Council,http://statistics.data.gov.uk/id/local-authority/24UE,ENVIRONMENT AND REGULATORY SER,BV03,WASTE COLLECTION,BV03G,DEPT STREETSCENE,TRANSPORT RELATED EXPENDITURE,3,Vehicle Management,38,VEHICLE CLEANING,3030,14/10/2016,568989,50.00 ,Revenue,MOBILE STEAM CLEANING SERVICES,04434339
Fareham Borough Council,http://statistics.data.gov.uk/id/local-authority/24UE,ENVIRONMENT AND REGULATORY SER,BV03,WASTE COLLECTION,BV03G,DEPT STREETSCENE,TRANSPORT RELATED EXPENDITURE,3,Vehicle Management,38,VEHICLE CLEANING,3030,14/10/2016,568989,50.00 ,Revenue,MOBILE STEAM CLEANING SERVICES,04434339
Fareham Borough Council,http://statistics.data.gov.uk/id/local-authority/24UE,ENVIRONMENT AND REGULATORY SER,BV03,WASTE COLLECTION,BV03G,DEPT STREETSCENE,TRANSPORT RELATED EXPENDITURE,3,Vehicle Management,38,VEHICLE CLEANING,3030,14/10/2016,568989,50.00 ,Revenue,MOBILE STEAM CLEANING SERVICES,04434339
Fareham Borough Council,http://statistics.data.gov.uk/id/local-authority/24UE,ENVIRONMENT AND REGULATORY SER,BV03,WASTE COLLECTION,BV03G,DEPT STREETSCENE,TRANSPORT RELATED EXPENDITURE,3,Vehicle Management,38,VEHICLE CLEANING,3030,14/10/2016,568989,20.00 ,Revenue,MOBILE STEAM CLEANING SERVICES,04434339
Fareham Borough Council,http://statistics.data.gov.uk/id/local-authority/24UE,ENVIRONMENT AND REGULATORY SER,BV03,WASTE COLLECTION,BV03G,DEPT STREETSCENE,TRANSPORT RELATED EXPENDITURE,3,Vehicle Management,38,VEHICLE CLEANING,3030,14/10/2016,568989,20.00 ,Revenue,MOBILE STEAM CLEANING SERVICES,04434339
Fareham Borough Council,http://statistics.data.gov.uk/id/local-authority/24UE,ENVIRONMENT AND REGULATORY SER,BV03,WASTE COLLECTION,BV03G,DEPT STREETSCENE,TRANSPORT RELATED EXPENDITURE,3,Vehicle Management,38,VEHICLE CLEANING,3030,14/10/2016,568989,20.00 ,Revenue,MOBILE STEAM CLEANING SERVICES,04434339
Fareham Borough Council,http://statistics.data.gov.uk/id/local-authority/24UE,ENVIRONMENT AND REGULATORY SER,BV03,WASTE COLLECTION,BV03G,DEPT STREETSCENE,TRANSPORT RELATED EXPENDITURE,3,Vehicle Management,38,VEHICLE CLEANING,3030,14/10/2016,568989,20.00 ,Revenue,MOBILE STEAM CLEANING SERVICES,04434339
Fareham Borough Council,http://statistics.data.gov.uk/id/local-authority/24UE,ENVIRONMENT AND REGULATORY SER,BV03,WASTE COLLECTION,BV03G,DEPT STREETSCENE,TRANSPORT RELATED EXPENDITURE,3,Vehicle Management,38,VEHICLE CLEANING,3030,14/10/2016,568989,50.00 ,Revenue,MOBILE STEAM CLEANING SERVICES,04434339
Fareham Borough Council,http://statistics.data.gov.uk/id/local-authority/24UE,ENVIRONMENT AND REGULATORY SER,BV03,WASTE COLLECTION,BV03G,DEPT STREETSCENE,TRANSPORT RELATED EXPENDITURE,3,Vehicle Management,38,VEHICLE CLEANING,3030,14/10/2016,568989,50.00 ,Revenue,MOBILE STEAM CLEANING SERVICES,04434339
Fareham Borough Council,http://statistics.data.gov.uk/id/local-authority/24UE,ENVIRONMENT AND REGULATORY SER,BV03,WASTE COLLECTION,BV03G,DEPT STREETSCENE,TRANSPORT RELATED EXPENDITURE,3,Vehicle Management,38,VEHICLE CLEANING,3030,14/10/2016,568989,50.00 ,Revenue,MOBILE STEAM CLEANING SERVICES,04434339
Fareham Borough Council,http://statistics.data.gov.uk/id/local-authority/24UE,ENVIRONMENT AND REGULATORY SER,BV03,WASTE COLLECTION,BV03G,DEPT STREETSCENE,TRANSPORT RELATED EXPENDITURE,3,Vehicle Management,38,VEHICLE CLEANING,3030,14/10/2016,568989,50.00 ,Revenue,MOBILE STEAM CLEANING SERVICES,04434339
Fareham Borough Council,http://statistics.data.gov.uk/id/local-authority/24UE,ENVIRONMENT AND REGULATORY SER,BV03,WASTE COLLECTION,BV03G,DEPT STREETSCENE,TRANSPORT RELATED EXPENDITURE,3,Vehicle Management,38,VEHICLE CLEANING,3030,14/10/2016,568989,50.00 ,Revenue,MOBILE STEAM CLEANING SERVICES,04434339
Fareham Borough Council,http://statistics.data.gov.uk/id/local-authority/24UE,ENVIRONMENT AND REGULATORY SER,BV03,WASTE COLLECTION,BV03G,DEPT STREETSCENE,TRANSPORT RELATED EXPENDITURE,3,Vehicle Management,38,VEHICLE CLEANING,3030,14/10/2016,568989,40.00 ,Revenue,MOBILE STEAM CLEANING SERVICES,04434339
Fareham Borough Council,http://statistics.data.gov.uk/id/local-authority/24UE,ENVIRONMENT AND REGULATORY SER,BV03,WASTE COLLECTION,BV03G,DEPT STREETSCENE,TRANSPORT RELATED EXPENDITURE,3,Vehicle Management,38,VEHICLE CLEANING,3030,14/10/2016,568989,50.00 ,Revenue,MOBILE STEAM CLEANING SERVICES,04434339
Fareham Borough Council,http://statistics.data.gov.uk/id/local-authority/24UE,ENVIRONMENT AND REGULATORY SER,BV03,WASTE COLLECTION,BV03G,DEPT STREETSCENE,TRANSPORT RELATED EXPENDITURE,3,Vehicle Management,38,VEHICLE CLEANING,3030,14/10/2016,568989,40.00 ,Revenue,MOBILE STEAM CLEANING SERVICES,04434339
Fareham Borough Council,http://statistics.data.gov.uk/id/local-authority/24UE,ENVIRONMENT AND REGULATORY SER,BV03,WASTE COLLECTION,BV03G,DEPT STREETSCENE,TRANSPORT RELATED EXPENDITURE,3,Vehicle Management,38,VEHICLE CLEANING,3030,14/10/2016,568989,20.00 ,Revenue,MOBILE STEAM CLEANING SERVICES,04434339
Fareham Borough Council,http://statistics.data.gov.uk/id/local-authority/24UE,ENVIRONMENT AND REGULATORY SER,BV03,WASTE COLLECTION,BV03G,DEPT STREETSCENE,TRANSPORT RELATED EXPENDITURE,3,Vehicle Management,38,VEHICLE CLEANING,3030,14/10/2016,568989,65.00 ,Revenue,MOBILE STEAM CLEANING SERVICES,04434339
Fareham Borough Council,http://statistics.data.gov.uk/id/local-authority/24UE,ENVIRONMENT AND REGULATORY SER,BV03,WASTE COLLECTION,BV03G,DEPT STREETSCENE,TRANSPORT RELATED EXPENDITURE,3,Vehicle Management,38,VEHICLE CLEANING,3030,14/10/2016,568989,20.00 ,Revenue,MOBILE STEAM CLEANING SERVICES,04434339
Fareham Borough Council,http://statistics.data.gov.uk/id/local-authority/24UE,ENVIRONMENT AND REGULATORY SER,BV03,WASTE COLLECTION,BV03G,DEPT STREETSCENE,TRANSPORT RELATED EXPENDITURE,3,Vehicle Management,38,VEHICLE CLEANING,3030,14/10/2016,568989,20.00 ,Revenue,MOBILE STEAM CLEANING SERVICES,04434339
Fareham Borough Council,http://statistics.data.gov.uk/id/local-authority/24UE,ENVIRONMENT AND REGULATORY SER,BV03,WASTE COLLECTION,BV03G,DEPT STREETSCENE,TRANSPORT RELATED EXPENDITURE,3,Vehicle Management,38,VEHICLE CLEANING,3030,14/10/2016,568989,50.00 ,Revenue,MOBILE STEAM CLEANING SERVICES,04434339
Fareham Borough Council,http://statistics.data.gov.uk/id/local-authority/24UE,ENVIRONMENT AND REGULATORY SER,BV03,WASTE COLLECTION,BV03G,DEPT STREETSCENE,TRANSPORT RELATED EXPENDITURE,3,Vehicle Management,38,VEHICLE CLEANING,3030,14/10/2016,568989,50.00 ,Revenue,MOBILE STEAM CLEANING SERVICES,04434339
Fareham Borough Council,http://statistics.data.gov.uk/id/local-authority/24UE,ENVIRONMENT AND REGULATORY SER,BV03,WASTE COLLECTION,BV03G,DEPT STREETSCENE,TRANSPORT RELATED EXPENDITURE,3,Vehicle Management,38,VEHICLE CLEANING,3030,14/10/2016,568989,40.00 ,Revenue,MOBILE STEAM CLEANING SERVICES,04434339
Fareham Borough Council,http://statistics.data.gov.uk/id/local-authority/24UE,ENVIRONMENT AND REGULATORY SER,BV03,WASTE COLLECTION,BV03G,DEPT STREETSCENE,TRANSPORT RELATED EXPENDITURE,3,Vehicle Management,38,VEHICLE CLEANING,3030,14/10/2016,568989,50.00 ,Revenue,MOBILE STEAM CLEANING SERVICES,04434339
Fareham Borough Council,http://statistics.data.gov.uk/id/local-authority/24UE,ENVIRONMENT AND REGULATORY SER,BV03,WASTE COLLECTION,BV03G,DEPT STREETSCENE,TRANSPORT RELATED EXPENDITURE,3,Vehicle Management,38,VEHICLE CLEANING,3030,14/10/2016,568989,50.00 ,Revenue,MOBILE STEAM CLEANING SERVICES,04434339
Fareham Borough Council,http://statistics.data.gov.uk/id/local-authority/24UE,ENVIRONMENT AND REGULATORY SER,BV03,WASTE COLLECTION,BV03G,DEPT STREETSCENE,TRANSPORT RELATED EXPENDITURE,3,Vehicle Management,38,VEHICLE CLEANING,3030,14/10/2016,568989,20.00 ,Revenue,MOBILE STEAM CLEANING SERVICES,04434339
Fareham Borough Council,http://statistics.data.gov.uk/id/local-authority/24UE,ENVIRONMENT AND REGULATORY SER,BV03,WASTE COLLECTION,BV03G,DEPT STREETSCENE,TRANSPORT RELATED EXPENDITURE,3,Vehicle Management,38,VEHICLE CLEANING,3030,14/10/2016,568989,20.00 ,Revenue,MOBILE STEAM CLEANING SERVICES,04434339
Fareham Borough Council,http://statistics.data.gov.uk/id/local-authority/24UE,ENVIRONMENT AND REGULATORY SER,BV03,WASTE COLLECTION,BV03G,DEPT STREETSCENE,TRANSPORT RELATED EXPENDITURE,3,Vehicle Management,38,VEHICLE CLEANING,3030,14/10/2016,568989,20.00 ,Revenue,MOBILE STEAM CLEANING SERVICES,04434339
Fareham Borough Council,http://statistics.data.gov.uk/id/local-authority/24UE,ENVIRONMENT AND REGULATORY SER,BV03,WASTE COLLECTION,BV03G,DEPT STREETSCENE,TRANSPORT RELATED EXPENDITURE,3,Vehicle Management,38,VEHICLE CLEANING,3030,14/10/2016,568989,20.00 ,Revenue,MOBILE STEAM CLEANING SERVICES,04434339
Fareham Borough Council,http://statistics.data.gov.uk/id/local-authority/24UE,OTHER REVENUE ACCOUNTS,RV,CONTRACT SERVICES D.S.O.,RV14,DEPT STREETSCENE,TRANSPORT RELATED EXPENDITURE,3,Vehicle Management,38,VEHICLE CLEANING,3030,14/10/2016,568989,5.00 ,Revenue,MOBILE STEAM CLEANING SERVICES,04434339
Fareham Borough Council,http://statistics.data.gov.uk/id/local-authority/24UE,OTHER REVENUE ACCOUNTS,RV,CONTRACT SERVICES D.S.O.,RV14,DEPT STREETSCENE,TRANSPORT RELATED EXPENDITURE,3,Vehicle Management,38,VEHICLE CLEANING,3030,14/10/2016,568989,5.00 ,Revenue,MOBILE STEAM CLEANING SERVICES,04434339
Fareham Borough Council,http://statistics.data.gov.uk/id/local-authority/24UE,OTHER REVENUE ACCOUNTS,RV,CONTRACT SERVICES D.S.O.,RV14,DEPT STREETSCENE,TRANSPORT RELATED EXPENDITURE,3,Vehicle Management,38,VEHICLE CLEANING,3030,14/10/2016,568989,5.00 ,Revenue,MOBILE STEAM CLEANING SERVICES,04434339
Fareham Borough Council,http://statistics.data.gov.uk/id/local-authority/24UE,OTHER REVENUE ACCOUNTS,RV,CONTRACT SERVICES D.S.O.,RV14,DEPT STREETSCENE,TRANSPORT RELATED EXPENDITURE,3,Vehicle Management,38,VEHICLE CLEANING,3030,14/10/2016,568989,5.00 ,Revenue,MOBILE STEAM CLEANING SERVICES,04434339
Fareham Borough Council,http://statistics.data.gov.uk/id/local-authority/24UE,OTHER REVENUE ACCOUNTS,RV,CONTRACT SERVICES D.S.O.,RV14,DEPT STREETSCENE,TRANSPORT RELATED EXPENDITURE,3,Vehicle Management,38,VEHICLE CLEANING,3030,14/10/2016,568989,5.00 ,Revenue,MOBILE STEAM CLEANING SERVICES,04434339
Fareham Borough Council,http://statistics.data.gov.uk/id/local-authority/24UE,OTHER REVENUE ACCOUNTS,RV,CONTRACT SERVICES D.S.O.,RV14,DEPT STREETSCENE,TRANSPORT RELATED EXPENDITURE,3,Vehicle Management,38,VEHICLE CLEANING,3030,14/10/2016,568989,65.00 ,Revenue,MOBILE STEAM CLEANING SERVICES,04434339
Fareham Borough Council,http://statistics.data.gov.uk/id/local-authority/24UE,OTHER REVENUE ACCOUNTS,RV,CONTRACT SERVICES D.S.O.,RV14,DEPT STREETSCENE,TRANSPORT RELATED EXPENDITURE,3,Vehicle Management,38,VEHICLE CLEANING,3030,14/10/2016,568989,5.00 ,Revenue,MOBILE STEAM CLEANING SERVICES,04434339
Fareham Borough Council,http://statistics.data.gov.uk/id/local-authority/24UE,OTHER REVENUE ACCOUNTS,RV,CONTRACT SERVICES D.S.O.,RV14,DEPT STREETSCENE,TRANSPORT RELATED EXPENDITURE,3,Vehicle Management,38,VEHICLE CLEANING,3030,14/10/2016,568989,5.00 ,Revenue,MOBILE STEAM CLEANING SERVICES,04434339
Fareham Borough Council,http://statistics.data.gov.uk/id/local-authority/24UE,OTHER REVENUE ACCOUNTS,RV,CONTRACT SERVICES D.S.O.,RV14,DEPT STREETSCENE,TRANSPORT RELATED EXPENDITURE,3,Vehicle Management,38,VEHICLE CLEANING,3030,14/10/2016,568989,5.00 ,Revenue,MOBILE STEAM CLEANING SERVICES,04434339
Fareham Borough Council,http://statistics.data.gov.uk/id/local-authority/24UE,OTHER REVENUE ACCOUNTS,RV,CONTRACT SERVICES D.S.O.,RV14,DEPT STREETSCENE,TRANSPORT RELATED EXPENDITURE,3,Vehicle Management,38,VEHICLE CLEANING,3030,14/10/2016,568989,5.00 ,Revenue,MOBILE STEAM CLEANING SERVICES,04434339
Fareham Borough Council,http://statistics.data.gov.uk/id/local-authority/24UE,OTHER REVENUE ACCOUNTS,RV,NON WORK GROUP HOLDING ACCOUNT,RV18,DEPT STREETSCENE,TRANSPORT RELATED EXPENDITURE,3,Vehicle Management,38,VEHICLE CLEANING,3030,14/10/2016,568989,5.00 ,Revenue,MOBILE STEAM CLEANING SERVICES,04434339
Fareham Borough Council,http://statistics.data.gov.uk/id/local-authority/24UE,OTHER REVENUE ACCOUNTS,RV,NON WORK GROUP HOLDING ACCOUNT,RV18,DEPT of FINANCE and RESOURCES,SUPPLIES & SERVICES,4,Stationery,34,STATIONERY,4320,14/10/2016,568997,560.00 ,Revenue,TRADE ENVELOPE PRINTING CO LTD,2193067
Fareham Borough Council,http://statistics.data.gov.uk/id/local-authority/24UE,OTHER REVENUE ACCOUNTS,RV,CONTRACT SERVICES D.S.O.,RV14,DEPT STREETSCENE,EMPLOYEES RELATED EXPENDITURE,1,Human Resources,26,AGENCY WORKERS,1050,21/10/2016,569000,2097.91 ,Revenue,BUZZ PEOPLE RECRUITMENT LTD,07908887
Fareham Borough Council,http://statistics.data.gov.uk/id/local-authority/24UE,PLANNING SERVICES,BV13,ECONOMIC DEVELOPMENT,BV13E,DEPT of COMMUNITY and STREETSCENE,EMPLOYEES RELATED EXPENDITURE,1,Human Resources,26,AGENCY WORKERS,1050,21/10/2016,569002,502.56 ,Revenue,BUZZ PEOPLE RECRUITMENT LTD,07908887
Fareham Borough Council,http://statistics.data.gov.uk/id/local-authority/24UE,PLANNING SERVICES,BV13,ECONOMIC DEVELOPMENT,BV13E,DEPT of COMMUNITY and STREETSCENE,EMPLOYEES RELATED EXPENDITURE,1,Human Resources,26,AGENCY WORKERS,1050,21/10/2016,569002,167.52 ,Revenue,BUZZ PEOPLE RECRUITMENT LTD,07908887
Fareham Borough Council,http://statistics.data.gov.uk/id/local-authority/24UE,ENVIRONMENT AND REGULATORY SER,BV03,WASTE COLLECTION,BV03G,DEPT STREETSCENE,EMPLOYEES RELATED EXPENDITURE,1,Human Resources,26,AGENCY WORKERS,1050,28/10/2016,569003,9474.69 ,Revenue,BUZZ PEOPLE RECRUITMENT LTD,07908887
Fareham Borough Council,http://statistics.data.gov.uk/id/local-authority/24UE,ENVIRONMENT AND REGULATORY SER,BV03,WASTE COLLECTION,BV03G,DEPT STREETSCENE,EMPLOYEES RELATED EXPENDITURE,1,Human Resources,26,AGENCY WORKERS,1050,28/10/2016,569003,2331.57 ,Revenue,BUZZ PEOPLE RECRUITMENT LTD,07908887
Fareham Borough Council,http://statistics.data.gov.uk/id/local-authority/24UE,ENVIRONMENT AND REGULATORY SER,BV03,WASTE COLLECTION,BV03G,DEPT STREETSCENE,EMPLOYEES RELATED EXPENDITURE,1,Human Resources,26,AGENCY WORKERS,1050,28/10/2016,569003,5591.59 ,Revenue,BUZZ PEOPLE RECRUITMENT LTD,07908887
Fareham Borough Council,http://statistics.data.gov.uk/id/local-authority/24UE,ENVIRONMENT AND REGULATORY SER,BV03,WASTE COLLECTION,BV03G,DEPT STREETSCENE,EMPLOYEES RELATED EXPENDITURE,1,Human Resources,26,AGENCY WORKERS,1050,28/10/2016,569003,5950.22 ,Revenue,BUZZ PEOPLE RECRUITMENT LTD,07908887
Fareham Borough Council,http://statistics.data.gov.uk/id/local-authority/24UE,CULTURAL AND RELATED SERVICES,BV09,CULTURE AND HERITAGE,BV09A,DEPT of COMMUNITY and STREETSCENE,SUPPLIES & SERVICES,4,Building Construction Materials,10,EQUIPMENT PURCHASES - TECH'L,4011,14/10/2016,569005,514.90 ,Revenue,A C ENTERTAINMENT TECHNOLOGIES LTD,1626564
Fareham Borough Council,http://statistics.data.gov.uk/id/local-authority/24UE,ENVIRONMENT AND REGULATORY SER,BV03,CEMETERIES CREM & MORTUARY,BV03A,DEPT STREETSCENE,PREMISES RELATED EXPENDITURE,2,Building Construction Materials,10,R & M OF BUILDINGS,2000,21/10/2016,569009,26.89 ,Revenue,TSG BUILDING SERVICES,03908728
Fareham Borough Council,http://statistics.data.gov.uk/id/local-authority/24UE,CULTURAL AND RELATED SERVICES,BV09,RECREATION AND SPORT,BV09B,DEPT of COMMUNITY and STREETSCENE,PREMISES RELATED EXPENDITURE,2,Building Construction Materials,10,R & M OF BUILDINGS,2000,21/10/2016,569009,100.15 ,Revenue,TSG BUILDING SERVICES,03908728
Fareham Borough Council,http://statistics.data.gov.uk/id/local-authority/24UE,CULTURAL AND RELATED SERVICES,BV09,CULTURE AND HERITAGE,BV09A,DEPT of COMMUNITY and STREETSCENE,PREMISES RELATED EXPENDITURE,2,Building Construction Materials,10,R & M OF BUILDINGS,2000,21/10/2016,569009,97.38 ,Revenue,TSG BUILDING SERVICES,03908728
Fareham Borough Council,http://statistics.data.gov.uk/id/local-authority/24UE,CULTURAL AND RELATED SERVICES,BV09,RECREATION AND SPORT,BV09B,DEPT of COMMUNITY and STREETSCENE,PREMISES RELATED EXPENDITURE,2,Building Construction Materials,10,R & M OF BUILDINGS,2000,21/10/2016,569009,100.15 ,Revenue,TSG BUILDING SERVICES,03908728
Fareham Borough Council,http://statistics.data.gov.uk/id/local-authority/24UE,CAPITAL PROGRAMME - HOUSING SERVICES,CP,RENOVATION OF L.A. DWELLINGS,CP10,CAPITAL - IMPROVEMENTS WORK/MODERNIS'N,PREMISES RELATED EXPENDITURE,2,Building Construction Materials,10,R & M OF BUILDINGS,2000,21/10/2016,569009,18916.97 ,Capital,TSG BUILDING SERVICES,03908728
Fareham Borough Council,http://statistics.data.gov.uk/id/local-authority/24UE,HOUSING REVENUE ACCOUNT,BV06,RESPONSIVE & VOID MAINTENANCE,5901,DEPT STREETSCENE,PREMISES RELATED EXPENDITURE,2,Building Construction Materials,10,GAS SERVICING & ASSOC REPAIRS,2029,21/10/2016,569009,32208.55 ,Revenue,TSG BUILDING SERVICES,03908728
Fareham Borough Council,http://statistics.data.gov.uk/id/local-authority/24UE,OTHER REVENUE ACCOUNTS,RV,NON WORK GROUP HOLDING ACCOUNT,RV18,DEPT of FINANCE and RESOURCES,PREMISES RELATED EXPENDITURE,2,Building Construction Materials,10,R & M OF FIXED PLANT,2040,21/10/2016,569009,74.20 ,Revenue,TSG BUILDING SERVICES,03908728
Fareham Borough Council,http://statistics.data.gov.uk/id/local-authority/24UE,OTHER REVENUE ACCOUNTS,RV,NON WORK GROUP HOLDING ACCOUNT,RV18,DEPT of FINANCE and RESOURCES,PREMISES RELATED EXPENDITURE,2,Building Construction Materials,10,R & M OF FIXED PLANT,2040,21/10/2016,569009,96.42 ,Revenue,TSG BUILDING SERVICES,03908728
Fareham Borough Council,http://statistics.data.gov.uk/id/local-authority/24UE,BALANCE SHEET,BS,BAL. SHEET - COLLECTION FUND,BS1,BAL. SHEET - COLLECTION FUND,PERSONAL ACCOUNTS,BS210,Local/Central Government,98,HAMPSHIRE C.C. PRECEPT ACCOUNT,P157,14/10/2016,569010,4136242.00 ,Balance Sheet,HAMPSHIRE COUNTY COUNCIL,
Fareham Borough Council,http://statistics.data.gov.uk/id/local-authority/24UE,BALANCE SHEET,BS,BAL. SHEET - COLLECTION FUND,BS1,BAL. SHEET - COLLECTION FUND,PERSONAL ACCOUNTS,BS210,Local/Central Government,,HAMPSHIRE POLICE PRECEPT,P159,14/10/2016,569011,574418.00 ,Balance Sheet,POLICE & CRIME COMMISSIONER HAMPSHIRE,
Fareham Borough Council,http://statistics.data.gov.uk/id/local-authority/24UE,BALANCE SHEET,BS,BAL. SHEET - COLLECTION FUND,BS1,BAL. SHEET - COLLECTION FUND,PERSONAL ACCOUNTS,BS210,Local/Central Government,,HAMPSHIRE FIRE/RESCUE PRECEPT,P161,14/10/2016,569012,254569.00 ,Balance Sheet,HAMPSHIRE FIRE & RESCUE AUTHORITY,
Fareham Borough Council,http://statistics.data.gov.uk/id/local-authority/24UE,CULTURAL AND RELATED SERVICES,BV09,CULTURE AND HERITAGE,BV09A,DEPT of COMMUNITY and STREETSCENE,PREMISES RELATED EXPENDITURE,2,Utilities,37,ELECTRICITY,2120,28/10/2016,569020,2054.64 ,Revenue,EDF ENERGY,02366852
Fareham Borough Council,http://statistics.data.gov.uk/id/local-authority/24UE,OTHER REVENUE ACCOUNTS,RV,NON WORK GROUP HOLDING ACCOUNT,RV18,DEPT of FINANCE and RESOURCES,PREMISES RELATED EXPENDITURE,2,Utilities,37,ELECTRICITY,2120,28/10/2016,569020,10837.67 ,Revenue,EDF ENERGY,02366852
Fareham Borough Council,http://statistics.data.gov.uk/id/local-authority/24UE,BALANCE SHEET,BS,FMS BAL.SHEET & CONTROL ACCT.,BS1,FMS BAL.SHEET & CONTROL ACCT.,CONTROL ACCOUNTS,C001,Financial Services,20,GOVT PROCURE CARD-CASH CONTROL,C114,14/10/2016,569021,2650.82 ,Balance Sheet,NATWEST COMMERCIAL CARDS,929027
Fareham Borough Council,http://statistics.data.gov.uk/id/local-authority/24UE,BALANCE SHEET,BS,FMS BAL.SHEET & CONTROL ACCT.,BS1,FMS BAL.SHEET & CONTROL ACCT.,CONTROL ACCOUNTS,C001,Financial Services,20,GOVT PROCURE CARD-CASH CONTROL,C114,14/10/2016,569022,24754.50 ,Balance Sheet,NATWEST COMMERCIAL CARDS,929027
Fareham Borough Council,http://statistics.data.gov.uk/id/local-authority/24UE,OTHER REVENUE ACCOUNTS,RV,NON WORK GROUP HOLDING ACCOUNT,RV18,DEPT of FINANCE and RESOURCES,SUPPLIES & SERVICES,4,Information Communication Technology,27,SOFTWARE LICENCES,4530,14/10/2016,569027,2730.24 ,Revenue,ADVANCED BUSINESS SOLUTIONS,03214465
Fareham Borough Council,http://statistics.data.gov.uk/id/local-authority/24UE,CORPORATE & DEMOCRATIC CORE,BV07A,CORPORATE MANAGEMENT,BV07AB,DEPT of FINANCE and RESOURCES,SUPPLIES & SERVICES,4,Information Communication Technology,27,PUBLICITY AND PROMOTION,4912,14/10/2016,569028,25.71 ,Revenue,TIMICO LTD,04841830
Fareham Borough Council,http://statistics.data.gov.uk/id/local-authority/24UE,OTHER REVENUE ACCOUNTS,RV,NON WORK GROUP HOLDING ACCOUNT,RV18,DEPT of FINANCE and RESOURCES,SUPPLIES & SERVICES,4,Information Communication Technology,27,SOFTWARE LICENCES,4530,14/10/2016,569028,2151.83 ,Revenue,TIMICO LTD,04841830
Fareham Borough Council,http://statistics.data.gov.uk/id/local-authority/24UE,CULTURAL AND RELATED SERVICES,BV09,RECREATION AND SPORT,BV09B,DEPT of COMMUNITY and STREETSCENE,PREMISES RELATED EXPENDITURE,2,Environmental Services,18,R & M OF BUILDINGS,2000,14/10/2016,569030,867.89 ,Revenue,CLEARWATER TECHNOLOGY LTD,03659610
Fareham Borough Council,http://statistics.data.gov.uk/id/local-authority/24UE,CULTURAL AND RELATED SERVICES,BV09,CULTURE AND HERITAGE,BV09A,DEPT of COMMUNITY and STREETSCENE,PREMISES RELATED EXPENDITURE,2,Environmental Services,18,R & M OF BUILDINGS,2000,14/10/2016,569030,192.65 ,Revenue,CLEARWATER TECHNOLOGY LTD,03659610
Fareham Borough Council,http://statistics.data.gov.uk/id/local-authority/24UE,CULTURAL AND RELATED SERVICES,BV09,RECREATION AND SPORT,BV09B,DEPT of COMMUNITY and STREETSCENE,PREMISES RELATED EXPENDITURE,2,Environmental Services,18,R & M OF BUILDINGS,2000,14/10/2016,569030,38.16 ,Revenue,CLEARWATER TECHNOLOGY LTD,03659610
Fareham Borough Council,http://statistics.data.gov.uk/id/local-authority/24UE,ENVIRONMENT AND REGULATORY SER,BV03,ENVIRONMENTAL HEALTH,BV03C,DEPT STREETSCENE,PREMISES RELATED EXPENDITURE,2,Environmental Services,18,R & M OF BUILDINGS,2000,14/10/2016,569030,128.00 ,Revenue,CLEARWATER TECHNOLOGY LTD,03659610
Fareham Borough Council,http://statistics.data.gov.uk/id/local-authority/24UE,HOUSING REVENUE ACCOUNT,BV06,RESPONSIVE & VOID MAINTENANCE,5901,DEPT STREETSCENE,PREMISES RELATED EXPENDITURE,2,Environmental Services,18,GENERAL REPAIRS,2018,14/10/2016,569030,243.25 ,Revenue,CLEARWATER TECHNOLOGY LTD,03659610
Fareham Borough Council,http://statistics.data.gov.uk/id/local-authority/24UE,OTHER REVENUE ACCOUNTS,RV,NON WORK GROUP HOLDING ACCOUNT,RV18,DEPT of FINANCE and RESOURCES,PREMISES RELATED EXPENDITURE,2,Environmental Services,18,R & M OF BUILDINGS,2000,14/10/2016,569030,774.84 ,Revenue,CLEARWATER TECHNOLOGY LTD,03659610
Fareham Borough Council,http://statistics.data.gov.uk/id/local-authority/24UE,OTHER REVENUE ACCOUNTS,RV,NON WORK GROUP HOLDING ACCOUNT,RV18,DEPT of FINANCE and RESOURCES,PREMISES RELATED EXPENDITURE,2,Environmental Services,18,R & M OF BUILDINGS,2000,14/10/2016,569030,35.08 ,Revenue,CLEARWATER TECHNOLOGY LTD,03659610
Fareham Borough Council,http://statistics.data.gov.uk/id/local-authority/24UE,HOUSING REVENUE ACCOUNT,BV06,RESPONSIVE & VOID MAINTENANCE,5901,DEPT STREETSCENE,PREMISES RELATED EXPENDITURE,2,"Works - Construction, Repair & Maintenance",39,R & M OF BUILDINGS,2000,14/10/2016,569031,37819.46 ,Revenue,A PURKISS BUILDING & DECORATING LTD,3561215
Fareham Borough Council,http://statistics.data.gov.uk/id/local-authority/24UE,CAPITAL PROGRAMME - OTHER SERVICES,CP,SCHEMES FUNDED FROM BALANCES,CP20,CAPITAL - SCHEMES FUNDED FROM BALANCES,PREMISES RELATED EXPENDITURE,2,"Works - Construction, Repair & Maintenance",39,R&M OF GROUNDS,2060,14/10/2016,569034,39818.19 ,Capital,PT CONTRACTORS LTD,01785514
Fareham Borough Council,http://statistics.data.gov.uk/id/local-authority/24UE,OTHER REVENUE ACCOUNTS,RV,NON WORK GROUP HOLDING ACCOUNT,RV18,DEPT of FINANCE and RESOURCES,EMPLOYEES RELATED EXPENDITURE,1,Financial Services,20,AGENCY WORKERS,1050,14/10/2016,569091,600.00 ,Revenue,COMPLETE CASH MANAGEMENT LIMITED,08067814
Fareham Borough Council,http://statistics.data.gov.uk/id/local-authority/24UE,OTHER REVENUE ACCOUNTS,RV,NON WORK GROUP HOLDING ACCOUNT,RV18,DEPT of FINANCE and RESOURCES,EMPLOYEES RELATED EXPENDITURE,1,Financial Services,20,AGENCY WORKERS,1050,14/10/2016,569091,351.00 ,Revenue,COMPLETE CASH MANAGEMENT LIMITED,08067814
Fareham Borough Council,http://statistics.data.gov.uk/id/local-authority/24UE,OTHER REVENUE ACCOUNTS,RV,NON WORK GROUP HOLDING ACCOUNT,RV18,DEPT of FINANCE and RESOURCES,EMPLOYEES RELATED EXPENDITURE,1,Financial Services,20,AGENCY WORKERS,1050,14/10/2016,569091,1147.00 ,Revenue,COMPLETE CASH MANAGEMENT LIMITED,08067814
Fareham Borough Council,http://statistics.data.gov.uk/id/local-authority/24UE,CULTURAL AND RELATED SERVICES,BV09,RECREATION AND SPORT,BV09B,DEPT of COMMUNITY and STREETSCENE,SUPPLIES & SERVICES,4,Building Construction Materials,10,TOOLS & EQUIPMENT,4002,14/10/2016,569093,36.60 ,Revenue,GRIPCLAD LIMITED,7483292
Fareham Borough Council,http://statistics.data.gov.uk/id/local-authority/24UE,CULTURAL AND RELATED SERVICES,BV09,RECREATION AND SPORT,BV09B,DEPT of COMMUNITY and STREETSCENE,SUPPLIES & SERVICES,4,Building Construction Materials,10,TOOLS & EQUIPMENT,4002,14/10/2016,569093,32.52 ,Revenue,GRIPCLAD LIMITED,7483292
Fareham Borough Council,http://statistics.data.gov.uk/id/local-authority/24UE,CULTURAL AND RELATED SERVICES,BV09,RECREATION AND SPORT,BV09B,DEPT of COMMUNITY and STREETSCENE,SUPPLIES & SERVICES,4,Building Construction Materials,10,TOOLS & EQUIPMENT,4002,14/10/2016,569093,498.00 ,Revenue,GRIPCLAD LIMITED,7483292
Fareham Borough Council,http://statistics.data.gov.uk/id/local-authority/24UE,OTHER REVENUE ACCOUNTS,RV,NON WORK GROUP HOLDING ACCOUNT,RV18,DEPT STREETSCENE,SUPPLIES & SERVICES,4,Utilities,37,FURNITURE & EQUIPT. MAINT.,4030,14/10/2016,569095,2.00 ,Revenue,BOC LIMITED,00337663
Fareham Borough Council,http://statistics.data.gov.uk/id/local-authority/24UE,OTHER REVENUE ACCOUNTS,RV,NON WORK GROUP HOLDING ACCOUNT,RV18,DEPT STREETSCENE,SUPPLIES & SERVICES,4,Utilities,37,FURNITURE & EQUIPT. MAINT.,4030,14/10/2016,569095,1.95 ,Revenue,BOC LIMITED,00337663
Fareham Borough Council,http://statistics.data.gov.uk/id/local-authority/24UE,OTHER REVENUE ACCOUNTS,RV,NON WORK GROUP HOLDING ACCOUNT,RV18,DEPT STREETSCENE,SUPPLIES & SERVICES,4,Utilities,37,FURNITURE & EQUIPT. MAINT.,4030,14/10/2016,569095,159.98 ,Revenue,BOC LIMITED,00337663
Fareham Borough Council,http://statistics.data.gov.uk/id/local-authority/24UE,OTHER REVENUE ACCOUNTS,RV,NON WORK GROUP HOLDING ACCOUNT,RV18,DEPT STREETSCENE,SUPPLIES & SERVICES,4,Utilities,37,FURNITURE & EQUIPT. MAINT.,4030,14/10/2016,569095,151.98 ,Revenue,BOC LIMITED,00337663
Fareham Borough Council,http://statistics.data.gov.uk/id/local-authority/24UE,OTHER REVENUE ACCOUNTS,RV,NON WORK GROUP HOLDING ACCOUNT,RV18,DEPT STREETSCENE,SUPPLIES & SERVICES,4,Utilities,37,FURNITURE & EQUIPT. MAINT.,4030,14/10/2016,569095,179.98 ,Revenue,BOC LIMITED,00337663
Fareham Borough Council,http://statistics.data.gov.uk/id/local-authority/24UE,OTHER REVENUE ACCOUNTS,RV,NON WORK GROUP HOLDING ACCOUNT,RV18,DEPT STREETSCENE,SUPPLIES & SERVICES,4,Utilities,37,FURNITURE & EQUIPT. MAINT.,4030,14/10/2016,569095,39.99 ,Revenue,BOC LIMITED,00337663
Fareham Borough Council,http://statistics.data.gov.uk/id/local-authority/24UE,OTHER REVENUE ACCOUNTS,RV,NON WORK GROUP HOLDING ACCOUNT,RV18,DEPT STREETSCENE,SUPPLIES & SERVICES,4,Utilities,37,FURNITURE & EQUIPT. MAINT.,4030,14/10/2016,569095,39.99 ,Revenue,BOC LIMITED,00337663
Fareham Borough Council,http://statistics.data.gov.uk/id/local-authority/24UE,OTHER REVENUE ACCOUNTS,RV,NON WORK GROUP HOLDING ACCOUNT,RV18,DEPT STREETSCENE,SUPPLIES & SERVICES,4,Utilities,37,FURNITURE & EQUIPT. MAINT.,4030,14/10/2016,569095,69.99 ,Revenue,BOC LIMITED,00337663
Fareham Borough Council,http://statistics.data.gov.uk/id/local-authority/24UE,OTHER REVENUE ACCOUNTS,RV,NON WORK GROUP HOLDING ACCOUNT,RV18,DEPT STREETSCENE,SUPPLIES & SERVICES,4,Utilities,37,FURNITURE & EQUIPT. MAINT.,4030,14/10/2016,569095,69.99 ,Revenue,BOC LIMITED,00337663
Fareham Borough Council,http://statistics.data.gov.uk/id/local-authority/24UE,OTHER REVENUE ACCOUNTS,RV,NON WORK GROUP HOLDING ACCOUNT,RV18,DEPT STREETSCENE,SUPPLIES & SERVICES,4,Utilities,37,FURNITURE & EQUIPT. MAINT.,4030,14/10/2016,569095,89.99 ,Revenue,BOC LIMITED,00337663
Fareham Borough Council,http://statistics.data.gov.uk/id/local-authority/24UE,OTHER REVENUE ACCOUNTS,RV,NON WORK GROUP HOLDING ACCOUNT,RV18,DEPT STREETSCENE,SUPPLIES & SERVICES,4,Utilities,37,FURNITURE & EQUIPT. MAINT.,4030,14/10/2016,569095,10.00 ,Revenue,BOC LIMITED,00337663
Fareham Borough Council,http://statistics.data.gov.uk/id/local-authority/24UE,OTHER REVENUE ACCOUNTS,RV,NON WORK GROUP HOLDING ACCOUNT,RV18,DEPT STREETSCENE,SUPPLIES & SERVICES,4,Utilities,37,FURNITURE & EQUIPT. MAINT.,4030,14/10/2016,569095,5.00 ,Revenue,BOC LIMITED,00337663
Fareham Borough Council,http://statistics.data.gov.uk/id/local-authority/24UE,OTHER REVENUE ACCOUNTS,RV,NON WORK GROUP HOLDING ACCOUNT,RV18,DEPT STREETSCENE,SUPPLIES & SERVICES,4,Utilities,37,FURNITURE & EQUIPT. MAINT.,4030,14/10/2016,569095,159.98 ,Revenue,BOC LIMITED,00337663
Fareham Borough Council,http://statistics.data.gov.uk/id/local-authority/24UE,OTHER REVENUE ACCOUNTS,RV,NON WORK GROUP HOLDING ACCOUNT,RV18,DEPT STREETSCENE,SUPPLIES & SERVICES,4,Utilities,37,FURNITURE & EQUIPT. MAINT.,4030,14/10/2016,569095,19.70 ,Revenue,BOC LIMITED,00337663
Fareham Borough Council,http://statistics.data.gov.uk/id/local-authority/24UE,OTHER REVENUE ACCOUNTS,RV,NON WORK GROUP HOLDING ACCOUNT,RV18,DEPT STREETSCENE,SUPPLIES & SERVICES,4,Utilities,37,FURNITURE & EQUIPT. MAINT.,4030,14/10/2016,569095,15.85 ,Revenue,BOC LIMITED,00337663
Fareham Borough Council,http://statistics.data.gov.uk/id/local-authority/24UE,OTHER REVENUE ACCOUNTS,RV,NON WORK GROUP HOLDING ACCOUNT,RV18,DEPT STREETSCENE,SUPPLIES & SERVICES,4,Utilities,37,FURNITURE & EQUIPT. MAINT.,4030,14/10/2016,569095,47.55 ,Revenue,BOC LIMITED,00337663
Fareham Borough Council,http://statistics.data.gov.uk/id/local-authority/24UE,OTHER REVENUE ACCOUNTS,RV,NON WORK GROUP HOLDING ACCOUNT,RV18,DEPT STREETSCENE,SUPPLIES & SERVICES,4,Utilities,37,FURNITURE & EQUIPT. MAINT.,4030,14/10/2016,569095,19.70 ,Revenue,BOC LIMITED,00337663
Fareham Borough Council,http://statistics.data.gov.uk/id/local-authority/24UE,CAPITAL PROGRAMME - OTHER SERVICES,CP,SCHEMES FUNDED FROM BALANCES,CP20,CAPITAL - SCHEMES FUNDED FROM BALANCES,SUPPLIES & SERVICES,4,"Works - Construction, Repair & Maintenance",39,CONSULTANTS FEES,4401,14/10/2016,569101,1000.00 ,Capital,JUBB CONSULTING ENGINEERS LTD,4080619
Fareham Borough Council,http://statistics.data.gov.uk/id/local-authority/24UE,CULTURAL AND RELATED SERVICES,BV09,RECREATION AND SPORT,BV09B,DEPT of COMMUNITY and STREETSCENE,PREMISES RELATED EXPENDITURE,2,"Works - Construction, Repair & Maintenance",39,R&M OUTDOOR SPORTS FACILITIES,2066,14/10/2016,569102,350.00 ,Revenue,SOUTHERN GROUND CARE LTD,8299161
Fareham Borough Council,http://statistics.data.gov.uk/id/local-authority/24UE,OTHER REVENUE ACCOUNTS,RV,CONTRACT SERVICES D.S.O.,RV14,DEPT STREETSCENE,SUPPLIES & SERVICES,4,"Works - Construction, Repair & Maintenance",39,SUB-CONTRACTORS CHARGES,4432,14/10/2016,569102,620.00 ,Revenue,SOUTHERN GROUND CARE LTD,8299161
Fareham Borough Council,http://statistics.data.gov.uk/id/local-authority/24UE,OTHER REVENUE ACCOUNTS,RV,HCC TRANSPORTATION (REVENUE),RV11,DEPT STREETSCENE,THIRD PARTY PAYMENTS,5,Facilities & Management Services,19,PRIVATE CONTRACTORS,5610,21/10/2016,569103,758.90 ,Revenue,HAMPSHIRE MEDIA LTD,4139403
Fareham Borough Council,http://statistics.data.gov.uk/id/local-authority/24UE,OTHER REVENUE ACCOUNTS,RV,NON WORK GROUP HOLDING ACCOUNT,RV18,DEPT of FINANCE and RESOURCES,SUPPLIES & SERVICES,4,Public Transport,36,REMOVAL & STORAGE OF FURNITURE,4090,21/10/2016,569110,3595.00 ,Revenue,LEATHERBARROWS REMOVALS&STORAGE LTD,01493244
Fareham Borough Council,http://statistics.data.gov.uk/id/local-authority/24UE,ENVIRONMENT AND REGULATORY SER,BV03,WASTE COLLECTION,BV03G,DEPT STREETSCENE,TRANSPORT RELATED EXPENDITURE,3,Vehicle Management,38,ROUTINE REPAIRS VEHICLES/PLANT,3010,14/10/2016,569112,850.00 ,Revenue,BOARHUNT GROUP LTD,02884453
Fareham Borough Council,http://statistics.data.gov.uk/id/local-authority/24UE,CULTURAL AND RELATED SERVICES,BV09,RECREATION AND SPORT,BV09B,DEPT STREETSCENE,PREMISES RELATED EXPENDITURE,2,Catering,11,FAREHAM IN BLOOM,2068,14/10/2016,569114,2499.00 ,Revenue,WRIGHT CHOICE CATERING,08448051
Fareham Borough Council,http://statistics.data.gov.uk/id/local-authority/24UE,CULTURAL AND RELATED SERVICES,BV09,RECREATION AND SPORT,BV09B,DEPT STREETSCENE,PREMISES RELATED EXPENDITURE,2,Catering,11,FAREHAM IN BLOOM,2068,14/10/2016,569114,206.50 ,Revenue,WRIGHT CHOICE CATERING,08448051
Fareham Borough Council,http://statistics.data.gov.uk/id/local-authority/24UE,OTHER REVENUE ACCOUNTS,RV,NON WORK GROUP HOLDING ACCOUNT,RV18,DEPT of FINANCE and RESOURCES,SUPPLIES & SERVICES,4,Information Communication Technology,27,SOFTWARE LICENCES,4530,28/10/2016,569115,54114.39 ,Revenue,BYTES SOFTWARE SERVICES LTD,1616977
Fareham Borough Council,http://statistics.data.gov.uk/id/local-authority/24UE,OTHER REVENUE ACCOUNTS,RV,NON WORK GROUP HOLDING ACCOUNT,RV18,DEPT of FINANCE and RESOURCES,SUPPLIES & SERVICES,4,Information Communication Technology,27,SOFTWARE LICENCES,4530,28/10/2016,569115,4252.70 ,Revenue,BYTES SOFTWARE SERVICES LTD,1616977
Fareham Borough Council,http://statistics.data.gov.uk/id/local-authority/24UE,FINANCING & INVESTMENT I&E,BVB02,INVESTMENT PROPERTIES,BVB170,DEPT of COMMUNITY and STREETSCENE,PREMISES RELATED EXPENDITURE,2,Building Construction Materials,10,R&M OF GROUNDS,2060,14/10/2016,569116,7.98 ,Revenue,TRADE UK,3006378
Fareham Borough Council,http://statistics.data.gov.uk/id/local-authority/24UE,HOUSING REVENUE ACCOUNT,BV06,RESPONSIVE & VOID MAINTENANCE,5901,DEPT STREETSCENE,SUPPLIES & SERVICES,4,Building Construction Materials,10,MATERIALS (OPERATIONAL),4007,14/10/2016,569116,765.19 ,Revenue,TRADE UK,3006378
Fareham Borough Council,http://statistics.data.gov.uk/id/local-authority/24UE,OTHER REVENUE ACCOUNTS,RV,CONTRACT SERVICES D.S.O.,RV14,DEPT STREETSCENE,SUPPLIES & SERVICES,4,Building Construction Materials,10,PROTECTIVE CLOTHING & UNIFORMS,4200,14/10/2016,569116,90.47 ,Revenue,TRADE UK,3006378
Fareham Borough Council,http://statistics.data.gov.uk/id/local-authority/24UE,OTHER REVENUE ACCOUNTS,RV,CONTRACT SERVICES D.S.O.,RV14,DEPT STREETSCENE,SUPPLIES & SERVICES,4,Building Construction Materials,10,MATERIALS (OPERATIONAL),4007,14/10/2016,569116,412.78 ,Revenue,TRADE UK,3006378
Fareham Borough Council,http://statistics.data.gov.uk/id/local-authority/24UE,OTHER REVENUE ACCOUNTS,RV,CONTRACT SERVICES D.S.O.,RV14,DEPT STREETSCENE,SUPPLIES & SERVICES,4,Building Construction Materials,10,TOOLS & EQUIPMENT,4002,14/10/2016,569116,558.97 ,Revenue,TRADE UK,3006378
Fareham Borough Council,http://statistics.data.gov.uk/id/local-authority/24UE,CORPORATE & DEMOCRATIC CORE,BV07A,CORPORATE MANAGEMENT,BV07AB,DEPT of FINANCE and RESOURCES,SUPPLIES & SERVICES,4,Consultancy,15,CONSULTANTS FEES,4401,14/10/2016,569118,6800.00 ,Revenue,VANGUARD CONSULTING LTD,2207133
Fareham Borough Council,http://statistics.data.gov.uk/id/local-authority/24UE,CAPITAL PROGRAMME - OTHER SERVICES,CP,APPROVED PROGRAMME,CP24,CAPITAL - APPROVED PROGRAMME,SUPPLIES & SERVICES,4,Consultancy,15,CONSULTANTS FEES,4401,14/10/2016,569119,3500.00 ,Capital,BAQUS GROUP PLC,6013357
Fareham Borough Council,http://statistics.data.gov.uk/id/local-authority/24UE,CORPORATE & DEMOCRATIC CORE,BV07A,DEMOCRATIC REP.& MANAGEMENT,BV07AA,DEPT of FINANCE and RESOURCES,SUPPLIES & SERVICES,4,Local/Central Government,98,GRAPHIC DESIGN SERVICE,4445,21/10/2016,569120,50.00 ,Revenue,EASTLEIGH BOROUGH COUNCIL,
Fareham Borough Council,http://statistics.data.gov.uk/id/local-authority/24UE,CORPORATE & DEMOCRATIC CORE,BV07A,DEMOCRATIC REP.& MANAGEMENT,BV07AA,DEPT of FINANCE and RESOURCES,SUPPLIES & SERVICES,4,Local/Central Government,98,GRAPHIC DESIGN SERVICE,4445,21/10/2016,569120,70.00 ,Revenue,EASTLEIGH BOROUGH COUNCIL,
Fareham Borough Council,http://statistics.data.gov.uk/id/local-authority/24UE,CORPORATE & DEMOCRATIC CORE,BV07A,CORPORATE MANAGEMENT,BV07AB,DEPT of FINANCE and RESOURCES,SUPPLIES & SERVICES,4,Local/Central Government,98,GRAPHIC DESIGN SERVICE,4445,21/10/2016,569120,70.00 ,Revenue,EASTLEIGH BOROUGH COUNCIL,
Fareham Borough Council,http://statistics.data.gov.uk/id/local-authority/24UE,PLANNING SERVICES,BV13,ECONOMIC DEVELOPMENT,BV13E,DEPT of COMMUNITY and STREETSCENE,SUPPLIES & SERVICES,4,Local/Central Government,98,GRAPHIC DESIGN SERVICE,4445,21/10/2016,569120,70.00 ,Revenue,EASTLEIGH BOROUGH COUNCIL,
Fareham Borough Council,http://statistics.data.gov.uk/id/local-authority/24UE,PLANNING SERVICES,BV13,ECONOMIC DEVELOPMENT,BV13E,DEPT of COMMUNITY and STREETSCENE,SUPPLIES & SERVICES,4,Local/Central Government,98,EXTERNAL PRINTING,4310,21/10/2016,569120,50.00 ,Revenue,EASTLEIGH BOROUGH COUNCIL,
Fareham Borough Council,http://statistics.data.gov.uk/id/local-authority/24UE,PLANNING SERVICES,BV13,ECONOMIC DEVELOPMENT,BV13E,DEPT of COMMUNITY and STREETSCENE,SUPPLIES & SERVICES,4,Local/Central Government,98,EXTERNAL PRINTING,4310,21/10/2016,569120,15.00 ,Revenue,EASTLEIGH BOROUGH COUNCIL,
Fareham Borough Council,http://statistics.data.gov.uk/id/local-authority/24UE,PLANNING SERVICES,BV13,ECONOMIC DEVELOPMENT,BV13E,DEPT of COMMUNITY and STREETSCENE,SUPPLIES & SERVICES,4,Local/Central Government,98,GRAPHIC DESIGN SERVICE,4445,21/10/2016,569120,70.00 ,Revenue,EASTLEIGH BOROUGH COUNCIL,
Fareham Borough Council,http://statistics.data.gov.uk/id/local-authority/24UE,CULTURAL AND RELATED SERVICES,BV09,RECREATION AND SPORT,BV09B,DEPT STREETSCENE,SUPPLIES & SERVICES,4,Local/Central Government,98,GRAPHIC DESIGN SERVICE,4445,21/10/2016,569120,90.00 ,Revenue,EASTLEIGH BOROUGH COUNCIL,
Fareham Borough Council,http://statistics.data.gov.uk/id/local-authority/24UE,ENVIRONMENT AND REGULATORY SER,BV03,WASTE COLLECTION,BV03G,DEPT STREETSCENE,SUPPLIES & SERVICES,4,Local/Central Government,98,GRAPHIC DESIGN SERVICE,4445,21/10/2016,569120,180.00 ,Revenue,EASTLEIGH BOROUGH COUNCIL,
Fareham Borough Council,http://statistics.data.gov.uk/id/local-authority/24UE,OTHER REVENUE ACCOUNTS,RV,NON WORK GROUP HOLDING ACCOUNT,RV18,DEPT of FINANCE and RESOURCES,SUPPLIES & SERVICES,4,Information Communication Technology,27,TELEPHONES,4510,21/10/2016,569121,1800.00 ,Revenue,CHARTERHOUSE VOICE AND DATA PLC,02804354
Fareham Borough Council,http://statistics.data.gov.uk/id/local-authority/24UE,OTHER REVENUE ACCOUNTS,RV,CONTRACT SERVICES D.S.O.,RV14,DEPT STREETSCENE,SUPPLIES & SERVICES,4,Environmental Services,18,SUB-CONTRACTORS CHARGES,4432,14/10/2016,569134,750.00 ,Revenue,L&S WASTE MANAGEMENT LTD,03475329
Fareham Borough Council,http://statistics.data.gov.uk/id/local-authority/24UE,OTHER REVENUE ACCOUNTS,RV,CONTRACT SERVICES D.S.O.,RV14,DEPT STREETSCENE,SUPPLIES & SERVICES,4,Environmental Services,18,SUB-CONTRACTORS CHARGES,4432,14/10/2016,569134,375.00 ,Revenue,L&S WASTE MANAGEMENT LTD,03475329
Fareham Borough Council,http://statistics.data.gov.uk/id/local-authority/24UE,HOUSING REVENUE ACCOUNT,BV06,RESPONSIVE & VOID MAINTENANCE,5901,DEPT STREETSCENE,PREMISES RELATED EXPENDITURE,2,Environmental Services,18,SPECIAL REFUSE COLLECTIONS,2750,14/10/2016,569135,1396.08 ,Revenue,VEOLIA ES HAMPSHIRE LIMITED,02817856
Fareham Borough Council,http://statistics.data.gov.uk/id/local-authority/24UE,CULTURAL AND RELATED SERVICES,BV09,CULTURE AND HERITAGE,BV09A,DEPT of COMMUNITY and STREETSCENE,SUPPLIES & SERVICES,4,Facilities & Management Services,19,ADVERTISING,4910,14/10/2016,569136,900.00 ,Revenue,ATLAS UK LIMITED,2444130
Fareham Borough Council,http://statistics.data.gov.uk/id/local-authority/24UE,HOUSING REVENUE ACCOUNT,BV06,GENERAL ADMINISTRATION EXPENSE,5021,DEPT of COMMUNITY and STREETSCENE,SUPPLIES & SERVICES,4,Financial Services,20,PAYMENT CARD CHARGES,4411,14/10/2016,569138,1110.42 ,Revenue,ALLPAY LIMITED,02933191
Fareham Borough Council,http://statistics.data.gov.uk/id/local-authority/24UE,CAPITAL PROGRAMME - HOUSING SERVICES,CP,RENOVATION OF L.A. DWELLINGS,CP10,CAPITAL - HOUSING CAPITAL HOLDING A/C,PREMISES RELATED EXPENDITURE,2,Unclassified,98,LAND/BUILDINGS ACQUISITIONS,2601,14/10/2016,569139,3750.00 ,Capital,H M REVENUE & CUSTOMS,
Fareham Borough Council,http://statistics.data.gov.uk/id/local-authority/24UE,CULTURAL AND RELATED SERVICES,BV09,RECREATION AND SPORT,BV09B,DEPT of COMMUNITY and STREETSCENE,PREMISES RELATED EXPENDITURE,2,Utilities,37,SEWERAGE & ENV. CHARGES (SWS),2410,14/10/2016,569151,1340.27 ,Revenue,SOUTHERN WATER SERVICES PLC,02366670
Fareham Borough Council,http://statistics.data.gov.uk/id/local-authority/24UE,GENERAL FUND HOUSING,BV05,HOMELESSNESS,BV05F,DEPT of COMMUNITY and STREETSCENE,SUPPLIES & SERVICES,4,Building Construction Materials,10,MATERIALS (OPERATIONAL),4007,14/10/2016,569169,876.18 ,Revenue,SPECIALIST BUILDING DISTRIBUTION LTD,2599297
Fareham Borough Council,http://statistics.data.gov.uk/id/local-authority/24UE,CAPITAL PROGRAMME - HOUSING SERVICES,CP,RENOVATION OF L.A. DWELLINGS,CP10,CAPITAL - IMPROVEMENTS WORK/MODERNIS'N,SUPPLIES & SERVICES,4,Building Construction Materials,10,MATERIALS (OPERATIONAL),4007,14/10/2016,569171,877.15 ,Capital,SPECIALIST BUILDING DISTRIBUTION LTD,2599297
Fareham Borough Council,http://statistics.data.gov.uk/id/local-authority/24UE,CAPITAL PROGRAMME - HOUSING SERVICES,CP,RENOVATION OF L.A. DWELLINGS,CP10,CAPITAL - IMPROVEMENTS WORK/MODERNIS'N,PREMISES RELATED EXPENDITURE,2,Building Construction Materials,10,GENERAL REPAIRS,2018,14/10/2016,569174,1219.26 ,Capital,R&M DESIGN DEVELOPMENTS,NP889014A
Fareham Borough Council,http://statistics.data.gov.uk/id/local-authority/24UE,CAPITAL PROGRAMME - HOUSING SERVICES,CP,RENOVATION OF L.A. DWELLINGS,CP10,CAPITAL - IMPROVEMENTS WORK/MODERNIS'N,PREMISES RELATED EXPENDITURE,2,Building Construction Materials,10,GENERAL REPAIRS,2018,14/10/2016,569174,-1219.26 ,Capital,R&M DESIGN DEVELOPMENTS,NP889014A
Fareham Borough Council,http://statistics.data.gov.uk/id/local-authority/24UE,CAPITAL PROGRAMME - HOUSING SERVICES,CP,RENOVATION OF L.A. DWELLINGS,CP10,CAPITAL - IMPROVEMENTS WORK/MODERNIS'N,PREMISES RELATED EXPENDITURE,2,Building Construction Materials,10,GENERAL REPAIRS,2018,14/10/2016,569174,1100.00 ,Capital,R&M DESIGN DEVELOPMENTS,NP889014A
Fareham Borough Council,http://statistics.data.gov.uk/id/local-authority/24UE,CAPITAL PROGRAMME - HOUSING SERVICES,CP,RENOVATION OF L.A. DWELLINGS,CP10,CAPITAL - IMPROVEMENTS WORK/MODERNIS'N,PREMISES RELATED EXPENDITURE,2,Building Construction Materials,10,GENERAL REPAIRS,2018,14/10/2016,569174,119.26 ,Capital,R&M DESIGN DEVELOPMENTS,NP889014A
Fareham Borough Council,http://statistics.data.gov.uk/id/local-authority/24UE,CAPITAL PROGRAMME - HOUSING SERVICES,CP,RENOVATION OF L.A. DWELLINGS,CP10,CAPITAL - IMPROVEMENTS WORK/MODERNIS'N,PREMISES RELATED EXPENDITURE,2,Building Construction Materials,10,GENERAL REPAIRS,2018,14/10/2016,569178,1042.75 ,Capital,R&M DESIGN DEVELOPMENTS,NP889014A
Fareham Borough Council,http://statistics.data.gov.uk/id/local-authority/24UE,CAPITAL PROGRAMME - HOUSING SERVICES,CP,RENOVATION OF L.A. DWELLINGS,CP10,CAPITAL - IMPROVEMENTS WORK/MODERNIS'N,PREMISES RELATED EXPENDITURE,2,Building Construction Materials,10,GENERAL REPAIRS,2018,14/10/2016,569178,-1042.75 ,Capital,R&M DESIGN DEVELOPMENTS,NP889014A
Fareham Borough Council,http://statistics.data.gov.uk/id/local-authority/24UE,CAPITAL PROGRAMME - HOUSING SERVICES,CP,RENOVATION OF L.A. DWELLINGS,CP10,CAPITAL - IMPROVEMENTS WORK/MODERNIS'N,PREMISES RELATED EXPENDITURE,2,Building Construction Materials,10,GENERAL REPAIRS,2018,14/10/2016,569178,940.00 ,Capital,R&M DESIGN DEVELOPMENTS,NP889014A
Fareham Borough Council,http://statistics.data.gov.uk/id/local-authority/24UE,CAPITAL PROGRAMME - HOUSING SERVICES,CP,RENOVATION OF L.A. DWELLINGS,CP10,CAPITAL - IMPROVEMENTS WORK/MODERNIS'N,PREMISES RELATED EXPENDITURE,2,Building Construction Materials,10,GENERAL REPAIRS,2018,14/10/2016,569178,102.75 ,Capital,R&M DESIGN DEVELOPMENTS,NP889014A
Fareham Borough Council,http://statistics.data.gov.uk/id/local-authority/24UE,HOUSING REVENUE ACCOUNT,BV06,RESPONSIVE & VOID MAINTENANCE,5901,DEPT STREETSCENE,SUPPLIES & SERVICES,4,Building Construction Materials,10,MATERIALS (OPERATIONAL),4007,14/10/2016,569180,1029.44 ,Revenue,WILLIAMS TRADE SUPPLIES LTD,1864711
Fareham Borough Council,http://statistics.data.gov.uk/id/local-authority/24UE,OTHER REVENUE ACCOUNTS,RV,CONTRACT SERVICES D.S.O.,RV14,DEPT STREETSCENE,SUPPLIES & SERVICES,4,Building Construction Materials,10,MATERIALS (OPERATIONAL),4007,14/10/2016,569180,1372.95 ,Revenue,WILLIAMS TRADE SUPPLIES LTD,1864711
Fareham Borough Council,http://statistics.data.gov.uk/id/local-authority/24UE,CULTURAL AND RELATED SERVICES,BV09,CULTURE AND HERITAGE,BV09A,DEPT of COMMUNITY and STREETSCENE,SUPPLIES & SERVICES,4,Building Construction Materials,10,MATERIALS (OPERATIONAL),4007,14/10/2016,569204,11.89 ,Revenue,WILTS ELECTRICAL WHOLESALERS,00679117
Fareham Borough Council,http://statistics.data.gov.uk/id/local-authority/24UE,HOUSING REVENUE ACCOUNT,BV06,RESPONSIVE & VOID MAINTENANCE,5901,DEPT STREETSCENE,SUPPLIES & SERVICES,4,Building Construction Materials,10,POP DEFAULT ACCOUNT,4XXX,14/10/2016,569204,769.91 ,Revenue,WILTS ELECTRICAL WHOLESALERS,00679117
Fareham Borough Council,http://statistics.data.gov.uk/id/local-authority/24UE,OTHER REVENUE ACCOUNTS,RV,CONTRACT SERVICES D.S.O.,RV14,DEPT STREETSCENE,SUPPLIES & SERVICES,4,Building Construction Materials,10,MATERIALS (OPERATIONAL),4007,14/10/2016,569204,30.74 ,Revenue,WILTS ELECTRICAL WHOLESALERS,00679117
Fareham Borough Council,http://statistics.data.gov.uk/id/local-authority/24UE,CULTURAL AND RELATED SERVICES,BV09,RECREATION AND SPORT,BV09B,DEPT STREETSCENE,SUPPLIES & SERVICES,4,Sports & Playground Equipment & Maintenance,33,FURNITURE & EQUIPT. PURCHASES,4000,14/10/2016,569207,4000.00 ,Revenue,HAGS- SMP LIMITED,00908021
Fareham Borough Council,http://statistics.data.gov.uk/id/local-authority/24UE,CENTRAL SERVICES,BV07,CENTRAL SERVICES TO THE PUBLIC,BV07B,DEPT of FINANCE and RESOURCES,SUPPLIES & SERVICES,4,Information Communication Technology,27,SEMINAR/CONFERENCES EMPLOYEES,4612,21/10/2016,569208,275.00 ,Revenue,XPRESS SOFTWARE SOLUTIONS LTD,04152280
Fareham Borough Council,http://statistics.data.gov.uk/id/local-authority/24UE,CENTRAL SERVICES,BV07,CENTRAL SERVICES TO THE PUBLIC,BV07B,DEPT of FINANCE and RESOURCES,SUPPLIES & SERVICES,4,Information Communication Technology,27,SEMINAR/CONFERENCES EMPLOYEES,4612,21/10/2016,569208,275.00 ,Revenue,XPRESS SOFTWARE SOLUTIONS LTD,04152280
Fareham Borough Council,http://statistics.data.gov.uk/id/local-authority/24UE,HOUSING REVENUE ACCOUNT,BV06,RESPONSIVE & VOID MAINTENANCE,5901,DEPT STREETSCENE,PREMISES RELATED EXPENDITURE,2,Environmental Services,18,GENERAL REPAIRS,2018,21/10/2016,569210,650.00 ,Revenue,R H INSULATION SERVICES LIMITED,02062526
Fareham Borough Council,http://statistics.data.gov.uk/id/local-authority/24UE,HOUSING REVENUE ACCOUNT,BV06,RESPONSIVE & VOID MAINTENANCE,5901,DEPT STREETSCENE,PREMISES RELATED EXPENDITURE,2,Environmental Services,18,GENERAL REPAIRS,2018,21/10/2016,569211,600.00 ,Revenue,R H INSULATION SERVICES LIMITED,02062526
Fareham Borough Council,http://statistics.data.gov.uk/id/local-authority/24UE,HOUSING REVENUE ACCOUNT,BV06,RESPONSIVE & VOID MAINTENANCE,5901,DEPT STREETSCENE,PREMISES RELATED EXPENDITURE,2,Building Construction Materials,10,GENERAL REPAIRS,2018,14/10/2016,569218,3456.04 ,Revenue,BALMORAL FLOORING LTD,5196959
Fareham Borough Council,http://statistics.data.gov.uk/id/local-authority/24UE,HOUSING REVENUE ACCOUNT,BV06,RESPONSIVE & VOID MAINTENANCE,5901,DEPT STREETSCENE,PREMISES RELATED EXPENDITURE,2,Building Construction Materials,10,GENERAL REPAIRS,2018,14/10/2016,569218,-3456.04 ,Revenue,BALMORAL FLOORING LTD,5196959
Fareham Borough Council,http://statistics.data.gov.uk/id/local-authority/24UE,HOUSING REVENUE ACCOUNT,BV06,RESPONSIVE & VOID MAINTENANCE,5901,DEPT STREETSCENE,PREMISES RELATED EXPENDITURE,2,Building Construction Materials,10,GENERAL REPAIRS,2018,14/10/2016,569218,2357.61 ,Revenue,BALMORAL FLOORING LTD,5196959
Fareham Borough Council,http://statistics.data.gov.uk/id/local-authority/24UE,HOUSING REVENUE ACCOUNT,BV06,RESPONSIVE & VOID MAINTENANCE,5901,DEPT STREETSCENE,PREMISES RELATED EXPENDITURE,2,Building Construction Materials,10,GENERAL REPAIRS,2018,14/10/2016,569218,1098.43 ,Revenue,BALMORAL FLOORING LTD,5196959
Fareham Borough Council,http://statistics.data.gov.uk/id/local-authority/24UE,HOUSING REVENUE ACCOUNT,BV06,RESPONSIVE & VOID MAINTENANCE,5901,DEPT STREETSCENE,PREMISES RELATED EXPENDITURE,2,Building Construction Materials,10,GENERAL REPAIRS,2018,14/10/2016,569220,650.00 ,Revenue,CADE ROOFING & BUILDING SERVICES LTD,02795780
Fareham Borough Council,http://statistics.data.gov.uk/id/local-authority/24UE,CAPITAL PROGRAMME - OTHER SERVICES,CP,APPROVED PROGRAMME,CP24,CAPITAL - APPROVED PROGRAMME,SUPPLIES & SERVICES,4,Consultancy,15,CONSULTANTS FEES,4401,14/10/2016,569221,1195.00 ,Capital,BAQUS GROUP PLC,6013357
Fareham Borough Council,http://statistics.data.gov.uk/id/local-authority/24UE,CAPITAL PROGRAMME - HOUSING SERVICES,CP,RENOVATION OF L.A. DWELLINGS,CP10,CAPITAL - IMPROVEMENTS WORK/MODERNIS'N,PREMISES RELATED EXPENDITURE,2,"Works - Construction, Repair & Maintenance",39,R & M OF BUILDINGS,2000,14/10/2016,569223,15778.93 ,Capital,JPC PROPERTY SERVICES LTD,4704385
Fareham Borough Council,http://statistics.data.gov.uk/id/local-authority/24UE,CAPITAL PROGRAMME - OTHER SERVICES,CP,COMPUTER APPROVED,CP23,CAPITAL - COMPUTER APPROVED,SUPPLIES & SERVICES,4,Information Communication Technology,27,SOFTWARE LICENCES,4530,21/10/2016,569503,1192.50 ,Capital,BLUE CHIP DATA SYSTEMS LTD,02708840
Fareham Borough Council,http://statistics.data.gov.uk/id/local-authority/24UE,ENVIRONMENT AND REGULATORY SER,BV03,STREET CLEANSING,BV03F,DEPT STREETSCENE,TRANSPORT RELATED EXPENDITURE,3,Vehicle Management,38,TYRES,3022,21/10/2016,569512,72.98 ,Revenue,ATS EUROMASTER LIMITED,04303731
Fareham Borough Council,http://statistics.data.gov.uk/id/local-authority/24UE,ENVIRONMENT AND REGULATORY SER,BV03,STREET CLEANSING,BV03F,DEPT STREETSCENE,TRANSPORT RELATED EXPENDITURE,3,Vehicle Management,38,TYRES,3022,21/10/2016,569512,72.98 ,Revenue,ATS EUROMASTER LIMITED,04303731
Fareham Borough Council,http://statistics.data.gov.uk/id/local-authority/24UE,ENVIRONMENT AND REGULATORY SER,BV03,STREET CLEANSING,BV03F,DEPT STREETSCENE,TRANSPORT RELATED EXPENDITURE,3,Vehicle Management,38,TYRES,3022,21/10/2016,569512,296.90 ,Revenue,ATS EUROMASTER LIMITED,04303731
Fareham Borough Council,http://statistics.data.gov.uk/id/local-authority/24UE,ENVIRONMENT AND REGULATORY SER,BV03,STREET CLEANSING,BV03F,DEPT STREETSCENE,TRANSPORT RELATED EXPENDITURE,3,Vehicle Management,38,TYRES,3022,21/10/2016,569512,561.50 ,Revenue,ATS EUROMASTER LIMITED,04303731
Fareham Borough Council,http://statistics.data.gov.uk/id/local-authority/24UE,ENVIRONMENT AND REGULATORY SER,BV03,STREET CLEANSING,BV03F,DEPT STREETSCENE,TRANSPORT RELATED EXPENDITURE,3,Vehicle Management,38,TYRES,3022,21/10/2016,569512,21.70 ,Revenue,ATS EUROMASTER LIMITED,04303731
Fareham Borough Council,http://statistics.data.gov.uk/id/local-authority/24UE,ENVIRONMENT AND REGULATORY SER,BV03,STREET CLEANSING,BV03F,DEPT STREETSCENE,TRANSPORT RELATED EXPENDITURE,3,Vehicle Management,38,TYRES,3022,21/10/2016,569512,239.30 ,Revenue,ATS EUROMASTER LIMITED,04303731
Fareham Borough Council,http://statistics.data.gov.uk/id/local-authority/24UE,ENVIRONMENT AND REGULATORY SER,BV03,STREET CLEANSING,BV03F,DEPT STREETSCENE,TRANSPORT RELATED EXPENDITURE,3,Vehicle Management,38,TYRES,3022,21/10/2016,569512,32.86 ,Revenue,ATS EUROMASTER LIMITED,04303731
Fareham Borough Council,http://statistics.data.gov.uk/id/local-authority/24UE,ENVIRONMENT AND REGULATORY SER,BV03,WASTE COLLECTION,BV03G,DEPT STREETSCENE,TRANSPORT RELATED EXPENDITURE,3,Vehicle Management,38,TYRES,3022,21/10/2016,569512,267.20 ,Revenue,ATS EUROMASTER LIMITED,04303731
Fareham Borough Council,http://statistics.data.gov.uk/id/local-authority/24UE,ENVIRONMENT AND REGULATORY SER,BV03,WASTE COLLECTION,BV03G,DEPT STREETSCENE,TRANSPORT RELATED EXPENDITURE,3,Vehicle Management,38,TYRES,3022,21/10/2016,569512,77.25 ,Revenue,ATS EUROMASTER LIMITED,04303731
Fareham Borough Council,http://statistics.data.gov.uk/id/local-authority/24UE,ENVIRONMENT AND REGULATORY SER,BV03,WASTE COLLECTION,BV03G,DEPT STREETSCENE,TRANSPORT RELATED EXPENDITURE,3,Vehicle Management,38,TYRES,3022,21/10/2016,569512,444.38 ,Revenue,ATS EUROMASTER LIMITED,04303731
Fareham Borough Council,http://statistics.data.gov.uk/id/local-authority/24UE,ENVIRONMENT AND REGULATORY SER,BV03,WASTE COLLECTION,BV03G,DEPT STREETSCENE,TRANSPORT RELATED EXPENDITURE,3,Vehicle Management,38,TYRES,3022,21/10/2016,569512,228.80 ,Revenue,ATS EUROMASTER LIMITED,04303731
Fareham Borough Council,http://statistics.data.gov.uk/id/local-authority/24UE,ENVIRONMENT AND REGULATORY SER,BV03,WASTE COLLECTION,BV03G,DEPT STREETSCENE,TRANSPORT RELATED EXPENDITURE,3,Vehicle Management,38,TYRES,3022,21/10/2016,569512,198.80 ,Revenue,ATS EUROMASTER LIMITED,04303731
Fareham Borough Council,http://statistics.data.gov.uk/id/local-authority/24UE,ENVIRONMENT AND REGULATORY SER,BV03,WASTE COLLECTION,BV03G,DEPT STREETSCENE,TRANSPORT RELATED EXPENDITURE,3,Vehicle Management,38,TYRES,3022,21/10/2016,569512,250.60 ,Revenue,ATS EUROMASTER LIMITED,04303731
Fareham Borough Council,http://statistics.data.gov.uk/id/local-authority/24UE,ENVIRONMENT AND REGULATORY SER,BV03,WASTE COLLECTION,BV03G,DEPT STREETSCENE,TRANSPORT RELATED EXPENDITURE,3,Vehicle Management,38,TYRES,3022,21/10/2016,569512,77.31 ,Revenue,ATS EUROMASTER LIMITED,04303731
Fareham Borough Council,http://statistics.data.gov.uk/id/local-authority/24UE,ENVIRONMENT AND REGULATORY SER,BV03,WASTE COLLECTION,BV03G,DEPT STREETSCENE,TRANSPORT RELATED EXPENDITURE,3,Vehicle Management,38,TYRES,3022,21/10/2016,569512,267.20 ,Revenue,ATS EUROMASTER LIMITED,04303731
Fareham Borough Council,http://statistics.data.gov.uk/id/local-authority/24UE,ENVIRONMENT AND REGULATORY SER,BV03,WASTE COLLECTION,BV03G,DEPT STREETSCENE,TRANSPORT RELATED EXPENDITURE,3,Vehicle Management,38,TYRES,3022,21/10/2016,569512,454.20 ,Revenue,ATS EUROMASTER LIMITED,04303731
Fareham Borough Council,http://statistics.data.gov.uk/id/local-authority/24UE,ENVIRONMENT AND REGULATORY SER,BV03,WASTE COLLECTION,BV03G,DEPT STREETSCENE,TRANSPORT RELATED EXPENDITURE,3,Vehicle Management,38,TYRES,3022,21/10/2016,569512,228.80 ,Revenue,ATS EUROMASTER LIMITED,04303731
Fareham Borough Council,http://statistics.data.gov.uk/id/local-authority/24UE,ENVIRONMENT AND REGULATORY SER,BV03,WASTE COLLECTION,BV03G,DEPT STREETSCENE,TRANSPORT RELATED EXPENDITURE,3,Vehicle Management,38,TYRES,3022,21/10/2016,569512,260.80 ,Revenue,ATS EUROMASTER LIMITED,04303731
Fareham Borough Council,http://statistics.data.gov.uk/id/local-authority/24UE,ENVIRONMENT AND REGULATORY SER,BV03,WASTE COLLECTION,BV03G,DEPT STREETSCENE,TRANSPORT RELATED EXPENDITURE,3,Vehicle Management,38,TYRES,3022,21/10/2016,569512,198.80 ,Revenue,ATS EUROMASTER LIMITED,04303731
Fareham Borough Council,http://statistics.data.gov.uk/id/local-authority/24UE,OTHER REVENUE ACCOUNTS,RV,CONTRACT SERVICES D.S.O.,RV14,DEPT STREETSCENE,TRANSPORT RELATED EXPENDITURE,3,Vehicle Management,38,TYRES,3022,21/10/2016,569512,69.40 ,Revenue,ATS EUROMASTER LIMITED,04303731
Fareham Borough Council,http://statistics.data.gov.uk/id/local-authority/24UE,ENVIRONMENT AND REGULATORY SER,BV03,FLOOD DEFENCE & LAND DRAINAGE,BV03D,DEPT of STRATEGIC PLANNING and ENVIRONMENT,SUPPLIES & SERVICES,4,Consultancy,15,CONSULTANTS FEES,4401,28/10/2016,569519,22475.13 ,Revenue,HALCROW GROUP LTD (A CH2MHILL COMPANY),3415971
Fareham Borough Council,http://statistics.data.gov.uk/id/local-authority/24UE,ENVIRONMENT AND REGULATORY SER,BV03,FLOOD DEFENCE & LAND DRAINAGE,BV03D,DEPT of STRATEGIC PLANNING and ENVIRONMENT,SUPPLIES & SERVICES,4,Consultancy,15,CONSULTANTS FEES,4401,21/10/2016,569520,770.00 ,Revenue,NATURAL ENGLAND,
Fareham Borough Council,http://statistics.data.gov.uk/id/local-authority/24UE,CAPITAL PROGRAMME - OTHER SERVICES,CP,NEW SCHEMES,CP23,CAPITAL - NEW SCHEMES,SUPPLIES & SERVICES,4,Furniture,21,FURNITURE & EQUIPT. PURCHASES,4000,21/10/2016,569522,339.66 ,Capital,PORTSDOWN OFFICE LIMITED,01779525
Fareham Borough Council,http://statistics.data.gov.uk/id/local-authority/24UE,CAPITAL PROGRAMME - OTHER SERVICES,CP,NEW SCHEMES,CP23,CAPITAL - NEW SCHEMES,SUPPLIES & SERVICES,4,Furniture,21,FURNITURE & EQUIPT. PURCHASES,4000,21/10/2016,569522,223.70 ,Capital,PORTSDOWN OFFICE LIMITED,01779525
Fareham Borough Council,http://statistics.data.gov.uk/id/local-authority/24UE,CAPITAL PROGRAMME - OTHER SERVICES,CP,NEW SCHEMES,CP23,CAPITAL - NEW SCHEMES,SUPPLIES & SERVICES,4,Furniture,21,FURNITURE & EQUIPT. PURCHASES,4000,21/10/2016,569522,6096.72 ,Capital,PORTSDOWN OFFICE LIMITED,01779525
Fareham Borough Council,http://statistics.data.gov.uk/id/local-authority/24UE,CAPITAL PROGRAMME - OTHER SERVICES,CP,NEW SCHEMES,CP23,CAPITAL - NEW SCHEMES,SUPPLIES & SERVICES,4,Furniture,21,FURNITURE & EQUIPT. PURCHASES,4000,21/10/2016,569522,7024.86 ,Capital,PORTSDOWN OFFICE LIMITED,01779525
Fareham Borough Council,http://statistics.data.gov.uk/id/local-authority/24UE,CAPITAL PROGRAMME - OTHER SERVICES,CP,NEW SCHEMES,CP23,CAPITAL - NEW SCHEMES,SUPPLIES & SERVICES,4,Furniture,21,FURNITURE & EQUIPT. PURCHASES,4000,21/10/2016,569522,12476.70 ,Capital,PORTSDOWN OFFICE LIMITED,01779525
Fareham Borough Council,http://statistics.data.gov.uk/id/local-authority/24UE,CAPITAL PROGRAMME - OTHER SERVICES,CP,NEW SCHEMES,CP23,CAPITAL - NEW SCHEMES,SUPPLIES & SERVICES,4,Furniture,21,FURNITURE & EQUIPT. PURCHASES,4000,21/10/2016,569522,5314.68 ,Capital,PORTSDOWN OFFICE LIMITED,01779525
Fareham Borough Council,http://statistics.data.gov.uk/id/local-authority/24UE,CAPITAL PROGRAMME - OTHER SERVICES,CP,NEW SCHEMES,CP23,CAPITAL - NEW SCHEMES,SUPPLIES & SERVICES,4,Furniture,21,FURNITURE & EQUIPT. PURCHASES,4000,21/10/2016,569522,1675.35 ,Capital,PORTSDOWN OFFICE LIMITED,01779525
Fareham Borough Council,http://statistics.data.gov.uk/id/local-authority/24UE,CAPITAL PROGRAMME - OTHER SERVICES,CP,NEW SCHEMES,CP23,CAPITAL - NEW SCHEMES,SUPPLIES & SERVICES,4,Furniture,21,FURNITURE & EQUIPT. PURCHASES,4000,21/10/2016,569522,752.22 ,Capital,PORTSDOWN OFFICE LIMITED,01779525
Fareham Borough Council,http://statistics.data.gov.uk/id/local-authority/24UE,CAPITAL PROGRAMME - OTHER SERVICES,CP,NEW SCHEMES,CP23,CAPITAL - NEW SCHEMES,SUPPLIES & SERVICES,4,Furniture,21,FURNITURE & EQUIPT. PURCHASES,4000,21/10/2016,569522,131.28 ,Capital,PORTSDOWN OFFICE LIMITED,01779525
Fareham Borough Council,http://statistics.data.gov.uk/id/local-authority/24UE,CAPITAL PROGRAMME - OTHER SERVICES,CP,NEW SCHEMES,CP23,CAPITAL - NEW SCHEMES,SUPPLIES & SERVICES,4,Furniture,21,FURNITURE & EQUIPT. PURCHASES,4000,21/10/2016,569522,420.00 ,Capital,PORTSDOWN OFFICE LIMITED,01779525
Fareham Borough Council,http://statistics.data.gov.uk/id/local-authority/24UE,CAPITAL PROGRAMME - OTHER SERVICES,CP,NEW SCHEMES,CP23,CAPITAL - NEW SCHEMES,SUPPLIES & SERVICES,4,Furniture,21,FURNITURE & EQUIPT. PURCHASES,4000,21/10/2016,569522,871.73 ,Capital,PORTSDOWN OFFICE LIMITED,01779525
Fareham Borough Council,http://statistics.data.gov.uk/id/local-authority/24UE,CAPITAL PROGRAMME - OTHER SERVICES,CP,NEW SCHEMES,CP23,CAPITAL - NEW SCHEMES,SUPPLIES & SERVICES,4,Furniture,21,FURNITURE & EQUIPT. PURCHASES,4000,21/10/2016,569522,716.43 ,Capital,PORTSDOWN OFFICE LIMITED,01779525
Fareham Borough Council,http://statistics.data.gov.uk/id/local-authority/24UE,CAPITAL PROGRAMME - OTHER SERVICES,CP,NEW SCHEMES,CP23,CAPITAL - NEW SCHEMES,SUPPLIES & SERVICES,4,Furniture,21,FURNITURE & EQUIPT. PURCHASES,4000,21/10/2016,569522,1820.00 ,Capital,PORTSDOWN OFFICE LIMITED,01779525
Fareham Borough Council,http://statistics.data.gov.uk/id/local-authority/24UE,CAPITAL PROGRAMME - OTHER SERVICES,CP,NEW SCHEMES,CP23,CAPITAL - NEW SCHEMES,SUPPLIES & SERVICES,4,Furniture,21,FURNITURE & EQUIPT. PURCHASES,4000,21/10/2016,569522,185.52 ,Capital,PORTSDOWN OFFICE LIMITED,01779525
Fareham Borough Council,http://statistics.data.gov.uk/id/local-authority/24UE,HIGHWAYS ROADS AND TRANSPORT,BV12,PARKING SERVICES,BV12D,DEPT STREETSCENE,PREMISES RELATED EXPENDITURE,2,Facilities & Management Services,19,R & M OF LIFTS,2050,21/10/2016,569526,345.16 ,Revenue,TEMPLE LIFTS LTD,2388497
Fareham Borough Council,http://statistics.data.gov.uk/id/local-authority/24UE,HOUSING REVENUE ACCOUNT,BV06,RESPONSIVE & VOID MAINTENANCE,5901,DEPT STREETSCENE,PREMISES RELATED EXPENDITURE,2,Facilities & Management Services,19,SERVICING,2083,21/10/2016,569526,554.66 ,Revenue,TEMPLE LIFTS LTD,2388497
Fareham Borough Council,http://statistics.data.gov.uk/id/local-authority/24UE,OTHER REVENUE ACCOUNTS,RV,NON WORK GROUP HOLDING ACCOUNT,RV18,DEPT of FINANCE and RESOURCES,PREMISES RELATED EXPENDITURE,2,Facilities & Management Services,19,R & M OF LIFTS,2050,21/10/2016,569526,269.16 ,Revenue,TEMPLE LIFTS LTD,2388497
Fareham Borough Council,http://statistics.data.gov.uk/id/local-authority/24UE,GENERAL FUND HOUSING,BV05,HOMELESSNESS,BV05F,DEPT of COMMUNITY and STREETSCENE,SUPPLIES & SERVICES,4,Unclassified,,LOCAL ASSISTANCE PAYMENT,4727,21/10/2016,569536,1800.00 ,Revenue,redacted personal data,
Fareham Borough Council,http://statistics.data.gov.uk/id/local-authority/24UE,HIGHWAYS ROADS AND TRANSPORT,BV12,PARKING SERVICES,BV12D,DEPT STREETSCENE,PREMISES RELATED EXPENDITURE,2,Street & Traffic Management,35,RENTS - GENERAL PAYABLE,2200,21/10/2016,569546,2504.75 ,Revenue,HOLY TRINITY PARISH OFFICE,
Fareham Borough Council,http://statistics.data.gov.uk/id/local-authority/24UE,OTHER REVENUE ACCOUNTS,RV,CONTRACT SERVICES D.S.O.,RV14,DEPT of STRATEGIC PLANNING and ENVIRONMENT,SUPPLIES & SERVICES,4,Local/Central Government,98,MISC INSURANCES - PREMIUM,4901,21/10/2016,569547,1659.64 ,Revenue,GOSPORT BOROUGH COUNCIL,
Fareham Borough Council,http://statistics.data.gov.uk/id/local-authority/24UE,OTHER REVENUE ACCOUNTS,RV,CONTRACT SERVICES D.S.O.,RV14,DEPT of STRATEGIC PLANNING and ENVIRONMENT,THIRD PARTY PAYMENTS,5,Local/Central Government,98,GBC - B C PARTNERSHIP,5150,21/10/2016,569547,3760.00 ,Revenue,GOSPORT BOROUGH COUNCIL,
Fareham Borough Council,http://statistics.data.gov.uk/id/local-authority/24UE,OTHER REVENUE ACCOUNTS,RV,CONTRACT SERVICES D.S.O.,RV14,DEPT of STRATEGIC PLANNING and ENVIRONMENT,EMPLOYEES RELATED EXPENDITURE,1,Local/Central Government,98,GBC - EMPLOYEE COSTS,1048,21/10/2016,569547,20881.05 ,Revenue,GOSPORT BOROUGH COUNCIL,
Fareham Borough Council,http://statistics.data.gov.uk/id/local-authority/24UE,OTHER REVENUE ACCOUNTS,RV,CONTRACT SERVICES D.S.O.,RV14,DEPT of STRATEGIC PLANNING and ENVIRONMENT,TRANSPORT RELATED EXPENDITURE,3,Local/Central Government,98,GBC - CAR ALLOWANCES,3432,21/10/2016,569547,1215.38 ,Revenue,GOSPORT BOROUGH COUNCIL,
Fareham Borough Council,http://statistics.data.gov.uk/id/local-authority/24UE,OTHER REVENUE ACCOUNTS,RV,CONTRACT SERVICES D.S.O.,RV14,DEPT of STRATEGIC PLANNING and ENVIRONMENT,SUPPLIES & SERVICES,4,Local/Central Government,98,MOBILE TELEPHONES,4514,21/10/2016,569547,12.50 ,Revenue,GOSPORT BOROUGH COUNCIL,
Fareham Borough Council,http://statistics.data.gov.uk/id/local-authority/24UE,OTHER REVENUE ACCOUNTS,RV,CONTRACT SERVICES D.S.O.,RV14,DEPT of STRATEGIC PLANNING and ENVIRONMENT,SUPPLIES & SERVICES,4,Local/Central Government,98,TELEPHONES,4510,21/10/2016,569547,378.00 ,Revenue,GOSPORT BOROUGH COUNCIL,
Fareham Borough Council,http://statistics.data.gov.uk/id/local-authority/24UE,OTHER REVENUE ACCOUNTS,RV,NON WORK GROUP HOLDING ACCOUNT,RV18,DEPT of FINANCE and RESOURCES,PREMISES RELATED EXPENDITURE,2,Facilities & Management Services,19,R & M OF FIXED PLANT,2040,28/10/2016,569550,869.90 ,Revenue,A1R SERVICES LTD,5955828
Fareham Borough Council,http://statistics.data.gov.uk/id/local-authority/24UE,OTHER REVENUE ACCOUNTS,RV,NON WORK GROUP HOLDING ACCOUNT,RV18,DEPT of FINANCE and RESOURCES,PREMISES RELATED EXPENDITURE,2,Utilities,37,WATER CHARGES - SUPPLY (PWC),2400,21/10/2016,569555,963.95 ,Revenue,CASTLE WATER LTD,SC475583
Fareham Borough Council,http://statistics.data.gov.uk/id/local-authority/24UE,OTHER REVENUE ACCOUNTS,RV,NON WORK GROUP HOLDING ACCOUNT,RV18,DEPT of FINANCE and RESOURCES,PREMISES RELATED EXPENDITURE,2,Facilities & Management Services,19,R & M OF FIXED PLANT,2040,21/10/2016,569557,1146.80 ,Revenue,HONEYWELL CONTROL SYSTEMS LTD,00217803
Fareham Borough Council,http://statistics.data.gov.uk/id/local-authority/24UE,OTHER REVENUE ACCOUNTS,RV,NON WORK GROUP HOLDING ACCOUNT,RV18,DEPT of FINANCE and RESOURCES,PREMISES RELATED EXPENDITURE,2,Building Construction Materials,10,R & M OF FIXED PLANT,2040,21/10/2016,569562,6989.60 ,Revenue,TRANE (UK) LTD,4910068
Fareham Borough Council,http://statistics.data.gov.uk/id/local-authority/24UE,BALANCE SHEET,BS,FMS BAL.SHEET & CONTROL ACCT.,BS1,BAL. SHEET - SUSPENSE ACCOUNT,FMS REJECTION SUSPENSE,BS242,Local/Central Government,98,FMS CODING SUSPENSE ACCOUNT,S990,21/10/2016,569567,96953.54 ,Balance Sheet,HAMPSHIRE PENSION FUND,
Fareham Borough Council,http://statistics.data.gov.uk/id/local-authority/24UE,BALANCE SHEET,BS,FMS BAL.SHEET & CONTROL ACCT.,BS1,BAL. SHEET - SUSPENSE ACCOUNT,FMS REJECTION SUSPENSE,BS242,Local/Central Government,98,FMS CODING SUSPENSE ACCOUNT,S990,21/10/2016,569567,8917.56 ,Balance Sheet,HAMPSHIRE PENSION FUND,
Fareham Borough Council,http://statistics.data.gov.uk/id/local-authority/24UE,ENVIRONMENT AND REGULATORY SER,BV03,CEMETERIES CREM & MORTUARY,BV03A,DEPT STREETSCENE,SUPPLIES & SERVICES,4,Cemetery & Crematorium,12,SURVEYORS FEES,4416,21/10/2016,569572,2787.20 ,Revenue,redacted personal data,
Fareham Borough Council,http://statistics.data.gov.uk/id/local-authority/24UE,ENVIRONMENT AND REGULATORY SER,BV03,CEMETERIES CREM & MORTUARY,BV03A,DEPT STREETSCENE,SUPPLIES & SERVICES,4,Cemetery & Crematorium,12,SURVEYORS FEES,4416,21/10/2016,569573,1125.00 ,Revenue,redacted personal data,
Fareham Borough Council,http://statistics.data.gov.uk/id/local-authority/24UE,ENVIRONMENT AND REGULATORY SER,BV03,ENVIRONMENTAL HEALTH,BV03C,DEPT STREETSCENE,SUPPLIES & SERVICES,4,Local/Central Government,,FURNITURE & EQUIPT. MAINT.,4030,21/10/2016,569574,5000.00 ,Revenue,GOSPORT BOROUGH COUNCIL,
Fareham Borough Council,http://statistics.data.gov.uk/id/local-authority/24UE,CULTURAL AND RELATED SERVICES,BV09,CULTURE AND HERITAGE,BV09A,DEPT of COMMUNITY and STREETSCENE,SUPPLIES & SERVICES,4,Art & Leisure Services,29,PROMOTER,4916,21/10/2016,569580,25000.00 ,Revenue,JORDAN PRODUCTIONS LTD,02823366
Fareham Borough Council,http://statistics.data.gov.uk/id/local-authority/24UE,CULTURAL AND RELATED SERVICES,BV09,CULTURE AND HERITAGE,BV09A,DEPT of COMMUNITY and STREETSCENE,SUPPLIES & SERVICES,4,Art & Leisure Services,29,PROMOTER,4916,21/10/2016,569581,10349.67 ,Revenue,JOE BROWN PRODUCTIONS LTD,04160224
Fareham Borough Council,http://statistics.data.gov.uk/id/local-authority/24UE,CENTRAL SERVICES,BV07,CENTRAL SERVICES TO THE PUBLIC,BV07B,DEPT of FINANCE and RESOURCES,SUPPLIES & SERVICES,4,Legal Services,28,POSTAGES,4500,21/10/2016,569583,4180.74 ,Revenue,ELECTORAL REFORM SERVICES,02263092
Fareham Borough Council,http://statistics.data.gov.uk/id/local-authority/24UE,CAPITAL PROGRAMME - HOUSING SERVICES,CP,NEW HOUSE BUILDING,CP10,CAPITAL - NEW HOUSE BUILDING,SUPPLIES & SERVICES,4,Consultancy,15,CONSULTANTS FEES,4401,21/10/2016,569585,1455.98 ,Capital,WELLING PARTNERSHIP PROPERTY &,
Fareham Borough Council,http://statistics.data.gov.uk/id/local-authority/24UE,OTHER REVENUE ACCOUNTS,RV,NON WORK GROUP HOLDING ACCOUNT,RV18,DEPT of FINANCE and RESOURCES,THIRD PARTY PAYMENTS,5,Financial Services,20,AUDIT CONTRACT,5601,21/10/2016,569594,9416.70 ,Revenue,MAZARS LLP,OC308299
Fareham Borough Council,http://statistics.data.gov.uk/id/local-authority/24UE,CAPITAL PROGRAMME - OTHER SERVICES,CP,APPROVED PROGRAMME,CP24,CAPITAL - APPROVED PROGRAMME,SUPPLIES & SERVICES,4,Highway Equipment & Materials?,23,FURNITURE & EQUIPT. PURCHASES,4000,21/10/2016,569595,773.80 ,Capital,ALLSPEED SIGNS & GRAPHICS LTD,02998509
Fareham Borough Council,http://statistics.data.gov.uk/id/local-authority/24UE,CAPITAL PROGRAMME - OTHER SERVICES,CP,COMPUTER APPROVED,CP23,CAPITAL - COMPUTER APPROVED,SUPPLIES & SERVICES,4,Information Communication Technology,27,FURNITURE & EQUIPT. PURCHASES,4000,21/10/2016,569596,968.00 ,Capital,THE IT SUPPLIER,6514473
Fareham Borough Council,http://statistics.data.gov.uk/id/local-authority/24UE,HIGHWAYS ROADS AND TRANSPORT,BV12,PARKING SERVICES,BV12D,DEPT STREETSCENE,SUPPLIES & SERVICES,4,Street & Traffic Management,35,RECOV.COSTS OF STANDARD CHARGE,4440,21/10/2016,569598,701.80 ,Revenue,PATROL,
